Body Name,Mapped No,Cleansed Supplier Name,Family Category,Main Category,Sub Category,Net Value,Tax Valve,Gross Value,Paid Date,Cleansed Portfolio
Nottinghamshire County Council,12-00015,ENNSTONE JOHNSTON LIMITED,External Services,External Services,Earth and stone,0,0.01,0.01,03-Mar-11,TBC
Nottinghamshire County Council,12-00039,URBIS LIGHTING LIMITED,Facilities Management,Facilities Management,Electrical Systems & Lighting,0,-0.01,-0.01,09-Mar-11,TBC
Nottinghamshire County Council,12-00048,JAMES COLES & SONS (NURSERIES) LIMITED,External Services,External Services,Plant and Animal Supplies,0,-18.22,-18.22,10-Mar-11,TBC
Nottinghamshire County Council,12-00053,EXPRESS ASPHALT LIMITED,Facilities Management,Facilities Management,Highways & Works,0,-0.01,-0.01,02-Mar-11,TBC
Nottinghamshire County Council,12-00054,GLASDON UK LIMITED,Facilities Management,Facilities Management,Cleaning Equipment and Janitorial Supplies,0,-0.01,-0.01,15-Mar-11,TBC
Nottinghamshire County Council,12-00059,LAFFRAN PLANT HIRE,External Services,External Services,Construction Plant and Equipment,0,-0.01,-0.01,03-Mar-11,TBC
Nottinghamshire County Council,12-00066,EXPRESS ASPHALT LIMITED,Facilities Management,Facilities Management,Highways & Works,0,-73.5,-73.5,29-Mar-11,TBC
Nottinghamshire County Council,12-00067,ENERGAS LIMITED,External Services,External Services,Chemicals & Gases,0,-146.58,-146.58,02-Mar-11,TBC
Nottinghamshire County Council,12-00068,HY-TEN REINFORCEMENT COM[ANY LIMITED,Facilities Management,Facilities Management,Building construction services,0,0.01,0.01,24-Mar-11,TBC
Nottinghamshire County Council,12-00070,RENNICKS (UK) LIMITED,Facilities Management,Facilities Management,Highways & Works,0,0.01,0.01,28-Mar-11,TBC
Nottinghamshire County Council,12-00080,ELLIOTT GROUP LIMITED,Facilities Management,Facilities Management,Office Supplies and Machines (non IT),0,16,16,01-Mar-11,TBC
Nottinghamshire County Council,12-00087,BCB COATED STONE LIMITED,Facilities Management,Facilities Management,Highways & Works,0,-0.01,-0.01,01-Mar-11,TBC
Nottinghamshire County Council,12-00095,SIEMENS PLC,Facilities Management,Facilities Management,Electrical Systems & Lighting,0,-0.01,-0.01,15-Mar-11,TBC
Nottinghamshire County Council,12-00124,ASSETCO RENTALS NO 2 LIMITED,Transport & Travel,Transport & Travel,Motor vehicles,0,90.83,90.83,01-Mar-11,TBC
Nottinghamshire County Council,12-00125,ASSETCO RENTALS NO 2 LIMITED,Transport & Travel,Transport & Travel,Motor vehicles,0,98.45,98.45,01-Mar-11,TBC
Nottinghamshire County Council,12-00132,TARMAC CENTRAL LIMITED,Facilities Management,Facilities Management,Highways & Works,0,-0.01,-0.01,01-Mar-11,TBC
Nottinghamshire County Council,12-00133,TARMAC CENTRAL LIMITED,Facilities Management,Facilities Management,Highways & Works,0,-0.01,-0.01,01-Mar-11,TBC
Nottinghamshire County Council,12-00134,TARMAC CENTRAL LIMITED,Facilities Management,Facilities Management,Highways & Works,0,-0.01,-0.01,01-Mar-11,TBC
Nottinghamshire County Council,12-00179,ENERGAS LIMITED,External Services,External Services,Chemicals & Gases,0,-110.2,-110.2,24-Mar-11,TBC
Nottinghamshire County Council,12-00186,EXPRESS ASPHALT LIMITED,Facilities Management,Facilities Management,Highways & Works,0,0.01,0.01,02-Mar-11,TBC
Nottinghamshire County Council,12-00199,NEWEY & EYRE LIMITED,Facilities Management,Facilities Management,Electrical Systems & Lighting,0,-0.02,-0.02,01-Mar-11,TBC
Nottinghamshire County Council,12-00202,GLASDON UK LIMITED,Facilities Management,Facilities Management,Cleaning Equipment and Janitorial Supplies,0,-0.01,-0.01,09-Mar-11,TBC
Nottinghamshire County Council,12-00206,XMA LIMITED,ICT,ICT,Computer Equipment and Accessories,0,-0.01,-0.01,07-Mar-11,TBC
Nottinghamshire County Council,12-00207,XMA LIMITED,ICT,ICT,Computer Equipment and Accessories,0,0.01,0.01,08-Mar-11,TBC
Nottinghamshire County Council,12-00235,ENNSTONE JOHNSTON LIMITED,External Services,External Services,Earth and stone,0,0.01,0.01,04-Mar-11,TBC
Nottinghamshire County Council,12-00275,TUBES FITTINGS VALVES LIMITED,Facilities Management,Facilities Management,Plumbing services,0,-0.01,-0.01,07-Mar-11,TBC
Nottinghamshire County Council,12-00326,TARMAC CENTRAL LIMITED,Facilities Management,Facilities Management,Highways & Works,0,-0.01,-0.01,02-Mar-11,TBC
Nottinghamshire County Council,12-00337,ENNSTONE JOHNSTON LIMITED,External Services,External Services,Earth and stone,0,-0.01,-0.01,04-Mar-11,TBC
Nottinghamshire County Council,12-00339,XMA LIMITED,ICT,ICT,Computer Equipment and Accessories,0,0.01,0.01,10-Mar-11,TBC
Nottinghamshire County Council,12-00345,TARMAC CENTRAL LIMITED,Facilities Management,Facilities Management,Highways & Works,0,-0.01,-0.01,02-Mar-11,TBC
Nottinghamshire County Council,12-00416,EXPRESS ASPHALT LIMITED,Facilities Management,Facilities Management,Highways & Works,0,0.01,0.01,02-Mar-11,TBC
Nottinghamshire County Council,12-00428,HIRST SIGNS LIMITED,Facilities Management,Facilities Management,Printed media and Signage,0,-0.01,-0.01,14-Mar-11,TBC
Nottinghamshire County Council,12-00445,TARMAC CENTRAL LIMITED,Facilities Management,Facilities Management,Highways & Works,0,-0.01,-0.01,08-Mar-11,TBC
Nottinghamshire County Council,12-00460,SPEEDY ASSET SERVICES LIMITED,Transport & Travel,Transport & Travel,Tools and General Machinery,0,0.01,0.01,09-Mar-11,TBC
Nottinghamshire County Council,12-00502,CARDEA,Care,Care,Healthcare Services,0,103.84,103.84,01-Mar-11,TBC
Nottinghamshire County Council,12-00569,LUCID RESEARCH LIMITED,ICT,ICT,Software,0,-0.01,-0.01,15-Mar-11,TBC
Nottinghamshire County Council,12-00572,WASTE RECYCLING GROUP PLC,External Services,External Services,Scrap and waste materials,0,-0.01,-0.01,16-Mar-11,TBC
Nottinghamshire County Council,12-00577,TARMAC CENTRAL LIMITED,Facilities Management,Facilities Management,Highways & Works,0,-0.01,-0.01,08-Mar-11,TBC
Nottinghamshire County Council,12-00579,PAUL HUNT ELECTRICAL LIMITED,Facilities Management,Facilities Management,Electrical Systems & Lighting,0,-69.6,-69.6,04-Mar-11,TBC
Nottinghamshire County Council,12-00586,EDGE ANALYTICS LIMITED,Professional Services,Professional Services,Consultancy,0,992,992,01-Mar-11,TBC
Nottinghamshire County Council,12-00588,WRAGGE & CO,Professional Services,Professional Services,Legal services,0,-70.22,-70.22,01-Mar-11,TBC
Nottinghamshire County Council,12-00590,SWIIS (UK) LIMITED,People,People,Agency Staff - Care,0,120.56,120.56,11-Mar-11,TBC
Nottinghamshire County Council,12-00596,OPEN OBJECTS SOFTWARE LIMITED,ICT,ICT,Software,0,999,999,01-Mar-11,TBC
Nottinghamshire County Council,12-00597,COMMERCIAL SURFACE SOLUTIONS,Facilities Management,Facilities Management,Cleaning Equipment and Janitorial Supplies,0,954.8,954.8,15-Mar-11,TBC
Nottinghamshire County Council,12-00598,COMMERCIAL SURFACE SOLUTIONS,Facilities Management,Facilities Management,Cleaning Equipment and Janitorial Supplies,0,984.2,984.2,15-Mar-11,TBC
Nottinghamshire County Council,12-00600,KONICA MINOLTA,ICT,ICT,Printing and publishing equipment and supplies,0,103.84,103.84,07-Mar-11,TBC
Nottinghamshire County Council,12-00608,TARMAC CENTRAL LIMITED,Facilities Management,Facilities Management,Highways & Works,0,-0.01,-0.01,09-Mar-11,TBC
Nottinghamshire County Council,12-00665,VODAFONE LIMITED,ICT,ICT,Telecommunications & Media,0,-0.01,-0.01,09-Mar-11,TBC
Nottinghamshire County Council,12-00684,EXPRESS ASPHALT LIMITED,Facilities Management,Facilities Management,Highways & Works,0,0.01,0.01,02-Mar-11,TBC
Nottinghamshire County Council,12-00686,EXPRESS ASPHALT LIMITED,Facilities Management,Facilities Management,Highways & Works,0,0.01,0.01,02-Mar-11,TBC
Nottinghamshire County Council,12-00702,E GOVERNMENT SOLUTIONS,ICT,ICT,Software,0,240,240,01-Mar-11,TBC
Nottinghamshire County Council,12-00736,ENNSTONE JOHNSTON LIMITED,External Services,External Services,Earth and stone,0,0.02,0.02,01-Mar-11,TBC
Nottinghamshire County Council,12-00737,ENNSTONE JOHNSTON LIMITED,External Services,External Services,Earth and stone,0,0.01,0.01,04-Mar-11,TBC
Nottinghamshire County Council,12-00738,ENNSTONE JOHNSTON LIMITED,External Services,External Services,Earth and stone,0,-0.02,-0.02,04-Mar-11,TBC
Nottinghamshire County Council,12-00739,ENNSTONE JOHNSTON LIMITED,External Services,External Services,Earth and stone,0,-0.01,-0.01,04-Mar-11,TBC
Nottinghamshire County Council,12-00819,HIRST SIGNS LIMITED,Facilities Management,Facilities Management,Printed media and Signage,0,-0.01,-0.01,10-Mar-11,TBC
Nottinghamshire County Council,12-00989,STAFFLINE RECRUITMENT LIMITED,People,People,Vocational training,0,-0.03,-0.03,01-Mar-11,TBC
Nottinghamshire County Council,12-01002,EDEN BROWN LIMITED,People,People,Recruitment,0,383.92,383.92,11-Mar-11,TBC
Nottinghamshire County Council,12-01003,CAPITA SOCIAL CARE & HOUSING,Care,Care,Domiciliary Care,0,156,156,10-Mar-11,TBC
Nottinghamshire County Council,12-01005,NOTTINGHAM COMMUNITY HOUSING ASSOCIATION,Care,Care,Residential Care,0,180,180,16-Mar-11,TBC
Nottinghamshire County Council,12-01006,KONICA MINOLTA,ICT,ICT,Printing and publishing equipment and supplies,0,114.41,114.41,14-Mar-11,TBC
Nottinghamshire County Council,12-01007,COMMERCIAL SURFACE SOLUTIONS,Facilities Management,Facilities Management,Cleaning Equipment and Janitorial Supplies,0,635.36,635.36,18-Mar-11,TBC
Nottinghamshire County Council,12-01009,ENERGY SERVICES MANAGEMENT LIMITED,Facilities Management,Facilities Management,Utilities,0,115.2,115.2,02-Mar-11,TBC
Nottinghamshire County Council,12-01010,SMILE REHAB LIMITED,Care,Care,Medical Equipment and  Supplies,0,175.2,175.2,15-Mar-11,TBC
Nottinghamshire County Council,12-01011,CAPITA SOCIAL CARE & HOUSING,Care,Care,Domiciliary Care,0,88.02,88.02,10-Mar-11,TBC
Nottinghamshire County Council,12-01012,CAPITA SOCIAL CARE & HOUSING,Care,Care,Domiciliary Care,0,137.95,137.95,10-Mar-11,TBC
Nottinghamshire County Council,12-01013,SWIIS (UK) LIMITED,People,People,Agency Staff - Care,0,167.09,167.09,11-Mar-11,TBC
Nottinghamshire County Council,12-01014,FRONTLINE,Facilities Management,Facilities Management,Plumbing services,0,295.19,295.19,03-Mar-11,TBC
Nottinghamshire County Council,12-01015,TIEDATA LIMITED,Professional Services,Professional Services,Consultancy,0,88,88,16-Mar-11,TBC
Nottinghamshire County Council,12-01016,A4E CONSULT LIMITED,Professional Services,Professional Services,Consultancy,0,136.5,136.5,04-Mar-11,TBC
Nottinghamshire County Council,12-01017,COMMERCIAL SURFACE SOLUTIONS,Facilities Management,Facilities Management,Cleaning Equipment and Janitorial Supplies,0,727.4,727.4,22-Mar-11,TBC
Nottinghamshire County Council,12-01018,MEDICARE FIRST,Care,Care,Medical Equipment and  Supplies,0,292.3,292.3,01-Mar-11,TBC
Nottinghamshire County Council,12-01021,WASTE RECYCLING GROUP PLC,External Services,External Services,Scrap and waste materials,0,0.03,0.03,01-Mar-11,TBC
Nottinghamshire County Council,12-01022,WASTE RECYCLING GROUP PLC,External Services,External Services,Scrap and waste materials,0,-67.43,-67.43,01-Mar-11,TBC
Nottinghamshire County Council,12-01023,WASTE RECYCLING GROUP PLC,External Services,External Services,Scrap and waste materials,0,-0.03,-0.03,01-Mar-11,TBC
Nottinghamshire County Council,12-01026,BCB COATED STONE LIMITED,Facilities Management,Facilities Management,Highways & Works,0,-0.01,-0.01,10-Mar-11,TBC
Nottinghamshire County Council,12-01080,EXPRESS ASPHALT LIMITED,Facilities Management,Facilities Management,Highways & Works,0,0.01,0.01,02-Mar-11,TBC
Nottinghamshire County Council,12-01119,TARMAC CENTRAL LIMITED,Facilities Management,Facilities Management,Highways & Works,0,-0.01,-0.01,16-Mar-11,TBC
Nottinghamshire County Council,12-01120,TARMAC CENTRAL LIMITED,Facilities Management,Facilities Management,Highways & Works,0,-0.01,-0.01,16-Mar-11,TBC
Nottinghamshire County Council,12-01121,TARMAC CENTRAL LIMITED,Facilities Management,Facilities Management,Highways & Works,0,-0.01,-0.01,16-Mar-11,TBC
Nottinghamshire County Council,12-01182,PHILIPS LIGHTING,Facilities Management,Facilities Management,Electrical Systems & Lighting,0,-90.42,-90.42,07-Mar-11,TBC
Nottinghamshire County Council,12-01264,THE NATIONAL LEAFLET COMPANY,Professional Services,Professional Services,"Reproduction, Photographic and Design Services",0,-0.01,-0.01,01-Mar-11,TBC
Nottinghamshire County Council,12-01319,ENNSTONE JOHNSTON LIMITED,External Services,External Services,Earth and stone,0,-0.01,-0.01,10-Mar-11,TBC
Nottinghamshire County Council,12-01321,ENNSTONE JOHNSTON LIMITED,External Services,External Services,Earth and stone,0,0.01,0.01,04-Mar-11,TBC
Nottinghamshire County Council,12-01342,HENRY KEMP ROAD MAINTENANCE LIMITED,Facilities Management,Facilities Management,Highways & Works,0,0.01,0.01,24-Mar-11,TBC
Nottinghamshire County Council,12-01362,JOHNSTON PUBLISHING LIMITED,Facilities Management,Facilities Management,Printed media and Signage,0,0.05,0.05,02-Mar-11,TBC
Nottinghamshire County Council,12-01395,GRAYSONS SOLICITORS,Professional Services,Professional Services,Legal services,0,"2,457.01","2,457.01",01-Mar-11,TBC
Nottinghamshire County Council,12-04425,XMA LIMITED,ICT,ICT,Computer Equipment and Accessories,0,0.01,0.01,28-Mar-11,TBC
Nottinghamshire County Council,12-04462,CITY & GUILDS OF LONDON INSTITUTE,People,People,Vocational training,0,-247.52,-247.52,15-Mar-11,TBC
Nottinghamshire County Council,12-04463,ENERGAS LIMITED,External Services,External Services,Chemicals & Gases,0,-155.34,-155.34,07-Mar-11,TBC
Nottinghamshire County Council,12-04627,PHS GROUP PLC,Facilities Management,Facilities Management,Cleaning Equipment and Janitorial Supplies,0,-0.01,-0.01,09-Mar-11,TBC
Nottinghamshire County Council,12-04665,CABLE & WIRELESS,ICT,ICT,Communications Devices and Accessories,0,0.01,0.01,07-Mar-11,TBC
Nottinghamshire County Council,12-04675,BATCHMIX LIMITED,Facilities Management,Facilities Management,Concrete installation and repair services,0,0.01,0.01,10-Mar-11,TBC
Nottinghamshire County Council,12-04676,BATCHMIX LIMITED,Facilities Management,Facilities Management,Concrete installation and repair services,0,0.01,0.01,10-Mar-11,TBC
Nottinghamshire County Council,12-04678,BATCHMIX LIMITED,Facilities Management,Facilities Management,Concrete installation and repair services,0,0.01,0.01,14-Mar-11,TBC
Nottinghamshire County Council,12-04706,BRAKE BROS LIMITED,Facilities Management,Facilities Management,Prepared and preserved foods,0,-0.01,-0.01,03-Mar-11,TBC
Nottinghamshire County Council,12-04736,SHERIDAN MYERS,Professional Services,Professional Services,Consultancy,0,"1,465.02","1,465.02",03-Mar-11,TBC
Nottinghamshire County Council,12-04743,GOALS UK CIC,External Services,External Services,Sports and Recreational Equipment and Supplies,0,800,800,21-Mar-11,TBC
Nottinghamshire County Council,12-04766,GOLDEN RIVER TRAFFIC LIMITED,Facilities Management,Facilities Management,Highways & Works,0,343,343,09-Mar-11,TBC
Nottinghamshire County Council,12-04767,WOODBOROUGH PARK,Care,TBC,TBC,0,180,180,04-Mar-11,TBC
Nottinghamshire County Council,12-04769,TRUVELO (UK) LIMITED,Facilities Management,Facilities Management,Highways & Works,0,525.8,525.8,04-Mar-11,TBC
Nottinghamshire County Council,12-04770,BLAZIE,Care,Care,Medical Equipment and  Supplies,0,98.33,98.33,04-Mar-11,TBC
Nottinghamshire County Council,12-04771,DAVID HAMMOND CHARTERED SURVEYORS,Professional Services,Professional Services,Professional Engineering ,0,173.2,173.2,07-Mar-11,TBC
Nottinghamshire County Council,12-04773,R H WYATT & CO LIMITED,Professional Services,Professional Services,Financial and Insurance Services,0,382.52,382.52,04-Mar-11,TBC
Nottinghamshire County Council,12-04774,NEWARK GLASS CO LIMITED,TBC,TBC,TBC,0,-19.29,-19.29,07-Mar-11,TBC
Nottinghamshire County Council,12-04776,FREDK LAMB LIMITED,Facilities Management,Facilities Management,Building construction services,0,129.38,129.38,04-Mar-11,TBC
Nottinghamshire County Council,12-04777,CRANTON ELECTRICAL CO LIMITED,Facilities Management,Facilities Management,Electrical Systems & Lighting,0,117.08,117.08,04-Mar-11,TBC
Nottinghamshire County Council,12-04778,CRANTON ELECTRICAL CO LIMITED,Facilities Management,Facilities Management,Electrical Systems & Lighting,0,273.76,273.76,04-Mar-11,TBC
Nottinghamshire County Council,12-04780,ROTEL LEISURE LIMITED,Transport & Travel,Transport & Travel,Hotels and Venues,0,99.16,99.16,07-Mar-11,TBC
Nottinghamshire County Council,12-04781,CRANTON ELECTRICAL CO LIMITED,Facilities Management,Facilities Management,Electrical Systems & Lighting,0,116.19,116.19,04-Mar-11,TBC
Nottinghamshire County Council,12-04782,MEDICARE FIRST,Care,Care,Medical Equipment and  Supplies,0,305.1,305.1,15-Mar-11,TBC
Nottinghamshire County Council,12-04783,MEDICARE FIRST,Care,Care,Medical Equipment and  Supplies,0,292.3,292.3,15-Mar-11,TBC
Nottinghamshire County Council,12-04784,FRONTLINE,Facilities Management,Facilities Management,Plumbing services,0,295.19,295.19,18-Mar-11,TBC
Nottinghamshire County Council,12-04785,NORTH NOTTINGHAMSHIRE COLLEGE,Education & Training,Education & Training,Pre School/ Nursery/ School,0,134.6,134.6,04-Mar-11,TBC
Nottinghamshire County Council,12-04786,EDEN BROWN LIMITED,People,People,Recruitment,0,316.2,316.2,18-Mar-11,TBC
Nottinghamshire County Council,12-04787,EDEN BROWN LIMITED,People,People,Recruitment,0,338.56,338.56,11-Mar-11,TBC
Nottinghamshire County Council,12-04788,WATCH-IT SECURITY SERVICES,Facilities Management,Facilities Management,Security,0,273,273,04-Mar-11,TBC
Nottinghamshire County Council,12-04793,UNIFIED SOFTWARE LTD,ICT,ICT,Software,0,100,100,11-Mar-11,TBC
Nottinghamshire County Council,12-04794,DAISY COMMUNICATIONS LIMITED,ICT,ICT,Telecommunications & Media,0,93.81,93.81,04-Mar-11,TBC
Nottinghamshire County Council,12-04795,KONICA MINOLTA,ICT,ICT,Printing and publishing equipment and supplies,0,118.28,118.28,07-Mar-11,TBC
Nottinghamshire County Council,12-04796,KONICA MINOLTA,ICT,ICT,Printing and publishing equipment and supplies,0,220.64,220.64,11-Mar-11,TBC
Nottinghamshire County Council,12-04797,XMA LIMITED,ICT,ICT,Computer Equipment and Accessories,0,91.8,91.8,21-Mar-11,TBC
Nottinghamshire County Council,12-04798,EDEN BROWN LIMITED,People,People,Recruitment,0,365.71,365.71,18-Mar-11,TBC
Nottinghamshire County Council,12-04799,SWIIS (UK) LIMITED,People,People,Agency Staff - Care,0,167.09,167.09,18-Mar-11,TBC
Nottinghamshire County Council,12-04800,KONICA MINOLTA,ICT,ICT,Printing and publishing equipment and supplies,0,84.61,84.61,07-Mar-11,TBC
Nottinghamshire County Council,12-04805,ARVAL P H H BUSINESS SOLUTIONS,Transport & Travel,Transport & Travel,Gas fuels and lubricants ,0,0.69,0.69,04-Mar-11,TBC
Nottinghamshire County Council,12-04806,ARVAL P H H BUSINESS SOLUTIONS,Transport & Travel,Transport & Travel,Gas fuels and lubricants ,0,0.02,0.02,04-Mar-11,TBC
Nottinghamshire County Council,12-04853,DAWSON RENTALS PORTABLE COLD STORAGE LIMITED,Facilities Management,Facilities Management,Vending Machines and Food Equipment,0,-0.01,-0.01,04-Mar-11,TBC
Nottinghamshire County Council,12-04860,E GOVERNMENT SOLUTIONS,ICT,ICT,Software,0,287.69,287.69,22-Mar-11,TBC
Nottinghamshire County Council,12-05002,TARMAC CENTRAL LIMITED,Facilities Management,Facilities Management,Highways & Works,0,-0.01,-0.01,29-Mar-11,TBC
Nottinghamshire County Council,12-05049,CAPITA SOCIAL CARE & HOUSING,Care,Care,Domiciliary Care,0,115.04,115.04,07-Mar-11,TBC
Nottinghamshire County Council,12-05050,ADVANTAGE HEALTHCARE NURSING &CARE LIMITED,Care,Care,Healthcare Services,0,264.55,264.55,07-Mar-11,TBC
Nottinghamshire County Council,12-05051,CAPITA SOCIAL CARE & HOUSING,Care,Care,Domiciliary Care,0,115.6,115.6,07-Mar-11,TBC
Nottinghamshire County Council,12-05052,THE NE GROUP (NORTH NOTTINGHAMSHIRE ENTERPRISES),Transport & Travel,Transport & Travel,Hotels and Venues,0,100.9,100.9,07-Mar-11,TBC
Nottinghamshire County Council,12-05053,CUSTOM GROUP LIMITED,Facilities Management,Facilities Management,Furniture and Furnishings,0,156.23,156.23,07-Mar-11,TBC
Nottinghamshire County Council,12-05054,L B S HORTICULTURE,External Services,External Services,Farming Forestry and Wildlife Services,0,137.04,137.04,07-Mar-11,TBC
Nottinghamshire County Council,12-05055,MEDICARE FIRST,Care,Care,Medical Equipment and  Supplies,0,357.02,357.02,15-Mar-11,TBC
Nottinghamshire County Council,12-05056,CARITAS RECRUITMENT,People,People,Vocational training,0,300.08,300.08,18-Mar-11,TBC
Nottinghamshire County Council,12-05057,RIG SOCIAL CARE (NORTH) LIMITED,Care,Care,Domiciliary Care,0,297.62,297.62,07-Mar-11,TBC
Nottinghamshire County Council,12-05058,MEDICARE FIRST,Care,Care,Medical Equipment and  Supplies,0,310.8,310.8,15-Mar-11,TBC
Nottinghamshire County Council,12-05059,EDEN BROWN LIMITED,People,People,Recruitment,0,481,481,18-Mar-11,TBC
Nottinghamshire County Council,12-05060,EDEN BROWN LIMITED,People,People,Recruitment,0,431.72,431.72,18-Mar-11,TBC
Nottinghamshire County Council,12-05062,EDEN BROWN LIMITED,People,People,Recruitment,0,481,481,11-Mar-11,TBC
Nottinghamshire County Council,12-05063,GOLD STANDARDS FRAMEWORK,Care,Care,Domiciliary Care,0,538,538,07-Mar-11,TBC
Nottinghamshire County Council,12-05064,GOLD STANDARDS FRAMEWORK,Care,Care,Domiciliary Care,0,"4,126.00","4,126.00",07-Mar-11,TBC
Nottinghamshire County Council,12-05065,MAKING IT! ENTERPRISES LIMITED,External Services,External Services,Sports and Recreational Equipment and Supplies,0,"2,042.99","2,042.99",07-Mar-11,TBC
Nottinghamshire County Council,12-05068,SLACK & CO FLOORCOVERINGS,Facilities Management,Facilities Management,Furniture and Furnishings,0,105.6,105.6,07-Mar-11,TBC
Nottinghamshire County Council,12-05074,COUNTRYSIDE TRAINING & TREE MANAGEMENT,People,People,Vocational training,0,200,200,07-Mar-11,TBC
Nottinghamshire County Council,12-05077,DESIGN BY DISTRACTION,ICT,ICT,Printing and publishing equipment and supplies,0,252,252,07-Mar-11,TBC
Nottinghamshire County Council,12-05078,RUFFORD PARK GOLF & COUNTRY CLUB,External Services,External Services,Sports and Recreational Equipment and Supplies,0,198.4,198.4,07-Mar-11,TBC
Nottinghamshire County Council,12-05080,COMMUNITY PRODUCTS (UK) LIMITED,External Services,External Services,Toys and games,0,86.4,86.4,07-Mar-11,TBC
Nottinghamshire County Council,12-05081,SKILLS TRAINING CENTRE,People,People,Vocational training,0,170.5,170.5,24-Mar-11,TBC
Nottinghamshire County Council,12-05082,THE NE GROUP (NORTH NOTTINGHAMSHIRE ENTERPRISES),Transport & Travel,Transport & Travel,Hotels and Venues,0,93,93,07-Mar-11,TBC
Nottinghamshire County Council,12-05083,CAPITA SOCIAL CARE & HOUSING,Care,Care,Domiciliary Care,0,132.2,132.2,07-Mar-11,TBC
Nottinghamshire County Council,12-05084,CAPITA SOCIAL CARE & HOUSING,Care,Care,Domiciliary Care,0,138.26,138.26,07-Mar-11,TBC
Nottinghamshire County Council,12-05085,CAPITA SOCIAL CARE & HOUSING,Care,Care,Domiciliary Care,0,126.89,126.89,07-Mar-11,TBC
Nottinghamshire County Council,12-05086,CAPITA SOCIAL CARE & HOUSING,Care,Care,Domiciliary Care,0,113.52,113.52,07-Mar-11,TBC
Nottinghamshire County Council,12-05087,CAPITA SOCIAL CARE & HOUSING,Care,Care,Domiciliary Care,0,113.52,113.52,07-Mar-11,TBC
Nottinghamshire County Council,12-05088,CAPITA SOCIAL CARE & HOUSING,Care,Care,Domiciliary Care,0,113.52,113.52,07-Mar-11,TBC
Nottinghamshire County Council,12-05089,CAPITA SOCIAL CARE & HOUSING,Care,Care,Domiciliary Care,0,113.52,113.52,10-Mar-11,TBC
Nottinghamshire County Council,12-05090,CAPITA SOCIAL CARE & HOUSING,Care,Care,Domiciliary Care,0,128,128,07-Mar-11,TBC
Nottinghamshire County Council,12-05091,CAPITA SOCIAL CARE & HOUSING,Care,Care,Domiciliary Care,0,113.52,113.52,10-Mar-11,TBC
Nottinghamshire County Council,12-05092,CAPITA SOCIAL CARE & HOUSING,Care,Care,Domiciliary Care,0,113.52,113.52,10-Mar-11,TBC
Nottinghamshire County Council,12-05093,CAPITA SOCIAL CARE & HOUSING,Care,Care,Domiciliary Care,0,113.52,113.52,10-Mar-11,TBC
Nottinghamshire County Council,12-05094,CAPITA SOCIAL CARE & HOUSING,Care,Care,Domiciliary Care,0,113.52,113.52,10-Mar-11,TBC
Nottinghamshire County Council,12-05095,CAPITA SOCIAL CARE & HOUSING,Care,Care,Domiciliary Care,0,127.31,127.31,10-Mar-11,TBC
Nottinghamshire County Council,12-05096,CAPITA SOCIAL CARE & HOUSING,Care,Care,Domiciliary Care,0,113.52,113.52,10-Mar-11,TBC
Nottinghamshire County Council,12-05097,INTERACTIVE BUSINESS EVENTS LIMITED,TBC,TBC,TBC,0,272,272,07-Mar-11,TBC
Nottinghamshire County Council,12-05099,LEICESTERSHIRE COUNTY COUNCIL,Professional Services,Professional Services,Politics and Civic Affairs,0,112.45,112.45,11-Mar-11,TBC
Nottinghamshire County Council,12-05102,CHARTERED INST OF ENVIRONMENTAL HEALTH,External Services,External Services,Organisations and Clubs,0,90.22,90.22,07-Mar-11,TBC
Nottinghamshire County Council,12-05106,ALLIANCE & LEICESTER GIROBANK,Professional Services,Professional Services,Financial and Insurance Services,0,222.97,222.97,07-Mar-11,TBC
Nottinghamshire County Council,12-05121,RAPESCO OFFICE PRODUCTS PLC,Facilities Management,Facilities Management,Office Supplies and Machines (non IT),0,0.01,0.01,08-Mar-11,TBC
Nottinghamshire County Council,12-05168,S P ROSE LIMITED,Facilities Management,Facilities Management,Building construction services,0,800,800,07-Mar-11,TBC
Nottinghamshire County Council,12-05220,CENTRAL CONSTRUCTION SERVICES LIMITED,Facilities Management,Facilities Management,Building construction services,0,-0.01,-0.01,07-Mar-11,TBC
Nottinghamshire County Council,12-05254,PICKFORDS LIMITED,Facilities Management,Facilities Management,Material Handling and Storage,0,128.93,128.93,24-Mar-11,TBC
Nottinghamshire County Council,12-05255,CORONA ENERGY RETAIL LIMITED,Facilities Management,Facilities Management,Utilities,0,14.94,14.94,09-Mar-11,TBC
Nottinghamshire County Council,12-05318,D BERRINGTON BUILDING SERVICES,Facilities Management,Facilities Management,Building construction services,0,-100,-100,18-Mar-11,TBC
Nottinghamshire County Council,12-05320,LDC RESTORATION,TBC,TBC,TBC,0,433,433,08-Mar-11,TBC
Nottinghamshire County Council,12-05321,THE SUMMIT CENTRE,Transport & Travel,Transport & Travel,Hotels and Venues,0,210,210,08-Mar-11,TBC
Nottinghamshire County Council,12-05323,CAPITA SOCIAL CARE & HOUSING,Care,Care,Domiciliary Care,0,119.52,119.52,08-Mar-11,TBC
Nottinghamshire County Council,12-05324,CAPITA SOCIAL CARE & HOUSING,Care,Care,Domiciliary Care,0,116.56,116.56,08-Mar-11,TBC
Nottinghamshire County Council,12-05325,CAPITA SOCIAL CARE & HOUSING,Care,Care,Domiciliary Care,0,113.52,113.52,08-Mar-11,TBC
Nottinghamshire County Council,12-05326,ASSETCO RENTALS NO 2 LIMITED,Transport & Travel,Transport & Travel,Motor vehicles,0,98.45,98.45,08-Mar-11,TBC
Nottinghamshire County Council,12-05327,ASSETCO RENTALS NO 2 LIMITED,Transport & Travel,Transport & Travel,Motor vehicles,0,90.83,90.83,08-Mar-11,TBC
Nottinghamshire County Council,12-05328,EDEN BROWN LIMITED,People,People,Recruitment,0,442.04,442.04,11-Mar-11,TBC
Nottinghamshire County Council,12-05329,EDEN BROWN LIMITED,People,People,Recruitment,0,354.12,354.12,11-Mar-11,TBC
Nottinghamshire County Council,12-05330,KONICA MINOLTA,ICT,ICT,Printing and publishing equipment and supplies,0,291.39,291.39,21-Mar-11,TBC
Nottinghamshire County Council,12-05331,UNIVERSAL LOCUMS,People,People,Recruitment,0,199.5,199.5,08-Mar-11,TBC
Nottinghamshire County Council,12-05332,MEDICARE FIRST,Care,Care,Medical Equipment and  Supplies,0,310.8,310.8,15-Mar-11,TBC
Nottinghamshire County Council,12-05333,UNWIN SAFETY SYSTEMS,Care,TBC,TBC,0,130.5,130.5,08-Mar-11,TBC
Nottinghamshire County Council,12-05334,THE AWARD SCHEME LIMITED,External Services,External Services,Organisations and Clubs,0,5,5,08-Mar-11,TBC
Nottinghamshire County Council,12-05335,Y M C A,Care,Care,Residential Care,0,600,600,08-Mar-11,TBC
Nottinghamshire County Council,12-05336,MAKING IT! ENTERPRISES LIMITED,External Services,External Services,Sports and Recreational Equipment and Supplies,0,414.94,414.94,08-Mar-11,TBC
Nottinghamshire County Council,12-05337,EDEN BROWN LIMITED,People,People,Recruitment,0,338.64,338.64,18-Mar-11,TBC
Nottinghamshire County Council,12-05338,EDEN BROWN LIMITED,People,People,Recruitment,0,421.8,421.8,25-Mar-11,TBC
Nottinghamshire County Council,12-05339,EDEN BROWN LIMITED,People,People,Recruitment,0,342.4,342.4,25-Mar-11,TBC
Nottinghamshire County Council,12-05340,EDEN BROWN LIMITED,People,People,Recruitment,0,354.84,354.84,25-Mar-11,TBC
Nottinghamshire County Council,12-05341,EDEN BROWN LIMITED,People,People,Recruitment,0,365.71,365.71,25-Mar-11,TBC
Nottinghamshire County Council,12-05342,EDEN BROWN LIMITED,People,People,Recruitment,0,214.5,214.5,18-Mar-11,TBC
Nottinghamshire County Council,12-05343,EDEN BROWN LIMITED,People,People,Recruitment,0,455.7,455.7,25-Mar-11,TBC
Nottinghamshire County Council,12-05344,EDEN BROWN LIMITED,People,People,Recruitment,0,384.72,384.72,25-Mar-11,TBC
Nottinghamshire County Council,12-05345,KEN BURROWS LIMITED,Facilities Management,Facilities Management,Electrical Systems & Lighting,0,137.98,137.98,08-Mar-11,TBC
Nottinghamshire County Council,12-05347,CAPITA SOCIAL CARE & HOUSING,Care,Care,Domiciliary Care,0,108.91,108.91,08-Mar-11,TBC
Nottinghamshire County Council,12-05348,THE NE GROUP (NORTH NOTTINGHAMSHIRE ENTERPRISES),Transport & Travel,Transport & Travel,Hotels and Venues,0,115.8,115.8,08-Mar-11,TBC
Nottinghamshire County Council,12-05349,ROYAL MAIL GROUP PLC,Facilities Management,Facilities Management,Mail and Couriers,0,100,100,08-Mar-11,TBC
Nottinghamshire County Council,12-05350,CAPITA SOCIAL CARE & HOUSING,Care,Care,Domiciliary Care,0,117.84,117.84,10-Mar-11,TBC
Nottinghamshire County Council,12-05352,CAPITA SOCIAL CARE & HOUSING,Care,Care,Domiciliary Care,0,118.48,118.48,08-Mar-11,TBC
Nottinghamshire County Council,12-05353,DYNAVOX SYSTEMS LIMITED,Care,Care,TBC,0,"1,080.00","1,080.00",08-Mar-11,TBC
Nottinghamshire County Council,12-05354,LA INTERNATIONAL COMPUTER CONSULTANT LIMITED,Professional Services,Professional Services,Consultancy,0,588,588,08-Mar-11,TBC
Nottinghamshire County Council,12-05355,LA INTERNATIONAL COMPUTER CONSULTANT LIMITED,Professional Services,Professional Services,Consultancy,0,588,588,08-Mar-11,TBC
Nottinghamshire County Council,12-05359,CAPITA SOCIAL CARE & HOUSING,Care,Care,Domiciliary Care,0,121,121,18-Mar-11,TBC
Nottinghamshire County Council,12-05360,TALLON MONITORING LIMITED,ICT,ICT,Telecommunications & Media,0,"3,700.00","3,700.00",23-Mar-11,TBC
Nottinghamshire County Council,12-05362,CAPITA SOCIAL CARE & HOUSING,Care,Care,Domiciliary Care,0,226.86,226.86,18-Mar-11,TBC
Nottinghamshire County Council,12-05363,EDEN BROWN LIMITED,People,People,Recruitment,0,922.96,922.96,25-Mar-11,TBC
Nottinghamshire County Council,12-05364,ORCHARD MEDICAL RECRUITMENT LIMITED,People,People,Vocational training,0,212.29,212.29,08-Mar-11,TBC
Nottinghamshire County Council,12-05365,KONICA MINOLTA,ICT,ICT,Printing and publishing equipment and supplies,0,192.75,192.75,21-Mar-11,TBC
Nottinghamshire County Council,12-05371,TUBES FITTINGS VALVES LIMITED,Facilities Management,Facilities Management,Plumbing services,0,0.01,0.01,14-Mar-11,TBC
Nottinghamshire County Council,12-05392,BCB COATED STONE LIMITED,Facilities Management,Facilities Management,Highways & Works,0,-0.01,-0.01,14-Mar-11,TBC
Nottinghamshire County Council,12-05398,ENNSTONE JOHNSTON LIMITED,External Services,External Services,Earth and stone,0,0.01,0.01,16-Mar-11,TBC
Nottinghamshire County Council,12-05418,BRITISH GAS TRADING LIMITED,Facilities Management,Facilities Management,Utilities,0,-0.02,-0.02,07-Mar-11,TBC
Nottinghamshire County Council,12-05439,BARDON AGGREGATES,Facilities Management,Facilities Management,Masonry and stonework services,0,-131.38,-131.38,10-Mar-11,TBC
Nottinghamshire County Council,12-05440,BARDON AGGREGATES,Facilities Management,Facilities Management,Masonry and stonework services,0,-124.28,-124.28,10-Mar-11,TBC
Nottinghamshire County Council,12-05441,BARDON AGGREGATES,Facilities Management,Facilities Management,Masonry and stonework services,0,-62.55,-62.55,10-Mar-11,TBC
Nottinghamshire County Council,12-05443,ENNSTONE JOHNSTON LIMITED,External Services,External Services,Earth and stone,0,0.02,0.02,23-Mar-11,TBC
Nottinghamshire County Council,12-05448,EXPRESS ASPHALT LIMITED,Facilities Management,Facilities Management,Highways & Works,0,-0.01,-0.01,14-Mar-11,TBC
Nottinghamshire County Council,12-05461,NORTHCLIFFE MEDIA LIMITED,Facilities Management,Facilities Management,Printed media and Signage,0,-0.02,-0.02,09-Mar-11,TBC
Nottinghamshire County Council,12-05462,NORTHCLIFFE MEDIA LIMITED,Facilities Management,Facilities Management,Printed media and Signage,0,-0.02,-0.02,09-Mar-11,TBC
Nottinghamshire County Council,12-05467,TOTAL UK LIMITED,Transport & Travel,Transport & Travel,Gas fuels and lubricants ,0,-0.02,-0.02,08-Mar-11,TBC
Nottinghamshire County Council,12-05476,SPECIALIST COMPUTER CENTRES LIMITED,ICT,ICT,Computer services,0,0.01,0.01,29-Mar-11,TBC
Nottinghamshire County Council,12-05482,TRANS UK SUPPLIES LIMITED,ICT,ICT,Printing and publishing equipment and supplies,0,-0.01,-0.01,09-Mar-11,TBC
Nottinghamshire County Council,12-05961,BRITISH GAS TRADING LIMITED,Facilities Management,Facilities Management,Utilities,0,0.11,0.11,09-Mar-11,TBC
Nottinghamshire County Council,12-06183,DAWSON RENTALS PORTABLE COLD STORAGE LIMITED,Facilities Management,Facilities Management,Vending Machines and Food Equipment,0,-0.01,-0.01,10-Mar-11,TBC
Nottinghamshire County Council,12-06195,EXPRESS ASPHALT LIMITED,Facilities Management,Facilities Management,Highways & Works,0,0.01,0.01,16-Mar-11,TBC
Nottinghamshire County Council,12-06197,INSTARMAC LIMITED,Facilities Management,Facilities Management,Highways & Works,0,-0.01,-0.01,10-Mar-11,TBC
Nottinghamshire County Council,12-06226,D TOWLE CONSTRUCTION,Facilities Management,Facilities Management,Building construction services,0,-0.8,-0.8,23-Mar-11,TBC
Nottinghamshire County Council,12-06239,LEX AUTOLEASE LIMITED,Transport & Travel,Transport & Travel,Motor vehicles,0,-0.01,-0.01,14-Mar-11,TBC
Nottinghamshire County Council,12-06240,LEX AUTOLEASE LIMITED,Transport & Travel,Transport & Travel,Motor vehicles,0,-0.01,-0.01,22-Mar-11,TBC
Nottinghamshire County Council,12-06326,LEES PLUMBING & HEATING,Facilities Management,Facilities Management,Plumbing services,0,548.8,548.8,15-Mar-11,TBC
Nottinghamshire County Council,12-06344,CENTRAL WASTE (UK) LIMITED,External Services,External Services,Scrap and waste materials,0,0.01,0.01,23-Mar-11,TBC
Nottinghamshire County Council,12-06390,TUBES FITTINGS VALVES LIMITED,Facilities Management,Facilities Management,Plumbing services,0,0.01,0.01,23-Mar-11,TBC
Nottinghamshire County Council,12-06392,TUBES FITTINGS VALVES LIMITED,Facilities Management,Facilities Management,Plumbing services,0,-0.01,-0.01,23-Mar-11,TBC
Nottinghamshire County Council,12-06393,TUBES FITTINGS VALVES LIMITED,Facilities Management,Facilities Management,Plumbing services,0,0.01,0.01,25-Mar-11,TBC
Nottinghamshire County Council,12-06397,TUBES FITTINGS VALVES LIMITED,Facilities Management,Facilities Management,Plumbing services,0,-0.02,-0.02,23-Mar-11,TBC
Nottinghamshire County Council,12-06506,BRAKE BROS LIMITED,Facilities Management,Facilities Management,Prepared and preserved foods,0,-0.02,-0.02,11-Mar-11,TBC
Nottinghamshire County Council,12-06604,EARTH SQUARED LIMITED,Facilities Management,Facilities Management,Clothing,0,0.01,0.01,29-Mar-11,TBC
Nottinghamshire County Council,12-06638,BARRA INTERNATIONAL LIMITED,Professional Services,Professional Services,Financial and Insurance Services,0,-0.01,-0.01,15-Mar-11,TBC
Nottinghamshire County Council,12-06643,CARDEA,Care,Care,Healthcare Services,0,214.49,214.49,22-Mar-11,TBC
Nottinghamshire County Council,12-06648,FASTRAC RESOURCING SOLUTIONS LIMITED,People,People,Recruitment,0,31.02,31.02,29-Mar-11,TBC
Nottinghamshire County Council,12-06674,APSE,Professional Services,Professional Services,Politics and Civic Affairs,0,-0.01,-0.01,14-Mar-11,TBC
Nottinghamshire County Council,12-06675,C P ASSET MANAGEMENT LIMITED,Facilities Management,Facilities Management,Security,0,173.7,173.7,14-Mar-11,TBC
Nottinghamshire County Council,12-06764,EXPRESS ASPHALT LIMITED,Facilities Management,Facilities Management,Highways & Works,0,-0.01,-0.01,23-Mar-11,TBC
Nottinghamshire County Council,12-06766,INPLACE PERSONNEL SERVICES LIMITED,People,People,Recruitment,0,0.01,0.01,15-Mar-11,TBC
Nottinghamshire County Council,12-06771,CUSTOM GROUP LIMITED,Facilities Management,Facilities Management,Furniture and Furnishings,0,137.16,137.16,15-Mar-11,TBC
Nottinghamshire County Council,12-06773,MARK STAFFORD STONE MASONRY,Facilities Management,Facilities Management,Masonry and stonework services,0,300,300,15-Mar-11,TBC
Nottinghamshire County Council,12-06775,SLACK & CO FLOORCOVERINGS,Facilities Management,Facilities Management,Furniture and Furnishings,0,337.2,337.2,15-Mar-11,TBC
Nottinghamshire County Council,12-06776,MESSAGEMAKER DISPLAYS LIMITED,Professional Services,Professional Services,Marketing and distribution,0,-94,-94,18-Mar-11,TBC
Nottinghamshire County Council,12-06777,LEGAL COURIER SERVICES,Facilities Management,Facilities Management,Mail and Couriers,0,229.77,229.77,15-Mar-11,TBC
Nottinghamshire County Council,12-06778,UNIVERSAL LOCUMS,People,People,Recruitment,0,197.75,197.75,15-Mar-11,TBC
Nottinghamshire County Council,12-06779,PRICE GLAZING LIMITED,External Services,External Services,Building and Construction Supplies,0,91.65,91.65,15-Mar-11,TBC
Nottinghamshire County Council,12-06781,ELECT INSTALL & APPLIANCE TEST UK LIMITED,Facilities Management,Facilities Management,Electrical Systems & Lighting,0,695.9,695.9,29-Mar-11,TBC
Nottinghamshire County Council,12-06785,CARTER BROWN ASSOCIATES,Professional Services,Professional Services,Legal services,0,86,86,15-Mar-11,TBC
Nottinghamshire County Council,12-06786,DX NETWORK SERVICES LIMITED,Facilities Management,Facilities Management,Mail and Couriers,0,"1,718.67","1,718.67",15-Mar-11,TBC
Nottinghamshire County Council,12-06787,KONICA MINOLTA,ICT,ICT,Printing and publishing equipment and supplies,0,184.26,184.26,15-Mar-11,TBC
Nottinghamshire County Council,12-06788,SELLICK PARTNERSHIP (LEGAL) LIMITED,Professional Services,Professional Services,Legal services,0,384.1,384.1,15-Mar-11,TBC
Nottinghamshire County Council,12-06789,NOTTINGHAM SECURITY LIMITED,Facilities Management,Facilities Management,Security,0,123.55,123.55,15-Mar-11,TBC
Nottinghamshire County Council,12-06790,COMMERCIAL SURFACE SOLUTIONS,Facilities Management,Facilities Management,Cleaning Equipment and Janitorial Supplies,0,369.2,369.2,24-Mar-11,TBC
Nottinghamshire County Council,12-06791,R P HUNT SERVICES,External Services,External Services,Manufacturing Machinery,0,188,188,15-Mar-11,TBC
Nottinghamshire County Council,12-06792,R P HUNT SERVICES,External Services,External Services,Manufacturing Machinery,0,150,150,15-Mar-11,TBC
Nottinghamshire County Council,12-06794,DIAL A ROD,Facilities Management,Facilities Management,Plumbing services,0,142.4,142.4,15-Mar-11,TBC
Nottinghamshire County Council,12-06796,WARD FENCING LIMITED,Facilities Management,Facilities Management,Building construction services,0,270,270,15-Mar-11,TBC
Nottinghamshire County Council,12-06797,FORMATION TRAINING CAMP DEVELOPMENT LIMITED,People,People,Vocational training,0,325,325,31-Mar-11,TBC
Nottinghamshire County Council,12-06798,NOTTINGHAM RACECOURSE,Transport & Travel,Transport & Travel,Hotels and Venues,0,116.75,116.75,15-Mar-11,TBC
Nottinghamshire County Council,12-06799,FORMATION TRAINING CAMP DEVELOPMENT LIMITED,People,People,Vocational training,0,"1,300.00","1,300.00",31-Mar-11,TBC
Nottinghamshire County Council,12-06800,B & A CHAMBERLAIN LIMITED,Transport & Travel,Transport & Travel,Fleet Maintenance Services,0,208,208,29-Mar-11,TBC
Nottinghamshire County Council,12-06813,7KS CORPORATE & FINANCE,Care,Care,Infant or Child Daycare Services,0,452.12,452.12,15-Mar-11,TBC
Nottinghamshire County Council,12-06867,TARMAC CENTRAL LIMITED,Facilities Management,Facilities Management,Highways & Works,0,-0.01,-0.01,30-Mar-11,TBC
Nottinghamshire County Council,12-06869,TARMAC CENTRAL LIMITED,Facilities Management,Facilities Management,Highways & Works,0,-0.01,-0.01,30-Mar-11,TBC
Nottinghamshire County Council,12-07513,ENNSTONE JOHNSTON LIMITED,External Services,External Services,Earth and stone,0,0.01,0.01,23-Mar-11,TBC
Nottinghamshire County Council,12-07514,ENNSTONE JOHNSTON LIMITED,External Services,External Services,Earth and stone,0,-0.01,-0.01,23-Mar-11,TBC
Nottinghamshire County Council,12-07515,ENNSTONE JOHNSTON LIMITED,External Services,External Services,Earth and stone,0,-0.01,-0.01,23-Mar-11,TBC
Nottinghamshire County Council,12-07522,ENNSTONE JOHNSTON LIMITED,External Services,External Services,Earth and stone,0,-0.01,-0.01,23-Mar-11,TBC
Nottinghamshire County Council,12-07540,MESSERS ROYTHORNES,Professional Services,Professional Services,Legal services,0,-6.79,-6.79,15-Mar-11,TBC
Nottinghamshire County Council,12-07541,MALCOLM LANE & SON LIMITED,External Services,External Services,Education Services,0,270,270,16-Mar-11,TBC
Nottinghamshire County Council,12-07542,MALCOLM LANE & SON LIMITED,External Services,External Services,Education Services,0,270,270,16-Mar-11,TBC
Nottinghamshire County Council,12-07544,MALCOLM LANE & SON LIMITED,External Services,External Services,Education Services,0,232.8,232.8,16-Mar-11,TBC
Nottinghamshire County Council,12-07546,MALCOLM LANE & SON LIMITED,External Services,External Services,Education Services,0,250.4,250.4,16-Mar-11,TBC
Nottinghamshire County Council,12-07547,MALCOLM LANE & SON LIMITED,External Services,External Services,Education Services,0,270,270,16-Mar-11,TBC
Nottinghamshire County Council,12-07548,MALCOLM LANE & SON LIMITED,External Services,External Services,Education Services,0,275.2,275.2,16-Mar-11,TBC
Nottinghamshire County Council,12-07549,MALCOLM LANE & SON LIMITED,External Services,External Services,Education Services,0,246.2,246.2,16-Mar-11,TBC
Nottinghamshire County Council,12-07571,OCTAGON DESIGN & MARKETING LIMITED,Professional Services,Professional Services,Marketing and distribution,0,99.8,99.8,16-Mar-11,TBC
Nottinghamshire County Council,12-07585,BOUGHTON PUMPING STATION (SERVICES)LIMITED,Transport & Travel,Transport & Travel,Gas fuels and lubricants ,0,110,110,16-Mar-11,TBC
Nottinghamshire County Council,12-07596,OUTCOMES UK,People,People,Recruitment,0,"1,197.52","1,197.52",16-Mar-11,TBC
Nottinghamshire County Council,12-07610,WISHTRAC HOUSE LIMITED,ICT,ICT,Software,0,92.57,92.57,16-Mar-11,TBC
Nottinghamshire County Council,12-07747,JACKSON BUILDING CENTRES LIMITED,External Services,External Services,Building and Construction Supplies,0,-0.01,-0.01,28-Mar-11,TBC
Nottinghamshire County Council,12-07748,CARDEA,Care,Care,Healthcare Services,0,262.7,262.7,18-Mar-11,TBC
Nottinghamshire County Council,12-07768,W T BURDEN LIMITED,External Services,External Services,Building and Construction Supplies,0,143.4,143.4,17-Mar-11,TBC
Nottinghamshire County Council,12-07792,STAFFLINE RECRUITMENT LIMITED,People,People,Vocational training,0,-0.01,-0.01,23-Mar-11,TBC
Nottinghamshire County Council,12-07822,M2 TRAINING,Transport & Travel,Transport & Travel,Fleet Maintenance Services,0,120,120,18-Mar-11,TBC
Nottinghamshire County Council,12-07823,M2 TRAINING,Transport & Travel,Transport & Travel,Fleet Maintenance Services,0,160,160,18-Mar-11,TBC
Nottinghamshire County Council,12-07826,CAPITA,Professional Services,Professional Services,Consultancy,0,"4,000.00","4,000.00",17-Mar-11,TBC
Nottinghamshire County Council,12-07845,CIVICA UK LIMITED,ICT,ICT,Networking,0,-0.01,-0.01,17-Mar-11,TBC
Nottinghamshire County Council,12-07878,BRAKE BROS LIMITED,Facilities Management,Facilities Management,Prepared and preserved foods,0,-0.01,-0.01,17-Mar-11,TBC
Nottinghamshire County Council,12-07886,CREME D'OR,Facilities Management,Facilities Management,Prepared and preserved foods,0,-0.01,-0.01,17-Mar-11,TBC
Nottinghamshire County Council,12-07898,BRITISH TELECOMMUNICATIONS PLC,ICT,ICT,Telecommunications & Media,0,-0.01,-0.01,21-Mar-11,TBC
Nottinghamshire County Council,12-07924,BRAKE BROS LIMITED,Facilities Management,Facilities Management,Prepared and preserved foods,0,-0.01,-0.01,17-Mar-11,TBC
Nottinghamshire County Council,12-07926,FARMHOUSE SPECIALITY FOODS,Facilities Management,Facilities Management,Prepared and preserved foods,0,0.03,0.03,17-Mar-11,TBC
Nottinghamshire County Council,12-07956,ROBERT TAUBMAN LIMITED,Professional Services,Professional Services,Professional artists and performers,0,0.02,0.02,18-Mar-11,TBC
Nottinghamshire County Council,12-08122,CRANTON ELECTRICAL CO LIMITED,Facilities Management,Facilities Management,Electrical Systems & Lighting,0,-0.01,-0.01,23-Mar-11,TBC
Nottinghamshire County Council,12-08298,BRIGHT IDEAS MARKETING LIMITED,Professional Services,Professional Services,Marketing and distribution,0,-0.01,-0.01,23-Mar-11,TBC
Nottinghamshire County Council,12-08355,CALOR GAS LIMITED,External Services,External Services,Chemicals & Gases,0,-120.19,-120.19,24-Mar-11,TBC
Nottinghamshire County Council,12-08385,C R PITCHFORK PLANT HIRE,External Services,External Services,Construction Plant and Equipment,0,0.6,0.6,21-Mar-11,TBC
Nottinghamshire County Council,12-08415,COOKCO LIMITED,Facilities Management,Facilities Management,Vending Machines and Food Equipment,0,411,411,21-Mar-11,TBC
Nottinghamshire County Council,12-08418,COOKCO LIMITED,Facilities Management,Facilities Management,Vending Machines and Food Equipment,0,276,276,21-Mar-11,TBC
Nottinghamshire County Council,12-08419,GEORGES CONTRACTORS LIMITED,Facilities Management,Facilities Management,Building construction services,0,"1,390.00","1,390.00",21-Mar-11,TBC
Nottinghamshire County Council,12-08420,GEORGES CONTRACTORS LIMITED,Facilities Management,Facilities Management,Building construction services,0,892,892,21-Mar-11,TBC
Nottinghamshire County Council,12-08606,CORONA ENERGY RETAIL LIMITED,Facilities Management,Facilities Management,Utilities,0,0.08,0.08,30-Mar-11,TBC
Nottinghamshire County Council,12-08619,BCB COATED STONE LIMITED,Facilities Management,Facilities Management,Highways & Works,0,0.01,0.01,23-Mar-11,TBC
Nottinghamshire County Council,12-08629,ENNSTONE JOHNSTON LIMITED,External Services,External Services,Earth and stone,0,0.01,0.01,24-Mar-11,TBC
Nottinghamshire County Council,12-08635,ENNSTONE JOHNSTON LIMITED,External Services,External Services,Earth and stone,0,0.01,0.01,23-Mar-11,TBC
Nottinghamshire County Council,12-08639,ENNSTONE JOHNSTON LIMITED,External Services,External Services,Earth and stone,0,-0.02,-0.02,23-Mar-11,TBC
Nottinghamshire County Council,12-08691,WASTECYCLE LIMITED,External Services,External Services,Scrap and waste materials,0,0.01,0.01,25-Mar-11,TBC
Nottinghamshire County Council,12-08806,FREQUENCY PRECISION LIMITED,TBC,TBC,TBC,0,306,306,23-Mar-11,TBC
Nottinghamshire County Council,12-08808,J M COUNTRYSIDE LANDSCAPES,External Services,External Services,Farming Forestry and Wildlife Services,0,349,349,23-Mar-11,TBC
Nottinghamshire County Council,12-08809,NORTH NOTTINGHAMSHIRE LANDSCAPES,External Services,External Services,Farming Forestry and Wildlife Services,0,360,360,23-Mar-11,TBC
Nottinghamshire County Council,12-08811,RECRUITMENT SPECIALIST GROUP LIMITED,People,People,Recruitment,0,352.09,352.09,30-Mar-11,TBC
Nottinghamshire County Council,12-08812,RECRUITMENT SPECIALIST GROUP LIMITED,People,People,Recruitment,0,352.09,352.09,30-Mar-11,TBC
Nottinghamshire County Council,12-08813,KB RECRUITMENT LIMITED,People,People,Vocational training,0,108.88,108.88,23-Mar-11,TBC
Nottinghamshire County Council,12-08814,MAKING IT! ENTERPRISES LIMITED,External Services,External Services,Sports and Recreational Equipment and Supplies,0,191.74,191.74,23-Mar-11,TBC
Nottinghamshire County Council,12-08815,NORTHERN RECRUITMENT GROUP,People,People,Vocational training,0,115.66,115.66,23-Mar-11,TBC
Nottinghamshire County Council,12-08816,SANCTUARY PERSONNEL LIMITED,Facilities Management,Facilities Management,Cleaning Equipment and Janitorial Supplies,0,346.77,346.77,23-Mar-11,TBC
Nottinghamshire County Council,12-08817,SPECIALIST COMPUTER CENTRES LIMITED,ICT,ICT,Computer services,0,"22,599.54","22,599.54",23-Mar-11,TBC
Nottinghamshire County Council,12-08819,CAPITA SOCIAL CARE & HOUSING,Care,Care,Domiciliary Care,0,96.53,96.53,23-Mar-11,TBC
Nottinghamshire County Council,12-08825,NEWSTEAD MINERS WELFARE TRUST,Professional Services,Professional Services,Politics and Civic Affairs,0,116,116,23-Mar-11,TBC
Nottinghamshire County Council,12-08826,@HOME CHILDCARE LIMITED,Care,Care,Infant or Child Daycare Services,0,"1,170.00","1,170.00",23-Mar-11,TBC
Nottinghamshire County Council,12-08828,CARTER BROWN ASSOCIATES,Professional Services,Professional Services,Legal services,0,143.7,143.7,23-Mar-11,TBC
Nottinghamshire County Council,12-08829,BUTLER & WILLOW LIMITED,Facilities Management,Facilities Management,Office Supplies and Machines (non IT),0,182.6,182.6,24-Mar-11,TBC
Nottinghamshire County Council,12-08830,NDE CONSULTANTS,Professional Services,Professional Services,Consultancy,0,380,380,23-Mar-11,TBC
Nottinghamshire County Council,12-08831,NDE CONSULTANTS,Professional Services,Professional Services,Consultancy,0,550,550,23-Mar-11,TBC
Nottinghamshire County Council,12-08832,NDE CONSULTANTS,Professional Services,Professional Services,Consultancy,0,985,985,23-Mar-11,TBC
Nottinghamshire County Council,12-08833,OTR LIMITED,Professional Services,Professional Services,Consultancy,0,464,464,23-Mar-11,TBC
Nottinghamshire County Council,12-08834,VEOLIA ENVIRONMENTAL SERVICES,External Services,External Services,Scrap and waste materials,0,88.9,88.9,23-Mar-11,TBC
Nottinghamshire County Council,12-08835,TNT POST UK LIMITED,Facilities Management,Facilities Management,Mail and Couriers,0,119.05,119.05,23-Mar-11,TBC
Nottinghamshire County Council,12-08839,DAVID HAMMOND CHARTERED SURVEYORS,Professional Services,Professional Services,Professional Engineering ,0,173.2,173.2,28-Mar-11,TBC
Nottinghamshire County Council,12-08840,COUNTRYSIDE TRAINING & TREE MANAGEMENT,People,People,Vocational training,0,860,860,23-Mar-11,TBC
Nottinghamshire County Council,12-08841,OTR LIMITED,Professional Services,Professional Services,Consultancy,0,380,380,23-Mar-11,TBC
Nottinghamshire County Council,12-08842,COUNTRYSIDE TRAINING & TREE MANAGEMENT,People,People,Vocational training,0,750,750,23-Mar-11,TBC
Nottinghamshire County Council,12-08843,W K W TREE SERVICES,External Services,External Services,Farming Forestry and Wildlife Services,0,811.8,811.8,23-Mar-11,TBC
Nottinghamshire County Council,12-08846,KB RECRUITMENT LIMITED,People,People,Vocational training,0,187.59,187.59,23-Mar-11,TBC
Nottinghamshire County Council,12-08847,G4S SECURITY SERVICES (UK) LIMITED,Facilities Management,Facilities Management,Security,0,320,320,30-Mar-11,TBC
Nottinghamshire County Council,12-08848,G4S SECURITY SERVICES (UK) LIMITED,Facilities Management,Facilities Management,Security,0,160,160,29-Mar-11,TBC
Nottinghamshire County Council,12-08849,CAPITA SOCIAL CARE & HOUSING,Care,Care,Domiciliary Care,0,134.09,134.09,24-Mar-11,TBC
Nottinghamshire County Council,12-08850,FRONTLINE,Facilities Management,Facilities Management,Plumbing services,0,179.51,179.51,31-Mar-11,TBC
Nottinghamshire County Council,12-08851,FRONTLINE,Facilities Management,Facilities Management,Plumbing services,0,295.19,295.19,24-Mar-11,TBC
Nottinghamshire County Council,12-08852,@HOME CHILDCARE LIMITED,Care,Care,Infant or Child Daycare Services,0,"2,200.00","2,200.00",23-Mar-11,TBC
Nottinghamshire County Council,12-08854,THE HAY GROUP MANAGEMENT LIMITED,Professional Services,Professional Services,Consultancy,0,"4,603.73","4,603.73",23-Mar-11,TBC
Nottinghamshire County Council,12-08855,L R MEES LIMITED(COTGRAVE),TBC,TBC,TBC,0,131.29,131.29,23-Mar-11,TBC
Nottinghamshire County Council,12-08856,SWIIS (UK) LIMITED,People,People,Agency Staff - Care,0,105.77,105.77,23-Mar-11,TBC
Nottinghamshire County Council,12-08857,STATIONERY OFFICE-BUSINESS SUPPLIES,Facilities Management,Facilities Management,Office Supplies and Machines (non IT),0,312.75,312.75,23-Mar-11,TBC
Nottinghamshire County Council,12-08858,EDEN BROWN LIMITED,People,People,Recruitment,0,421.8,421.8,23-Mar-11,TBC
Nottinghamshire County Council,12-08860,SANCTUARY PERSONNEL LIMITED,Facilities Management,Facilities Management,Cleaning Equipment and Janitorial Supplies,0,332.94,332.94,23-Mar-11,TBC
Nottinghamshire County Council,12-08930,ALAN RANSOME SPORTING GOODS GROUP LIMITED,External Services,External Services,Sports and Recreational Equipment and Supplies,0,-4.9,-4.9,24-Mar-11,TBC
Nottinghamshire County Council,12-09159,CREME D'OR,Facilities Management,Facilities Management,Prepared and preserved foods,0,0.03,0.03,24-Mar-11,TBC
Nottinghamshire County Council,12-09168,EASTPOINT,People,People,Vocational training,0,0.01,0.01,25-Mar-11,TBC
Nottinghamshire County Council,12-09169,CARDEA,Care,Care,Healthcare Services,0,204.13,204.13,24-Mar-11,TBC
Nottinghamshire County Council,12-09179,PREMIERE POLISH COMPANY LIMITED,Facilities Management,Facilities Management,Cleaning Equipment and Janitorial Supplies,0,0.01,0.01,25-Mar-11,TBC
Nottinghamshire County Council,12-09181,QC SUPPLIES LIMITED,Facilities Management,Facilities Management,Office Supplies and Machines (non IT),0,-0.01,-0.01,25-Mar-11,TBC
Nottinghamshire County Council,12-09231,BRAKE BROS LIMITED,Facilities Management,Facilities Management,Prepared and preserved foods,0,-0.01,-0.01,25-Mar-11,TBC
Nottinghamshire County Council,12-09232,BRAKE BROS LIMITED,Facilities Management,Facilities Management,Prepared and preserved foods,0,-0.05,-0.05,25-Mar-11,TBC
Nottinghamshire County Council,12-09393,SODEXO PRESTIGE LIMITED,Facilities Management,Facilities Management,Vending Machines and Food Equipment,0,336.6,336.6,25-Mar-11,TBC
Nottinghamshire County Council,12-09394,CARDEA,Care,Care,Healthcare Services,0,124.6,124.6,25-Mar-11,TBC
Nottinghamshire County Council,12-09397,THE HELPING HAND COMPANY (LEDBURY) LIMITED,Care,Care,Domiciliary Care,0,787,787,25-Mar-11,TBC
Nottinghamshire County Council,12-09408,REGATTA LIMITED,Facilities Management,Facilities Management,Clothing,0,0.05,0.05,25-Mar-11,TBC
Nottinghamshire County Council,12-09473,EXPRESS ASPHALT LIMITED,Facilities Management,Facilities Management,Highways & Works,0,0.01,0.01,30-Mar-11,TBC
Nottinghamshire County Council,12-09477,MECAPLASTIC UK LIMITED,External Services,External Services,Building and Construction Supplies,0,-0.01,-0.01,28-Mar-11,TBC
Nottinghamshire County Council,12-09574,CAPITA SOCIAL CARE & HOUSING,Care,Care,Domiciliary Care,0,119.12,119.12,28-Mar-11,TBC
Nottinghamshire County Council,12-09575,CAPITA SOCIAL CARE & HOUSING,Care,Care,Domiciliary Care,0,113.52,113.52,31-Mar-11,TBC
Nottinghamshire County Council,12-09576,CAPITA SOCIAL CARE & HOUSING,Care,Care,Domiciliary Care,0,123.6,123.6,31-Mar-11,TBC
Nottinghamshire County Council,12-09577,CAPITA SOCIAL CARE & HOUSING,Care,Care,Domiciliary Care,0,135.9,135.9,31-Mar-11,TBC
Nottinghamshire County Council,12-09578,CAPITA SOCIAL CARE & HOUSING,Care,Care,Domiciliary Care,0,120.56,120.56,31-Mar-11,TBC
Nottinghamshire County Council,12-09579,CAPITA SOCIAL CARE & HOUSING,Care,Care,Domiciliary Care,0,110.45,110.45,31-Mar-11,TBC
Nottinghamshire County Council,12-09580,CAPITA SOCIAL CARE & HOUSING,Care,Care,Domiciliary Care,0,123.44,123.44,31-Mar-11,TBC
Nottinghamshire County Council,12-09581,CAPITA SOCIAL CARE & HOUSING,Care,Care,Domiciliary Care,0,117.68,117.68,31-Mar-11,TBC
Nottinghamshire County Council,12-09582,CAPITA SOCIAL CARE & HOUSING,Care,Care,Domiciliary Care,0,117.84,117.84,31-Mar-11,TBC
Nottinghamshire County Council,12-09583,SOUTH FOREST LEISURE CENTRE,Transport & Travel,Transport & Travel,Hotels and Venues,0,133.5,133.5,28-Mar-11,TBC
Nottinghamshire County Council,12-09584,DODDS & PARTNERS,Care,Care,Medical Equipment and  Supplies,0,183.74,183.74,28-Mar-11,TBC
Nottinghamshire County Council,12-09585,WILSON ELECTRICS,Facilities Management,Facilities Management,Electrical Systems & Lighting,0,84.53,84.53,28-Mar-11,TBC
Nottinghamshire County Council,12-09586,DODDS & PARTNERS,Care,Care,Medical Equipment and  Supplies,0,99.04,99.04,28-Mar-11,TBC
Nottinghamshire County Council,12-09587,INCLUSIVE TECHNOLOGY,ICT,ICT,Software,0,172.4,172.4,28-Mar-11,TBC
Nottinghamshire County Council,12-09588,BUTLER & WILLOW LIMITED,Facilities Management,Facilities Management,Office Supplies and Machines (non IT),0,"2,128.80","2,128.80",28-Mar-11,TBC
Nottinghamshire County Council,12-09589,REED EMPLOYMENT PLC,People,People,Vocational training,0,211.2,211.2,28-Mar-11,TBC
Nottinghamshire County Council,12-09590,REED EMPLOYMENT PLC,People,People,Vocational training,0,217.6,217.6,28-Mar-11,TBC
Nottinghamshire County Council,12-09591,REED EMPLOYMENT PLC,People,People,Vocational training,0,201.6,201.6,28-Mar-11,TBC
Nottinghamshire County Council,12-09592,REED EMPLOYMENT PLC,People,People,Vocational training,0,206.4,206.4,28-Mar-11,TBC
Nottinghamshire County Council,12-09593,REED EMPLOYMENT PLC,People,People,Vocational training,0,256,256,28-Mar-11,TBC
Nottinghamshire County Council,12-09594,CAPITA SOCIAL CARE & HOUSING,Care,Care,Domiciliary Care,0,110.18,110.18,31-Mar-11,TBC
Nottinghamshire County Council,12-09595,CAPITA SOCIAL CARE & HOUSING,Care,Care,Domiciliary Care,0,118.42,118.42,31-Mar-11,TBC
Nottinghamshire County Council,12-09596,CAPITA SOCIAL CARE & HOUSING,Care,Care,Domiciliary Care,0,166.96,166.96,28-Mar-11,TBC
Nottinghamshire County Council,12-09597,KB RECRUITMENT LIMITED,People,People,Vocational training,0,146.16,146.16,28-Mar-11,TBC
Nottinghamshire County Council,12-09598,ISC NETWORKS LIMITED,ICT,ICT,Networking,0,"20,800.00","20,800.00",28-Mar-11,TBC
Nottinghamshire County Council,12-09599,CAPITA SOCIAL CARE & HOUSING,Care,Care,Domiciliary Care,0,122.09,122.09,31-Mar-11,TBC
Nottinghamshire County Council,12-09602,WESCO,Facilities Management,Facilities Management,Building construction services,0,105.9,105.9,28-Mar-11,TBC
Nottinghamshire County Council,12-09604,NAS SERVICES LIMITED,Care,TBC,TBC,0,"3,443.19","3,443.19",28-Mar-11,TBC
Nottinghamshire County Council,12-09606,CDPSOFT,TBC,TBC,TBC,0,"1,730.56","1,730.56",29-Mar-11,TBC
Nottinghamshire County Council,12-09607,EDC (NOTTINGHAM) LIMITED,People,People,Recruitment,0,704.6,704.6,28-Mar-11,TBC
Nottinghamshire County Council,12-09609,FREETH CARTWRIGHT SOLICITORS,Professional Services,Professional Services,Legal services,0,148.5,148.5,28-Mar-11,TBC
Nottinghamshire County Council,12-09610,G2 SPEECH UK LIMITED,TBC,TBC,TBC,0,373.58,373.58,28-Mar-11,TBC
Nottinghamshire County Council,12-09611,FREETH CARTWRIGHT SOLICITORS,Professional Services,Professional Services,Legal services,0,93,93,28-Mar-11,TBC
Nottinghamshire County Council,12-09612,CAPITA,Professional Services,Professional Services,Consultancy,0,112.37,112.37,28-Mar-11,TBC
Nottinghamshire County Council,12-09613,WEIGHTMANS LLP,Professional Services,Professional Services,Legal services,0,87,87,28-Mar-11,TBC
Nottinghamshire County Council,12-09614,MARK STAFFORD STONE MASONRY,Facilities Management,Facilities Management,Masonry and stonework services,0,"1,998.00","1,998.00",28-Mar-11,TBC
Nottinghamshire County Council,12-09616,OUTCOMES UK,People,People,Recruitment,0,"1,176.32","1,176.32",28-Mar-11,TBC
Nottinghamshire County Council,12-09617,CALANDINE LIFTS LIMITED,External Services,External Services,Manufacturing Machinery,0,100.36,100.36,28-Mar-11,TBC
Nottinghamshire County Council,12-09618,PHS GROUP PLC,Facilities Management,Facilities Management,Cleaning Equipment and Janitorial Supplies,0,96.46,96.46,28-Mar-11,TBC
Nottinghamshire County Council,12-09619,ADVANTAGE HEALTHCARE NURSING &CARE LIMITED,Care,Care,Healthcare Services,0,264.55,264.55,28-Mar-11,TBC
Nottinghamshire County Council,12-09620,ADVANTAGE HEALTHCARE NURSING &CARE LIMITED,Care,Care,Healthcare Services,0,264.55,264.55,28-Mar-11,TBC
Nottinghamshire County Council,12-09621,ADVANTAGE HEALTHCARE NURSING &CARE LIMITED,Care,Care,Healthcare Services,0,340.2,340.2,28-Mar-11,TBC
Nottinghamshire County Council,12-09622,ADVANTAGE HEALTHCARE NURSING &CARE LIMITED,Care,Care,Healthcare Services,0,474.6,474.6,28-Mar-11,TBC
Nottinghamshire County Council,12-09623,P S MARSDEN LIMITED,Professional Services,Professional Services,Professional engineering services,0,214.74,214.74,28-Mar-11,TBC
Nottinghamshire County Council,12-09624,HOUSING & SUPPORT PARTNERSHIP,Care,Care,Residential Care,0,"3,020.00","3,020.00",28-Mar-11,TBC
Nottinghamshire County Council,12-09626,A4E CONSULT LIMITED,Professional Services,Professional Services,Consultancy,0,"1,044.20","1,044.20",28-Mar-11,TBC
Nottinghamshire County Council,12-09627,KB RECRUITMENT LIMITED,People,People,Vocational training,0,209.99,209.99,28-Mar-11,TBC
Nottinghamshire County Council,12-09630,GEORGES CONTRACTORS LIMITED,Facilities Management,Facilities Management,Building construction services,0,122.5,122.5,28-Mar-11,TBC
Nottinghamshire County Council,12-09654,WASTE RECYCLING GROUP PLC,External Services,External Services,Scrap and waste materials,0,-0.04,-0.04,30-Mar-11,TBC
Nottinghamshire County Council,12-09655,WASTE RECYCLING GROUP PLC,External Services,External Services,Scrap and waste materials,0,0.08,0.08,30-Mar-11,TBC
Nottinghamshire County Council,12-09656,WASTE RECYCLING GROUP PLC,External Services,External Services,Scrap and waste materials,0,-0.04,-0.04,30-Mar-11,TBC
Nottinghamshire County Council,12-09665,ENNSTONE JOHNSTON LIMITED,External Services,External Services,Earth and stone,0,0.01,0.01,29-Mar-11,TBC
Nottinghamshire County Council,12-09667,ENNSTONE JOHNSTON LIMITED,External Services,External Services,Earth and stone,0,0.01,0.01,29-Mar-11,TBC
Nottinghamshire County Council,12-09697,SQUIDCARD LIMITED,Professional Services,Professional Services,Financial and Insurance Services,0,"3,713.60","3,713.60",28-Mar-11,TBC
Nottinghamshire County Council,12-09753,ENERGAS LIMITED,External Services,External Services,Chemicals & Gases,0,-80.72,-80.72,30-Mar-11,TBC
Nottinghamshire County Council,12-09791,SWIIS (UK) LIMITED,People,People,Agency Staff - Care,0,-17.67,-17.67,29-Mar-11,TBC
Nottinghamshire County Council,12-09793,WILLIAM FREER LIMITED,Facilities Management,Facilities Management,Vending Machines and Food Equipment,0,136.8,136.8,29-Mar-11,TBC
Nottinghamshire County Council,12-09794,B N A,People,People,Recruitment,0,96.56,96.56,29-Mar-11,TBC
Nottinghamshire County Council,12-09795,B N A,People,People,Recruitment,0,113.01,113.01,29-Mar-11,TBC
Nottinghamshire County Council,12-09796,B N A,People,People,Recruitment,0,132.67,132.67,29-Mar-11,TBC
Nottinghamshire County Council,12-09797,ACADEMY SOCIAL CARE LIMITED,Care,Care,Domiciliary Care,0,97.86,97.86,29-Mar-11,TBC
Nottinghamshire County Council,12-09798,ALEXANDER LEIGH CONSULTING LIMITED,Professional Services,Professional Services,Consultancy,0,262.4,262.4,29-Mar-11,TBC
Nottinghamshire County Council,12-09799,ALEXANDER LEIGH CONSULTING LIMITED,Professional Services,Professional Services,Consultancy,0,265.69,265.69,29-Mar-11,TBC
Nottinghamshire County Council,12-09800,C P SPORT,TBC,TBC,TBC,0,85,85,29-Mar-11,TBC
Nottinghamshire County Council,12-09801,RECRUITMENT SPECIALIST GROUP LIMITED,People,People,Recruitment,0,352.09,352.09,30-Mar-11,TBC
Nottinghamshire County Council,12-09802,CYCLESCHEME LIMITED,External Services,External Services,Sports and Recreational Equipment and Supplies,0,84.17,84.17,29-Mar-11,TBC
Nottinghamshire County Council,12-09803,RIG SOCIAL CARE (NORTH) LIMITED,Care,Care,Domiciliary Care,0,299.5,299.5,29-Mar-11,TBC
Nottinghamshire County Council,12-09804,KB RECRUITMENT LIMITED,People,People,Vocational training,0,189.86,189.86,29-Mar-11,TBC
Nottinghamshire County Council,12-09805,ACADEMY SOCIAL CARE LIMITED,Care,Care,Domiciliary Care,0,127.85,127.85,29-Mar-11,TBC
Nottinghamshire County Council,12-09806,STRAW & PEARCE SOLICITORS,Professional Services,Professional Services,Legal services,0,408.25,408.25,29-Mar-11,TBC
Nottinghamshire County Council,12-09809,WILLIAM FREER LIMITED,Facilities Management,Facilities Management,Vending Machines and Food Equipment,0,122.35,122.35,29-Mar-11,TBC
Nottinghamshire County Council,12-09810,WILLIAM FREER LIMITED,Facilities Management,Facilities Management,Vending Machines and Food Equipment,0,251.37,251.37,29-Mar-11,TBC
Nottinghamshire County Council,12-09811,WILLIAM FREER LIMITED,Facilities Management,Facilities Management,Vending Machines and Food Equipment,0,159.36,159.36,29-Mar-11,TBC
Nottinghamshire County Council,12-09812,EMERY JOHNSON SOLICITORS,Professional Services,Professional Services,Legal services,0,-0.01,-0.01,29-Mar-11,TBC
Nottinghamshire County Council,12-09814,J P LENNARD LIMITED,TBC,TBC,TBC,0,209.19,209.19,29-Mar-11,TBC
Nottinghamshire County Council,12-09815,BUS SHELTERS LIMITED,Transport & Travel,Transport & Travel,Bus,0,533.15,533.15,29-Mar-11,TBC
Nottinghamshire County Council,12-09816,MEDICARE FIRST,Care,Care,Medical Equipment and  Supplies,0,361.2,361.2,29-Mar-11,TBC
Nottinghamshire County Council,12-09817,EMO OIL LIMITED,Facilities Management,Facilities Management,Utilities,0,258.17,258.17,29-Mar-11,TBC
Nottinghamshire County Council,12-09818,BUS SHELTERS LIMITED,Transport & Travel,Transport & Travel,Bus,0,553.82,553.82,29-Mar-11,TBC
Nottinghamshire County Council,12-09819,ART CLEANING (MIDLANDS) LIMITED,Facilities Management,Facilities Management,Cleaning Equipment and Janitorial Supplies,0,107,107,29-Mar-11,TBC
Nottinghamshire County Council,12-09820,TIMBERLINE LIMITED,External Services,External Services,Sports and Recreational Equipment and Supplies,0,245.8,245.8,29-Mar-11,TBC
Nottinghamshire County Council,12-09822,SHARPE PRITCHARD SOLICITORS,Professional Services,Professional Services,Legal services,0,86.67,86.67,29-Mar-11,TBC
Nottinghamshire County Council,12-09823,TNT POST UK LIMITED,Facilities Management,Facilities Management,Mail and Couriers,0,83.79,83.79,29-Mar-11,TBC
Nottinghamshire County Council,12-09824,PREMIER PETS HOTEL,Transport & Travel,Transport & Travel,Hotels and Venues,0,152.54,152.54,29-Mar-11,TBC
Nottinghamshire County Council,12-09825,KONICA MINOLTA,ICT,ICT,Printing and publishing equipment and supplies,0,114.24,114.24,30-Mar-11,TBC
Nottinghamshire County Council,12-09826,UNIVERSAL LOCUMS,People,People,Recruitment,0,262.5,262.5,29-Mar-11,TBC
Nottinghamshire County Council,12-09827,UNIVERSAL LOCUMS,People,People,Recruitment,0,157.5,157.5,29-Mar-11,TBC
Nottinghamshire County Council,12-09828,EMTIS LIMITED,TBC,TBC,TBC,0,885.71,885.71,29-Mar-11,TBC
Nottinghamshire County Council,12-09829,CARITAS RECRUITMENT,People,People,Vocational training,0,215.73,215.73,31-Mar-11,TBC
Nottinghamshire County Council,12-09833,CHILTERN INVADEX,Care,Care,Medical Equipment and  Supplies,0,438.8,438.8,29-Mar-11,TBC
Nottinghamshire County Council,12-09834,OUTCOMES UK,People,People,Recruitment,0,813.86,813.86,29-Mar-11,TBC
Nottinghamshire County Council,12-09835,A WANDLESS SIGN SERVICES LIMITED,Professional Services,Professional Services,"Reproduction, Photographic and Design Services",0,527.76,527.76,29-Mar-11,TBC
Nottinghamshire County Council,12-09836,CHRIS FEW CONSULTANCY LIMITED,Professional Services,Professional Services,Consultancy,0,391.84,391.84,29-Mar-11,TBC
Nottinghamshire County Council,12-09837,SIEMENS PLC,Facilities Management,Facilities Management,Electrical Systems & Lighting,0,738,738,29-Mar-11,TBC
Nottinghamshire County Council,12-09838,SIEMENS PLC,Facilities Management,Facilities Management,Electrical Systems & Lighting,0,100,100,29-Mar-11,TBC
Nottinghamshire County Council,12-09839,RES TRACTORS,External Services,External Services,Construction Plant and Equipment,0,90,90,29-Mar-11,TBC
Nottinghamshire County Council,12-09840,CAPITA SOCIAL CARE & HOUSING,Care,Care,Domiciliary Care,0,135.28,135.28,29-Mar-11,TBC
Nottinghamshire County Council,12-09841,CAPITA SOCIAL CARE & HOUSING,Care,Care,Domiciliary Care,0,113.52,113.52,29-Mar-11,TBC
Nottinghamshire County Council,12-09843,NOTTINGHAM RACECOURSE,Transport & Travel,Transport & Travel,Hotels and Venues,0,85.5,85.5,29-Mar-11,TBC
Nottinghamshire County Council,12-09844,EDC (NOTTINGHAM) LIMITED,People,People,Recruitment,0,643.2,643.2,29-Mar-11,TBC
Nottinghamshire County Council,12-09850,CREATIVE PLAY UK LTD,External Services,External Services,Arts and crafts,0,"1,079.80","1,079.80",29-Mar-11,TBC
Nottinghamshire County Council,12-09851,SPRING TECHNOLOGY STAFFING SERVICES,People,People,Recruitment,0,208.8,208.8,29-Mar-11,TBC
Nottinghamshire County Council,12-09852,DEF SOFTWARE LIMITED,ICT,ICT,Software,0,851.5,851.5,29-Mar-11,TBC
Nottinghamshire County Council,12-09853,TRINOVA SYSTEMS LIMITED,TBC,TBC,TBC,0,400,400,29-Mar-11,TBC
Nottinghamshire County Council,12-09854,EDC (NOTTINGHAM) LIMITED,People,People,Recruitment,0,811.86,811.86,29-Mar-11,TBC
Nottinghamshire County Council,12-09855,SMARTLOGIC SEMAPHONE LIMITED,ICT,ICT,Software,0,602.41,602.41,29-Mar-11,TBC
Nottinghamshire County Council,12-09856,BUS SHELTERS LIMITED,Transport & Travel,Transport & Travel,Bus,0,0.01,0.01,30-Mar-11,TBC
Nottinghamshire County Council,12-09857,BUS SHELTERS LIMITED,Transport & Travel,Transport & Travel,Bus,0,0.01,0.01,30-Mar-11,TBC
Nottinghamshire County Council,12-09858,BUS SHELTERS LIMITED,Transport & Travel,Transport & Travel,Bus,0,-0.01,-0.01,30-Mar-11,TBC
Nottinghamshire County Council,12-09926,PHILIPS LIGHTING,Facilities Management,Facilities Management,Electrical Systems & Lighting,0,33.39,33.39,30-Mar-11,TBC
Nottinghamshire County Council,12-09927,PHILIPS LIGHTING,Facilities Management,Facilities Management,Electrical Systems & Lighting,0,42.54,42.54,30-Mar-11,TBC
Nottinghamshire County Council,12-13431,KEN BURROWS LIMITED,Facilities Management,Facilities Management,Electrical Systems & Lighting,0,0.01,0.01,31-Mar-11,TBC
Nottinghamshire County Council,12-13436,CARDEA,Care,Care,Healthcare Services,0,147.92,147.92,30-Mar-11,TBC
Nottinghamshire County Council,12-13437,CARDEA,Care,Care,Healthcare Services,0,144.8,144.8,30-Mar-11,TBC
Nottinghamshire County Council,12-13438,CARDEA,Care,Care,Healthcare Services,0,144.64,144.64,30-Mar-11,TBC
Nottinghamshire County Council,12-13439,CARDEA,Care,Care,Healthcare Services,0,333,333,30-Mar-11,TBC
Nottinghamshire County Council,12-13440,CARDEA,Care,Care,Healthcare Services,0,341.79,341.79,30-Mar-11,TBC
Nottinghamshire County Council,12-13459,CARDEA,Care,Care,Healthcare Services,0,145.88,145.88,30-Mar-11,TBC
Nottinghamshire County Council,12-13463,CARDEA,Care,Care,Healthcare Services,0,120.98,120.98,30-Mar-11,TBC
Nottinghamshire County Council,12-13464,CARDEA,Care,Care,Healthcare Services,0,100.62,100.62,30-Mar-11,TBC
Nottinghamshire County Council,12-13472,WEIGHTMANS LLP,Professional Services,Professional Services,Legal services,0,-801.9,-801.9,30-Mar-11,TBC
Nottinghamshire County Council,12-13474,ENNSTONE JOHNSTON LIMITED,External Services,External Services,Earth and stone,0,0.01,0.01,30-Mar-11,TBC
Nottinghamshire County Council,12-13477,BEESWIFT,Facilities Management,Facilities Management,Clothing,0,-201.97,-201.97,31-Mar-11,TBC
Nottinghamshire County Council,12-13534,ARVAL P H H BUSINESS SOLUTIONS,Transport & Travel,Transport & Travel,Gas fuels and lubricants ,0,1.08,1.08,31-Mar-11,TBC
Nottinghamshire County Council,12-13535,ARVAL P H H BUSINESS SOLUTIONS,Transport & Travel,Transport & Travel,Gas fuels and lubricants ,0,0.03,0.03,31-Mar-11,TBC
Nottinghamshire County Council,12-13548,CARDEA,Care,Care,Healthcare Services,0,101.92,101.92,31-Mar-11,TBC
Nottinghamshire County Council,12-13549,WOLTERS KLUWER (UK) LIMITED,Professional Services,Professional Services,Consultancy,0,66.63,66.63,31-Mar-11,TBC
Nottinghamshire County Council,12-13565,BRAKE BROS LIMITED,Facilities Management,Facilities Management,Prepared and preserved foods,0,-0.04,-0.04,31-Mar-11,TBC
Nottinghamshire County Council,12-00611,G F TOMLINSON BUILDING LIMITED,External Services,External Services,Building and Construction Supplies,"6,886.21","6,886.21","13,772.42",01-Mar-11,TBC
Nottinghamshire County Council,12-00857,S F PLANT HIRE,External Services,External Services,Construction Plant and Equipment,"7,820.47","7,820.47","15,640.94",15-Mar-11,TBC
Nottinghamshire County Council,12-07616,WEIGHTMANS LLP,Professional Services,Professional Services,Legal services,"7,034.88","7,034.88","14,069.76",16-Mar-11,TBC
Nottinghamshire County Council,12-04841,CANDOR SERVICES LIMITED,Facilities Management,Facilities Management,Cleaning Equipment and Janitorial Supplies,428.22,85.64,513.86,04-Mar-11,COMMUNITIES
Nottinghamshire County Council,12-01279,NUMATIC INTERNATIONAL LIMITED,Facilities Management,Facilities Management,Cleaning Equipment and Janitorial Supplies,337.28,0,337.28,01-Mar-11,COMMUNITIES
Nottinghamshire County Council,12-01279,NUMATIC INTERNATIONAL LIMITED,Facilities Management,Facilities Management,Cleaning Equipment and Janitorial Supplies,101.7,0,101.7,01-Mar-11,COMMUNITIES
Nottinghamshire County Council,12-04837,ART CLEANING (MIDLANDS) LIMITED,Facilities Management,Facilities Management,Cleaning Equipment and Janitorial Supplies,20,4,24,04-Mar-11,COMMUNITIES
Nottinghamshire County Council,12-04837,ART CLEANING (MIDLANDS) LIMITED,Facilities Management,Facilities Management,Cleaning Equipment and Janitorial Supplies,25,5,30,04-Mar-11,COMMUNITIES
Nottinghamshire County Council,12-04837,ART CLEANING (MIDLANDS) LIMITED,Facilities Management,Facilities Management,Cleaning Equipment and Janitorial Supplies,25,5,30,04-Mar-11,COMMUNITIES
Nottinghamshire County Council,12-04837,ART CLEANING (MIDLANDS) LIMITED,Facilities Management,Facilities Management,Cleaning Equipment and Janitorial Supplies,30,6,36,04-Mar-11,COMMUNITIES
Nottinghamshire County Council,12-04837,ART CLEANING (MIDLANDS) LIMITED,Facilities Management,Facilities Management,Cleaning Equipment and Janitorial Supplies,30,6,36,04-Mar-11,COMMUNITIES
Nottinghamshire County Council,12-06156,NUMATIC INTERNATIONAL LIMITED,Facilities Management,Facilities Management,Cleaning Equipment and Janitorial Supplies,"2,951.20",0,"2,951.20",10-Mar-11,COMMUNITIES
Nottinghamshire County Council,12-05128,BIFFA WASTE SERVICES LIMITED,External Services,External Services,Scrap and waste materials,858.52,171.7,"1,030.22",11-Mar-11,COMMUNITIES
Nottinghamshire County Council,12-05129,BIFFA WASTE SERVICES LIMITED,External Services,External Services,Scrap and waste materials,858.52,171.7,"1,030.22",11-Mar-11,COMMUNITIES
Nottinghamshire County Council,12-04694,BIFFA WASTE SERVICES LIMITED,External Services,External Services,Scrap and waste materials,"2,143.44",428.69,"2,572.13",09-Mar-11,COMMUNITIES
Nottinghamshire County Council,12-04627,PHS GROUP PLC,Facilities Management,Facilities Management,Cleaning Equipment and Janitorial Supplies,81.18,16.24,97.42,09-Mar-11,COMMUNITIES
Nottinghamshire County Council,12-04627,PHS GROUP PLC,Facilities Management,Facilities Management,Cleaning Equipment and Janitorial Supplies,405.88,81.18,487.06,09-Mar-11,COMMUNITIES
Nottinghamshire County Council,12-04696,BIFFA WASTE SERVICES LIMITED,External Services,External Services,Scrap and waste materials,964.6,192.92,"1,157.52",09-Mar-11,COMMUNITIES
Nottinghamshire County Council,12-07831,PHS GROUP PLC,Facilities Management,Facilities Management,Cleaning Equipment and Janitorial Supplies,111.7,22.34,134.04,23-Mar-11,COMMUNITIES
Nottinghamshire County Council,12-07831,PHS GROUP PLC,Facilities Management,Facilities Management,Cleaning Equipment and Janitorial Supplies,558.48,111.7,670.18,23-Mar-11,COMMUNITIES
Nottinghamshire County Council,12-00935,INPLACE PERSONNEL SERVICES LIMITED,People,People,Recruitment,481.95,96.39,578.34,04-Mar-11,COMMUNITIES
Nottinghamshire County Council,12-04630,INPLACE PERSONNEL SERVICES LIMITED,People,People,Recruitment,28.35,5.67,34.02,09-Mar-11,COMMUNITIES
Nottinghamshire County Council,12-04630,INPLACE PERSONNEL SERVICES LIMITED,People,People,Recruitment,307.13,61.43,368.56,09-Mar-11,COMMUNITIES
Nottinghamshire County Council,12-04695,BIFFA WASTE SERVICES LIMITED,External Services,External Services,Scrap and waste materials,"1,929.20",385.84,"2,315.04",09-Mar-11,COMMUNITIES
Nottinghamshire County Council,12-05953,INPLACE PERSONNEL SERVICES LIMITED,People,People,Recruitment,28.35,5.67,34.02,11-Mar-11,COMMUNITIES
Nottinghamshire County Council,12-05953,INPLACE PERSONNEL SERVICES LIMITED,People,People,Recruitment,283.5,56.7,340.2,11-Mar-11,COMMUNITIES
Nottinghamshire County Council,12-06211,INPLACE PERSONNEL SERVICES LIMITED,People,People,Recruitment,28.35,5.67,34.02,11-Mar-11,COMMUNITIES
Nottinghamshire County Council,12-06211,INPLACE PERSONNEL SERVICES LIMITED,People,People,Recruitment,321.3,64.26,385.56,11-Mar-11,COMMUNITIES
Nottinghamshire County Council,12-09124,INPLACE PERSONNEL SERVICES LIMITED,People,People,Recruitment,28.35,5.67,34.02,28-Mar-11,COMMUNITIES
Nottinghamshire County Council,12-09124,INPLACE PERSONNEL SERVICES LIMITED,People,People,Recruitment,425.25,85.05,510.3,28-Mar-11,COMMUNITIES
Nottinghamshire County Council,12-04630,INPLACE PERSONNEL SERVICES LIMITED,People,People,Recruitment,274.05,54.81,328.86,09-Mar-11,COMMUNITIES
Nottinghamshire County Council,12-04697,BIFFA WASTE SERVICES LIMITED,External Services,External Services,Scrap and waste materials,"1,929.20",385.84,"2,315.04",09-Mar-11,COMMUNITIES
Nottinghamshire County Council,12-05953,INPLACE PERSONNEL SERVICES LIMITED,People,People,Recruitment,189,37.8,226.8,11-Mar-11,COMMUNITIES
Nottinghamshire County Council,12-06211,INPLACE PERSONNEL SERVICES LIMITED,People,People,Recruitment,189,37.8,226.8,11-Mar-11,COMMUNITIES
Nottinghamshire County Council,12-09124,INPLACE PERSONNEL SERVICES LIMITED,People,People,Recruitment,189,37.8,226.8,28-Mar-11,COMMUNITIES
Nottinghamshire County Council,12-04837,ART CLEANING (MIDLANDS) LIMITED,Facilities Management,Facilities Management,Cleaning Equipment and Janitorial Supplies,20,4,24,04-Mar-11,COMMUNITIES
Nottinghamshire County Council,12-04837,ART CLEANING (MIDLANDS) LIMITED,Facilities Management,Facilities Management,Cleaning Equipment and Janitorial Supplies,25,5,30,04-Mar-11,COMMUNITIES
Nottinghamshire County Council,12-04837,ART CLEANING (MIDLANDS) LIMITED,Facilities Management,Facilities Management,Cleaning Equipment and Janitorial Supplies,25,5,30,04-Mar-11,COMMUNITIES
Nottinghamshire County Council,12-04837,ART CLEANING (MIDLANDS) LIMITED,Facilities Management,Facilities Management,Cleaning Equipment and Janitorial Supplies,35,7,42,04-Mar-11,COMMUNITIES
Nottinghamshire County Council,12-04837,ART CLEANING (MIDLANDS) LIMITED,Facilities Management,Facilities Management,Cleaning Equipment and Janitorial Supplies,35,7,42,04-Mar-11,COMMUNITIES
Nottinghamshire County Council,12-07809,ART CLEANING (MIDLANDS) LIMITED,Facilities Management,Facilities Management,Cleaning Equipment and Janitorial Supplies,100,20,120,23-Mar-11,COMMUNITIES
Nottinghamshire County Council,12-07809,ART CLEANING (MIDLANDS) LIMITED,Facilities Management,Facilities Management,Cleaning Equipment and Janitorial Supplies,302.35,60.47,362.82,23-Mar-11,COMMUNITIES
Nottinghamshire County Council,12-07809,ART CLEANING (MIDLANDS) LIMITED,Facilities Management,Facilities Management,Cleaning Equipment and Janitorial Supplies,572.88,114.58,687.46,23-Mar-11,COMMUNITIES
Nottinghamshire County Council,12-07809,ART CLEANING (MIDLANDS) LIMITED,Facilities Management,Facilities Management,Cleaning Equipment and Janitorial Supplies,572.88,114.58,687.46,23-Mar-11,COMMUNITIES
Nottinghamshire County Council,12-07809,ART CLEANING (MIDLANDS) LIMITED,Facilities Management,Facilities Management,Cleaning Equipment and Janitorial Supplies,721.41,144.28,865.69,23-Mar-11,COMMUNITIES
Nottinghamshire County Council,12-07809,ART CLEANING (MIDLANDS) LIMITED,Facilities Management,Facilities Management,Cleaning Equipment and Janitorial Supplies,721.41,144.28,865.69,23-Mar-11,COMMUNITIES
Nottinghamshire County Council,12-07809,ART CLEANING (MIDLANDS) LIMITED,Facilities Management,Facilities Management,Cleaning Equipment and Janitorial Supplies,721.41,144.28,865.69,23-Mar-11,COMMUNITIES
Nottinghamshire County Council,12-07809,ART CLEANING (MIDLANDS) LIMITED,Facilities Management,Facilities Management,Cleaning Equipment and Janitorial Supplies,827.09,165.42,992.51,23-Mar-11,COMMUNITIES
Nottinghamshire County Council,12-07809,ART CLEANING (MIDLANDS) LIMITED,Facilities Management,Facilities Management,Cleaning Equipment and Janitorial Supplies,"1,273.08",254.62,"1,527.70",23-Mar-11,COMMUNITIES
Nottinghamshire County Council,12-07827,ART CLEANING (MIDLANDS) LIMITED,Facilities Management,Facilities Management,Cleaning Equipment and Janitorial Supplies,307.66,61.53,369.19,23-Mar-11,COMMUNITIES
Nottinghamshire County Council,12-07827,ART CLEANING (MIDLANDS) LIMITED,Facilities Management,Facilities Management,Cleaning Equipment and Janitorial Supplies,"1,166.99",233.4,"1,400.39",23-Mar-11,COMMUNITIES
Nottinghamshire County Council,12-04837,ART CLEANING (MIDLANDS) LIMITED,Facilities Management,Facilities Management,Cleaning Equipment and Janitorial Supplies,25,5,30,04-Mar-11,COMMUNITIES
Nottinghamshire County Council,12-04837,ART CLEANING (MIDLANDS) LIMITED,Facilities Management,Facilities Management,Cleaning Equipment and Janitorial Supplies,25,5,30,04-Mar-11,COMMUNITIES
Nottinghamshire County Council,12-04837,ART CLEANING (MIDLANDS) LIMITED,Facilities Management,Facilities Management,Cleaning Equipment and Janitorial Supplies,25,5,30,04-Mar-11,COMMUNITIES
Nottinghamshire County Council,12-04837,ART CLEANING (MIDLANDS) LIMITED,Facilities Management,Facilities Management,Cleaning Equipment and Janitorial Supplies,45,9,54,04-Mar-11,COMMUNITIES
Nottinghamshire County Council,12-04837,ART CLEANING (MIDLANDS) LIMITED,Facilities Management,Facilities Management,Cleaning Equipment and Janitorial Supplies,150,30,180,04-Mar-11,COMMUNITIES
Nottinghamshire County Council,12-00989,STAFFLINE RECRUITMENT LIMITED,People,People,Vocational training,16.98,3.4,20.38,01-Mar-11,COMMUNITIES
Nottinghamshire County Council,12-00989,STAFFLINE RECRUITMENT LIMITED,People,People,Vocational training,16.98,3.4,20.38,01-Mar-11,COMMUNITIES
Nottinghamshire County Council,12-00989,STAFFLINE RECRUITMENT LIMITED,People,People,Vocational training,84.9,16.98,101.88,01-Mar-11,COMMUNITIES
Nottinghamshire County Council,12-00989,STAFFLINE RECRUITMENT LIMITED,People,People,Vocational training,84.9,16.98,101.88,01-Mar-11,COMMUNITIES
Nottinghamshire County Council,12-04836,STAFFLINE RECRUITMENT LIMITED,People,People,Vocational training,16.98,3.4,20.38,04-Mar-11,COMMUNITIES
Nottinghamshire County Council,12-04836,STAFFLINE RECRUITMENT LIMITED,People,People,Vocational training,84.9,16.98,101.88,04-Mar-11,COMMUNITIES
Nottinghamshire County Council,12-04836,STAFFLINE RECRUITMENT LIMITED,People,People,Vocational training,84.9,16.98,101.88,04-Mar-11,COMMUNITIES
Nottinghamshire County Council,12-04840,STAFFLINE RECRUITMENT LIMITED,People,People,Vocational training,16.98,3.4,20.38,04-Mar-11,COMMUNITIES
Nottinghamshire County Council,12-04840,STAFFLINE RECRUITMENT LIMITED,People,People,Vocational training,84.9,16.98,101.88,04-Mar-11,COMMUNITIES
Nottinghamshire County Council,12-04840,STAFFLINE RECRUITMENT LIMITED,People,People,Vocational training,84.9,16.98,101.88,04-Mar-11,COMMUNITIES
Nottinghamshire County Council,12-06370,STAFFLINE RECRUITMENT LIMITED,People,People,Vocational training,84.9,16.98,101.88,16-Mar-11,COMMUNITIES
Nottinghamshire County Council,12-06370,STAFFLINE RECRUITMENT LIMITED,People,People,Vocational training,84.9,16.98,101.88,16-Mar-11,COMMUNITIES
Nottinghamshire County Council,12-07792,STAFFLINE RECRUITMENT LIMITED,People,People,Vocational training,16.98,3.4,20.38,23-Mar-11,COMMUNITIES
Nottinghamshire County Council,12-07792,STAFFLINE RECRUITMENT LIMITED,People,People,Vocational training,16.98,3.4,20.38,23-Mar-11,COMMUNITIES
Nottinghamshire County Council,12-07792,STAFFLINE RECRUITMENT LIMITED,People,People,Vocational training,84.9,16.98,101.88,23-Mar-11,COMMUNITIES
Nottinghamshire County Council,12-07792,STAFFLINE RECRUITMENT LIMITED,People,People,Vocational training,169.8,33.96,203.76,23-Mar-11,COMMUNITIES
Nottinghamshire County Council,12-00989,STAFFLINE RECRUITMENT LIMITED,People,People,Vocational training,16.98,3.4,20.38,01-Mar-11,COMMUNITIES
Nottinghamshire County Council,12-00989,STAFFLINE RECRUITMENT LIMITED,People,People,Vocational training,127.35,25.47,152.82,01-Mar-11,COMMUNITIES
Nottinghamshire County Council,12-04825,DRAEFERN LIMITED T/A RIGHT4STAFF,People,People,Recruitment,86,17.2,103.2,08-Mar-11,COMMUNITIES
Nottinghamshire County Council,12-04825,DRAEFERN LIMITED T/A RIGHT4STAFF,People,People,Recruitment,86,17.2,103.2,08-Mar-11,COMMUNITIES
Nottinghamshire County Council,12-04825,DRAEFERN LIMITED T/A RIGHT4STAFF,People,People,Recruitment,180.6,36.12,216.72,08-Mar-11,COMMUNITIES
Nottinghamshire County Council,12-04825,DRAEFERN LIMITED T/A RIGHT4STAFF,People,People,Recruitment,197.8,39.56,237.36,08-Mar-11,COMMUNITIES
Nottinghamshire County Council,12-04836,STAFFLINE RECRUITMENT LIMITED,People,People,Vocational training,84.9,16.98,101.88,04-Mar-11,COMMUNITIES
Nottinghamshire County Council,12-04836,STAFFLINE RECRUITMENT LIMITED,People,People,Vocational training,127.35,25.47,152.82,04-Mar-11,COMMUNITIES
Nottinghamshire County Council,12-04840,STAFFLINE RECRUITMENT LIMITED,People,People,Vocational training,67.92,13.58,81.5,04-Mar-11,COMMUNITIES
Nottinghamshire County Council,12-04840,STAFFLINE RECRUITMENT LIMITED,People,People,Vocational training,127.35,25.47,152.82,04-Mar-11,COMMUNITIES
Nottinghamshire County Council,12-04944,DRAEFERN LIMITED T/A RIGHT4STAFF,People,People,Recruitment,86,17.2,103.2,08-Mar-11,COMMUNITIES
Nottinghamshire County Council,12-04944,DRAEFERN LIMITED T/A RIGHT4STAFF,People,People,Recruitment,86,17.2,103.2,08-Mar-11,COMMUNITIES
Nottinghamshire County Council,12-04944,DRAEFERN LIMITED T/A RIGHT4STAFF,People,People,Recruitment,86,17.2,103.2,08-Mar-11,COMMUNITIES
Nottinghamshire County Council,12-04944,DRAEFERN LIMITED T/A RIGHT4STAFF,People,People,Recruitment,129,25.8,154.8,08-Mar-11,COMMUNITIES
Nottinghamshire County Council,12-04944,DRAEFERN LIMITED T/A RIGHT4STAFF,People,People,Recruitment,129,25.8,154.8,08-Mar-11,COMMUNITIES
Nottinghamshire County Council,12-04944,DRAEFERN LIMITED T/A RIGHT4STAFF,People,People,Recruitment,129,25.8,154.8,08-Mar-11,COMMUNITIES
Nottinghamshire County Council,12-06370,STAFFLINE RECRUITMENT LIMITED,People,People,Vocational training,84.9,16.98,101.88,16-Mar-11,COMMUNITIES
Nottinghamshire County Council,12-06370,STAFFLINE RECRUITMENT LIMITED,People,People,Vocational training,84.9,16.98,101.88,16-Mar-11,COMMUNITIES
Nottinghamshire County Council,12-06504,DRAEFERN LIMITED T/A RIGHT4STAFF,People,People,Recruitment,68.8,13.76,82.56,17-Mar-11,COMMUNITIES
Nottinghamshire County Council,12-06504,DRAEFERN LIMITED T/A RIGHT4STAFF,People,People,Recruitment,86,17.2,103.2,17-Mar-11,COMMUNITIES
Nottinghamshire County Council,12-06504,DRAEFERN LIMITED T/A RIGHT4STAFF,People,People,Recruitment,86,17.2,103.2,17-Mar-11,COMMUNITIES
Nottinghamshire County Council,12-06504,DRAEFERN LIMITED T/A RIGHT4STAFF,People,People,Recruitment,86,17.2,103.2,17-Mar-11,COMMUNITIES
Nottinghamshire County Council,12-06504,DRAEFERN LIMITED T/A RIGHT4STAFF,People,People,Recruitment,86,17.2,103.2,17-Mar-11,COMMUNITIES
Nottinghamshire County Council,12-06504,DRAEFERN LIMITED T/A RIGHT4STAFF,People,People,Recruitment,86,17.2,103.2,17-Mar-11,COMMUNITIES
Nottinghamshire County Council,12-06504,DRAEFERN LIMITED T/A RIGHT4STAFF,People,People,Recruitment,86,17.2,103.2,17-Mar-11,COMMUNITIES
Nottinghamshire County Council,12-07792,STAFFLINE RECRUITMENT LIMITED,People,People,Vocational training,84.9,16.98,101.88,23-Mar-11,COMMUNITIES
Nottinghamshire County Council,12-07792,STAFFLINE RECRUITMENT LIMITED,People,People,Vocational training,84.9,16.98,101.88,23-Mar-11,COMMUNITIES
Nottinghamshire County Council,12-09493,DRAEFERN LIMITED T/A RIGHT4STAFF,People,People,Recruitment,68.8,13.76,82.56,28-Mar-11,COMMUNITIES
Nottinghamshire County Council,12-09493,DRAEFERN LIMITED T/A RIGHT4STAFF,People,People,Recruitment,68.8,13.76,82.56,28-Mar-11,COMMUNITIES
Nottinghamshire County Council,12-09493,DRAEFERN LIMITED T/A RIGHT4STAFF,People,People,Recruitment,86,17.2,103.2,28-Mar-11,COMMUNITIES
Nottinghamshire County Council,12-09493,DRAEFERN LIMITED T/A RIGHT4STAFF,People,People,Recruitment,86,17.2,103.2,28-Mar-11,COMMUNITIES
Nottinghamshire County Council,12-09493,DRAEFERN LIMITED T/A RIGHT4STAFF,People,People,Recruitment,86,17.2,103.2,28-Mar-11,COMMUNITIES
Nottinghamshire County Council,12-09493,DRAEFERN LIMITED T/A RIGHT4STAFF,People,People,Recruitment,86,17.2,103.2,28-Mar-11,COMMUNITIES
Nottinghamshire County Council,12-09493,DRAEFERN LIMITED T/A RIGHT4STAFF,People,People,Recruitment,86,17.2,103.2,28-Mar-11,COMMUNITIES
Nottinghamshire County Council,12-09493,DRAEFERN LIMITED T/A RIGHT4STAFF,People,People,Recruitment,103.2,20.64,123.84,28-Mar-11,COMMUNITIES
Nottinghamshire County Council,12-04837,ART CLEANING (MIDLANDS) LIMITED,Facilities Management,Facilities Management,Cleaning Equipment and Janitorial Supplies,20,4,24,04-Mar-11,COMMUNITIES
Nottinghamshire County Council,12-04837,ART CLEANING (MIDLANDS) LIMITED,Facilities Management,Facilities Management,Cleaning Equipment and Janitorial Supplies,20,4,24,04-Mar-11,COMMUNITIES
Nottinghamshire County Council,12-04837,ART CLEANING (MIDLANDS) LIMITED,Facilities Management,Facilities Management,Cleaning Equipment and Janitorial Supplies,55,11,66,04-Mar-11,COMMUNITIES
Nottinghamshire County Council,12-04837,ART CLEANING (MIDLANDS) LIMITED,Facilities Management,Facilities Management,Cleaning Equipment and Janitorial Supplies,20,4,24,04-Mar-11,COMMUNITIES
Nottinghamshire County Council,12-04837,ART CLEANING (MIDLANDS) LIMITED,Facilities Management,Facilities Management,Cleaning Equipment and Janitorial Supplies,25,5,30,04-Mar-11,COMMUNITIES
Nottinghamshire County Council,12-04837,ART CLEANING (MIDLANDS) LIMITED,Facilities Management,Facilities Management,Cleaning Equipment and Janitorial Supplies,25,5,30,04-Mar-11,COMMUNITIES
Nottinghamshire County Council,12-04837,ART CLEANING (MIDLANDS) LIMITED,Facilities Management,Facilities Management,Cleaning Equipment and Janitorial Supplies,25,5,30,04-Mar-11,COMMUNITIES
Nottinghamshire County Council,12-04837,ART CLEANING (MIDLANDS) LIMITED,Facilities Management,Facilities Management,Cleaning Equipment and Janitorial Supplies,25,5,30,04-Mar-11,COMMUNITIES
Nottinghamshire County Council,12-04837,ART CLEANING (MIDLANDS) LIMITED,Facilities Management,Facilities Management,Cleaning Equipment and Janitorial Supplies,20,4,24,04-Mar-11,COMMUNITIES
Nottinghamshire County Council,12-04837,ART CLEANING (MIDLANDS) LIMITED,Facilities Management,Facilities Management,Cleaning Equipment and Janitorial Supplies,30,6,36,04-Mar-11,COMMUNITIES
Nottinghamshire County Council,12-04837,ART CLEANING (MIDLANDS) LIMITED,Facilities Management,Facilities Management,Cleaning Equipment and Janitorial Supplies,35,7,42,04-Mar-11,COMMUNITIES
Nottinghamshire County Council,12-04837,ART CLEANING (MIDLANDS) LIMITED,Facilities Management,Facilities Management,Cleaning Equipment and Janitorial Supplies,190,38,228,04-Mar-11,COMMUNITIES
Nottinghamshire County Council,12-04837,ART CLEANING (MIDLANDS) LIMITED,Facilities Management,Facilities Management,Cleaning Equipment and Janitorial Supplies,190,38,228,04-Mar-11,COMMUNITIES
Nottinghamshire County Council,12-04826,DRAEFERN LIMITED T/A RIGHT4STAFF,People,People,Recruitment,43,8.6,51.6,08-Mar-11,COMMUNITIES
Nottinghamshire County Council,12-04826,DRAEFERN LIMITED T/A RIGHT4STAFF,People,People,Recruitment,215,43,258,08-Mar-11,COMMUNITIES
Nottinghamshire County Council,12-04826,DRAEFERN LIMITED T/A RIGHT4STAFF,People,People,Recruitment,215,43,258,08-Mar-11,COMMUNITIES
Nottinghamshire County Council,12-04826,DRAEFERN LIMITED T/A RIGHT4STAFF,People,People,Recruitment,215,43,258,08-Mar-11,COMMUNITIES
Nottinghamshire County Council,12-04826,DRAEFERN LIMITED T/A RIGHT4STAFF,People,People,Recruitment,215,43,258,08-Mar-11,COMMUNITIES
Nottinghamshire County Council,12-04826,DRAEFERN LIMITED T/A RIGHT4STAFF,People,People,Recruitment,215,43,258,08-Mar-11,COMMUNITIES
Nottinghamshire County Council,12-04826,DRAEFERN LIMITED T/A RIGHT4STAFF,People,People,Recruitment,215,43,258,08-Mar-11,COMMUNITIES
Nottinghamshire County Council,12-04833,DRAEFERN LIMITED T/A RIGHT4STAFF,People,People,Recruitment,30.1,6.02,36.12,08-Mar-11,COMMUNITIES
Nottinghamshire County Council,12-04833,DRAEFERN LIMITED T/A RIGHT4STAFF,People,People,Recruitment,215,43,258,08-Mar-11,COMMUNITIES
Nottinghamshire County Council,12-04833,DRAEFERN LIMITED T/A RIGHT4STAFF,People,People,Recruitment,215,43,258,08-Mar-11,COMMUNITIES
Nottinghamshire County Council,12-04833,DRAEFERN LIMITED T/A RIGHT4STAFF,People,People,Recruitment,215,43,258,08-Mar-11,COMMUNITIES
Nottinghamshire County Council,12-06503,DRAEFERN LIMITED T/A RIGHT4STAFF,People,People,Recruitment,17.2,3.44,20.64,17-Mar-11,COMMUNITIES
Nottinghamshire County Council,12-06503,DRAEFERN LIMITED T/A RIGHT4STAFF,People,People,Recruitment,21.5,4.3,25.8,17-Mar-11,COMMUNITIES
Nottinghamshire County Council,12-06503,DRAEFERN LIMITED T/A RIGHT4STAFF,People,People,Recruitment,43,8.6,51.6,17-Mar-11,COMMUNITIES
Nottinghamshire County Council,12-06503,DRAEFERN LIMITED T/A RIGHT4STAFF,People,People,Recruitment,43,8.6,51.6,17-Mar-11,COMMUNITIES
Nottinghamshire County Council,12-06503,DRAEFERN LIMITED T/A RIGHT4STAFF,People,People,Recruitment,43,8.6,51.6,17-Mar-11,COMMUNITIES
Nottinghamshire County Council,12-06503,DRAEFERN LIMITED T/A RIGHT4STAFF,People,People,Recruitment,98.04,19.61,117.65,17-Mar-11,COMMUNITIES
Nottinghamshire County Council,12-06503,DRAEFERN LIMITED T/A RIGHT4STAFF,People,People,Recruitment,129,25.8,154.8,17-Mar-11,COMMUNITIES
Nottinghamshire County Council,12-06503,DRAEFERN LIMITED T/A RIGHT4STAFF,People,People,Recruitment,215,43,258,17-Mar-11,COMMUNITIES
Nottinghamshire County Council,12-06503,DRAEFERN LIMITED T/A RIGHT4STAFF,People,People,Recruitment,215,43,258,17-Mar-11,COMMUNITIES
Nottinghamshire County Council,12-09494,DRAEFERN LIMITED T/A RIGHT4STAFF,People,People,Recruitment,34.4,6.88,41.28,28-Mar-11,COMMUNITIES
Nottinghamshire County Council,12-09494,DRAEFERN LIMITED T/A RIGHT4STAFF,People,People,Recruitment,98.04,19.61,117.65,28-Mar-11,COMMUNITIES
Nottinghamshire County Council,12-09494,DRAEFERN LIMITED T/A RIGHT4STAFF,People,People,Recruitment,215,43,258,28-Mar-11,COMMUNITIES
Nottinghamshire County Council,12-09494,DRAEFERN LIMITED T/A RIGHT4STAFF,People,People,Recruitment,215,43,258,28-Mar-11,COMMUNITIES
Nottinghamshire County Council,12-00989,STAFFLINE RECRUITMENT LIMITED,People,People,Vocational training,16.98,3.4,20.38,01-Mar-11,COMMUNITIES
Nottinghamshire County Council,12-00989,STAFFLINE RECRUITMENT LIMITED,People,People,Vocational training,16.98,3.4,20.38,01-Mar-11,COMMUNITIES
Nottinghamshire County Council,12-00989,STAFFLINE RECRUITMENT LIMITED,People,People,Vocational training,16.98,3.4,20.38,01-Mar-11,COMMUNITIES
Nottinghamshire County Council,12-00989,STAFFLINE RECRUITMENT LIMITED,People,People,Vocational training,16.98,3.4,20.38,01-Mar-11,COMMUNITIES
Nottinghamshire County Council,12-05912,WM SAUNDERS & PARTNERS,Professional Services,Professional Services,Professional Engineering ,"2,096.95",419.39,"2,516.34",09-Mar-11,RESOURCES
Nottinghamshire County Council,12-05913,VINCENT & GORBING,Professional Services,Professional Services,Professional Engineering ,"3,681.79",736.36,"4,418.15",09-Mar-11,RESOURCES
Nottinghamshire County Council,12-06265,STANFORD MARSH,ICT,ICT,Hardware,424.28,84.86,509.14,14-Mar-11,RESOURCES
Nottinghamshire County Council,12-06811,SITE INVESTIGATION SERVICES,Facilities Management,Facilities Management,Security,952,166.6,"1,118.60",15-Mar-11,RESOURCES
Nottinghamshire County Council,12-06812,SITE INVESTIGATION SERVICES,Facilities Management,Facilities Management,Security,974,170.45,"1,144.45",15-Mar-11,RESOURCES
Nottinghamshire County Council,12-07572,CBP ARCHITECTS LIMITED,Professional Services,Professional Services,Professional engineering services,"2,171.00",434.2,"2,605.20",16-Mar-11,RESOURCES
Nottinghamshire County Council,12-07573,CBP ARCHITECTS LIMITED,Professional Services,Professional Services,Professional engineering services,"1,579.50",315.9,"1,895.40",16-Mar-11,RESOURCES
Nottinghamshire County Council,12-07574,CBP ARCHITECTS LIMITED,Professional Services,Professional Services,Professional engineering services,"2,080.00",416,"2,496.00",16-Mar-11,RESOURCES
Nottinghamshire County Council,12-07575,CBP ARCHITECTS LIMITED,Professional Services,Professional Services,Professional engineering services,"2,002.00",400.4,"2,402.40",16-Mar-11,RESOURCES
Nottinghamshire County Council,12-07787,WM SAUNDERS & PARTNERS,Professional Services,Professional Services,Professional Engineering ,"4,734.34",946.87,"5,681.21",17-Mar-11,RESOURCES
Nottinghamshire County Council,12-07789,TOWER SURVEYS LIMITED,Professional Services,Professional Services,Property Management,525,105,630,17-Mar-11,RESOURCES
Nottinghamshire County Council,12-07812,SCAPE SYSTEM BUILD LIMITED,Professional Services,Professional Services,Professional engineering services,"6,000.00","1,200.00","7,200.00",17-Mar-11,RESOURCES
Nottinghamshire County Council,12-08018,CAUSEWAY TECHNOLOGIES LIMITED,ICT,ICT,Software,"3,551.95",0,"3,551.95",18-Mar-11,RESOURCES
Nottinghamshire County Council,12-08028,COMPUTER AND DESIGN SERVICES LIMITED,ICT,ICT,Computer services,275,0,275,18-Mar-11,RESOURCES
Nottinghamshire County Council,12-08028,COMPUTER AND DESIGN SERVICES LIMITED,ICT,ICT,Computer services,40,0,40,18-Mar-11,RESOURCES
Nottinghamshire County Council,12-08028,COMPUTER AND DESIGN SERVICES LIMITED,ICT,ICT,Computer services,80,0,80,18-Mar-11,RESOURCES
Nottinghamshire County Council,12-08028,COMPUTER AND DESIGN SERVICES LIMITED,ICT,ICT,Computer services,100,0,100,18-Mar-11,RESOURCES
Nottinghamshire County Council,12-08028,COMPUTER AND DESIGN SERVICES LIMITED,ICT,ICT,Computer services,235,0,235,18-Mar-11,RESOURCES
Nottinghamshire County Council,12-08028,COMPUTER AND DESIGN SERVICES LIMITED,ICT,ICT,Computer services,100,0,100,18-Mar-11,RESOURCES
Nottinghamshire County Council,12-08028,COMPUTER AND DESIGN SERVICES LIMITED,ICT,ICT,Computer services,175,0,175,18-Mar-11,RESOURCES
Nottinghamshire County Council,12-08028,COMPUTER AND DESIGN SERVICES LIMITED,ICT,ICT,Computer services,40,0,40,18-Mar-11,RESOURCES
Nottinghamshire County Council,12-08028,COMPUTER AND DESIGN SERVICES LIMITED,ICT,ICT,Computer services,70,0,70,18-Mar-11,RESOURCES
Nottinghamshire County Council,12-08028,COMPUTER AND DESIGN SERVICES LIMITED,ICT,ICT,Computer services,250,0,250,18-Mar-11,RESOURCES
Nottinghamshire County Council,12-08028,COMPUTER AND DESIGN SERVICES LIMITED,ICT,ICT,Computer services,200,0,200,18-Mar-11,RESOURCES
Nottinghamshire County Council,12-08218,WM SAUNDERS & PARTNERS,Professional Services,Professional Services,Professional Engineering ,"1,594.18",318.84,"1,913.02",21-Mar-11,RESOURCES
Nottinghamshire County Council,12-08219,CBP ARCHITECTS LIMITED,Professional Services,Professional Services,Professional engineering services,"1,417.00",283.4,"1,700.40",21-Mar-11,RESOURCES
Nottinghamshire County Council,12-08220,CBP ARCHITECTS LIMITED,Professional Services,Professional Services,Professional engineering services,"1,976.00",395.2,"2,371.20",21-Mar-11,RESOURCES
Nottinghamshire County Council,12-08221,CBP ARCHITECTS LIMITED,Professional Services,Professional Services,Professional engineering services,"2,067.00",413.4,"2,480.40",21-Mar-11,RESOURCES
Nottinghamshire County Council,12-08222,CBP ARCHITECTS LIMITED,Professional Services,Professional Services,Professional engineering services,"2,015.00",403,"2,418.00",21-Mar-11,RESOURCES
Nottinghamshire County Council,12-08530,LEWIS & HICKEY LIMITED,Professional Services,Professional Services,Professional Engineering ,-0.1,-0.02,-0.12,23-Mar-11,RESOURCES
Nottinghamshire County Council,12-08530,LEWIS & HICKEY LIMITED,Professional Services,Professional Services,Professional Engineering ,"8,409.09","1,681.82","10,090.91",23-Mar-11,RESOURCES
Nottinghamshire County Council,12-08550,FIRST ORDER RED LIMITED,External Services,External Services,Scrap and waste materials,643.5,128.7,772.2,28-Mar-11,RESOURCES
Nottinghamshire County Council,12-08557,HALEYS-RAP,Professional Services,Professional Services,Professional engineering services,655.03,131.01,786.04,23-Mar-11,RESOURCES
Nottinghamshire County Council,12-08569,WM SAUNDERS & PARTNERS,Professional Services,Professional Services,Professional Engineering ,"1,027.00",205.4,"1,232.40",23-Mar-11,RESOURCES
Nottinghamshire County Council,12-08570,EDMOND SHIPWAY,Professional Services,Professional Services,Consultancy,"7,000.00","1,400.00","8,400.00",29-Mar-11,RESOURCES
Nottinghamshire County Council,12-09153,CBP ARCHITECTS LIMITED,Professional Services,Professional Services,Professional engineering services,"1,807.00",361.4,"2,168.40",24-Mar-11,RESOURCES
Nottinghamshire County Council,12-09154,CBP ARCHITECTS LIMITED,Professional Services,Professional Services,Professional engineering services,"1,956.50",391.3,"2,347.80",24-Mar-11,RESOURCES
Nottinghamshire County Council,12-09155,CBP ARCHITECTS LIMITED,Professional Services,Professional Services,Professional engineering services,"1,570.92",314.18,"1,885.10",24-Mar-11,RESOURCES
Nottinghamshire County Council,12-09156,CBP ARCHITECTS LIMITED,Professional Services,Professional Services,Professional engineering services,585,117,702,24-Mar-11,RESOURCES
Nottinghamshire County Council,12-09186,JACOBS ENGINEERING UK LIMITED,Professional Services,Professional Services,Professional engineering services,"9,419.69","1,883.94","11,303.63",24-Mar-11,RESOURCES
Nottinghamshire County Council,12-09323,GEORGES CONTRACTORS LIMITED,Facilities Management,Facilities Management,Building construction services,500,100,600,25-Mar-11,RESOURCES
Nottinghamshire County Council,12-09630,GEORGES CONTRACTORS LIMITED,Facilities Management,Facilities Management,Building construction services,700,0,700,28-Mar-11,RESOURCES
Nottinghamshire County Council,12-04340,TMH (WEST HALLAM) LIMITED,People,People,Agency Staff - Manual,"1,756.47",0,"1,756.47",02-Mar-11,RESOURCES
Nottinghamshire County Council,12-04341,TMH (WEST HALLAM) LIMITED,People,People,Agency Staff - Manual,"4,223.21",0,"4,223.21",02-Mar-11,RESOURCES
Nottinghamshire County Council,12-06553,TMH (WEST HALLAM) LIMITED,People,People,Agency Staff - Manual,"1,992.08",0,"1,992.08",14-Mar-11,RESOURCES
Nottinghamshire County Council,12-06553,TMH (WEST HALLAM) LIMITED,People,People,Agency Staff - Manual,97.2,0,97.2,14-Mar-11,RESOURCES
Nottinghamshire County Council,12-09607,EDC (NOTTINGHAM) LIMITED,People,People,Recruitment,962,0,962,28-Mar-11,RESOURCES
Nottinghamshire County Council,12-09607,EDC (NOTTINGHAM) LIMITED,People,People,Recruitment,962,0,962,28-Mar-11,RESOURCES
Nottinghamshire County Council,12-09607,EDC (NOTTINGHAM) LIMITED,People,People,Recruitment,637,0,637,28-Mar-11,RESOURCES
Nottinghamshire County Council,12-09607,EDC (NOTTINGHAM) LIMITED,People,People,Recruitment,962,0,962,28-Mar-11,RESOURCES
Nottinghamshire County Council,12-09844,EDC (NOTTINGHAM) LIMITED,People,People,Recruitment,552,0,552,29-Mar-11,RESOURCES
Nottinghamshire County Council,12-09844,EDC (NOTTINGHAM) LIMITED,People,People,Recruitment,888,0,888,29-Mar-11,RESOURCES
Nottinghamshire County Council,12-09844,EDC (NOTTINGHAM) LIMITED,People,People,Recruitment,864,0,864,29-Mar-11,RESOURCES
Nottinghamshire County Council,12-09844,EDC (NOTTINGHAM) LIMITED,People,People,Recruitment,912,0,912,29-Mar-11,RESOURCES
Nottinghamshire County Council,12-09854,EDC (NOTTINGHAM) LIMITED,People,People,Recruitment,962,0,962,29-Mar-11,RESOURCES
Nottinghamshire County Council,12-09854,EDC (NOTTINGHAM) LIMITED,People,People,Recruitment,962,0,962,29-Mar-11,RESOURCES
Nottinghamshire County Council,12-09854,EDC (NOTTINGHAM) LIMITED,People,People,Recruitment,"1,118.00",0,"1,118.00",29-Mar-11,RESOURCES
Nottinghamshire County Council,12-09854,EDC (NOTTINGHAM) LIMITED,People,People,Recruitment,806,0,806,29-Mar-11,RESOURCES
Nottinghamshire County Council,12-09854,EDC (NOTTINGHAM) LIMITED,People,People,Recruitment,211.31,0,211.31,29-Mar-11,RESOURCES
Nottinghamshire County Council,12-09879,NAPIT,External Services,External Services,Organisations and Clubs,460,92,552,29-Mar-11,RESOURCES
Nottinghamshire County Council,12-13338,EDC (NOTTINGHAM) LIMITED,People,People,Recruitment,223.24,0,223.24,30-Mar-11,RESOURCES
Nottinghamshire County Council,12-13338,EDC (NOTTINGHAM) LIMITED,People,People,Recruitment,948.75,0,948.75,30-Mar-11,RESOURCES
Nottinghamshire County Council,12-13338,EDC (NOTTINGHAM) LIMITED,People,People,Recruitment,"1,031.25",0,"1,031.25",30-Mar-11,RESOURCES
Nottinghamshire County Council,12-13338,EDC (NOTTINGHAM) LIMITED,People,People,Recruitment,948.75,0,948.75,30-Mar-11,RESOURCES
Nottinghamshire County Council,12-13338,EDC (NOTTINGHAM) LIMITED,People,People,Recruitment,"1,017.50",0,"1,017.50",30-Mar-11,RESOURCES
Nottinghamshire County Council,12-13341,TMH (WEST HALLAM) LIMITED,People,People,Agency Staff - Manual,42.4,0,42.4,30-Mar-11,RESOURCES
Nottinghamshire County Council,12-13341,TMH (WEST HALLAM) LIMITED,People,People,Agency Staff - Manual,"1,593.66",0,"1,593.66",30-Mar-11,RESOURCES
Nottinghamshire County Council,12-08241,NOTTINGHAM CITY COUNCIL,Professional Services,Professional Services,Politics and Civic Affairs,"2,790.60",558.12,"3,348.72",21-Mar-11,RESOURCES
Nottinghamshire County Council,12-00071,BARKER ROSS LIMITED,People,People,Recruitment,32,6.4,38.4,25-Mar-11,COMMUNITIES
Nottinghamshire County Council,12-00071,BARKER ROSS LIMITED,People,People,Recruitment,"1,075.32",215.06,"1,290.38",25-Mar-11,COMMUNITIES
Nottinghamshire County Council,12-00260,RADIODETECTION LIMITED,Facilities Management,Facilities Management,Electrical Systems & Lighting,7.48,1.5,8.98,16-Mar-11,COMMUNITIES
Nottinghamshire County Council,12-00260,RADIODETECTION LIMITED,Facilities Management,Facilities Management,Electrical Systems & Lighting,50,10,60,16-Mar-11,COMMUNITIES
Nottinghamshire County Council,12-00260,RADIODETECTION LIMITED,Facilities Management,Facilities Management,Electrical Systems & Lighting,50,10,60,16-Mar-11,COMMUNITIES
Nottinghamshire County Council,12-00260,RADIODETECTION LIMITED,Facilities Management,Facilities Management,Electrical Systems & Lighting,50,10,60,16-Mar-11,COMMUNITIES
Nottinghamshire County Council,12-00260,RADIODETECTION LIMITED,Facilities Management,Facilities Management,Electrical Systems & Lighting,50,10,60,16-Mar-11,COMMUNITIES
Nottinghamshire County Council,12-00260,RADIODETECTION LIMITED,Facilities Management,Facilities Management,Electrical Systems & Lighting,50,10,60,16-Mar-11,COMMUNITIES
Nottinghamshire County Council,12-00260,RADIODETECTION LIMITED,Facilities Management,Facilities Management,Electrical Systems & Lighting,50,10,60,16-Mar-11,COMMUNITIES
Nottinghamshire County Council,12-00260,RADIODETECTION LIMITED,Facilities Management,Facilities Management,Electrical Systems & Lighting,50,10,60,16-Mar-11,COMMUNITIES
Nottinghamshire County Council,12-00260,RADIODETECTION LIMITED,Facilities Management,Facilities Management,Electrical Systems & Lighting,50,10,60,16-Mar-11,COMMUNITIES
Nottinghamshire County Council,12-00260,RADIODETECTION LIMITED,Facilities Management,Facilities Management,Electrical Systems & Lighting,50,10,60,16-Mar-11,COMMUNITIES
Nottinghamshire County Council,12-00260,RADIODETECTION LIMITED,Facilities Management,Facilities Management,Electrical Systems & Lighting,50,10,60,16-Mar-11,COMMUNITIES
Nottinghamshire County Council,12-00260,RADIODETECTION LIMITED,Facilities Management,Facilities Management,Electrical Systems & Lighting,50,10,60,16-Mar-11,COMMUNITIES
Nottinghamshire County Council,12-00260,RADIODETECTION LIMITED,Facilities Management,Facilities Management,Electrical Systems & Lighting,50,10,60,16-Mar-11,COMMUNITIES
Nottinghamshire County Council,12-00260,RADIODETECTION LIMITED,Facilities Management,Facilities Management,Electrical Systems & Lighting,50,10,60,16-Mar-11,COMMUNITIES
Nottinghamshire County Council,12-00260,RADIODETECTION LIMITED,Facilities Management,Facilities Management,Electrical Systems & Lighting,50,10,60,16-Mar-11,COMMUNITIES
Nottinghamshire County Council,12-00260,RADIODETECTION LIMITED,Facilities Management,Facilities Management,Electrical Systems & Lighting,50,10,60,16-Mar-11,COMMUNITIES
Nottinghamshire County Council,12-00260,RADIODETECTION LIMITED,Facilities Management,Facilities Management,Electrical Systems & Lighting,50,10,60,16-Mar-11,COMMUNITIES
Nottinghamshire County Council,12-00260,RADIODETECTION LIMITED,Facilities Management,Facilities Management,Electrical Systems & Lighting,50,10,60,16-Mar-11,COMMUNITIES
Nottinghamshire County Council,12-00260,RADIODETECTION LIMITED,Facilities Management,Facilities Management,Electrical Systems & Lighting,50,10,60,16-Mar-11,COMMUNITIES
Nottinghamshire County Council,12-00260,RADIODETECTION LIMITED,Facilities Management,Facilities Management,Electrical Systems & Lighting,50,10,60,16-Mar-11,COMMUNITIES
Nottinghamshire County Council,12-00260,RADIODETECTION LIMITED,Facilities Management,Facilities Management,Electrical Systems & Lighting,50,10,60,16-Mar-11,COMMUNITIES
Nottinghamshire County Council,12-00260,RADIODETECTION LIMITED,Facilities Management,Facilities Management,Electrical Systems & Lighting,50,10,60,16-Mar-11,COMMUNITIES
Nottinghamshire County Council,12-00260,RADIODETECTION LIMITED,Facilities Management,Facilities Management,Electrical Systems & Lighting,50,10,60,16-Mar-11,COMMUNITIES
Nottinghamshire County Council,12-00260,RADIODETECTION LIMITED,Facilities Management,Facilities Management,Electrical Systems & Lighting,50,10,60,16-Mar-11,COMMUNITIES
Nottinghamshire County Council,12-00260,RADIODETECTION LIMITED,Facilities Management,Facilities Management,Electrical Systems & Lighting,50,10,60,16-Mar-11,COMMUNITIES
Nottinghamshire County Council,12-00623,RADIODETECTION LIMITED,Facilities Management,Facilities Management,Electrical Systems & Lighting,50,10,60,16-Mar-11,COMMUNITIES
Nottinghamshire County Council,12-00623,RADIODETECTION LIMITED,Facilities Management,Facilities Management,Electrical Systems & Lighting,50,10,60,16-Mar-11,COMMUNITIES
Nottinghamshire County Council,12-00623,RADIODETECTION LIMITED,Facilities Management,Facilities Management,Electrical Systems & Lighting,50,10,60,16-Mar-11,COMMUNITIES
Nottinghamshire County Council,12-00623,RADIODETECTION LIMITED,Facilities Management,Facilities Management,Electrical Systems & Lighting,50,10,60,16-Mar-11,COMMUNITIES
Nottinghamshire County Council,12-00623,RADIODETECTION LIMITED,Facilities Management,Facilities Management,Electrical Systems & Lighting,50,10,60,16-Mar-11,COMMUNITIES
Nottinghamshire County Council,12-00623,RADIODETECTION LIMITED,Facilities Management,Facilities Management,Electrical Systems & Lighting,50,10,60,16-Mar-11,COMMUNITIES
Nottinghamshire County Council,12-00623,RADIODETECTION LIMITED,Facilities Management,Facilities Management,Electrical Systems & Lighting,50,10,60,16-Mar-11,COMMUNITIES
Nottinghamshire County Council,12-00623,RADIODETECTION LIMITED,Facilities Management,Facilities Management,Electrical Systems & Lighting,50,10,60,16-Mar-11,COMMUNITIES
Nottinghamshire County Council,12-00623,RADIODETECTION LIMITED,Facilities Management,Facilities Management,Electrical Systems & Lighting,50,10,60,16-Mar-11,COMMUNITIES
Nottinghamshire County Council,12-00623,RADIODETECTION LIMITED,Facilities Management,Facilities Management,Electrical Systems & Lighting,50,10,60,16-Mar-11,COMMUNITIES
Nottinghamshire County Council,12-00623,RADIODETECTION LIMITED,Facilities Management,Facilities Management,Electrical Systems & Lighting,68,13.6,81.6,16-Mar-11,COMMUNITIES
Nottinghamshire County Council,12-00623,RADIODETECTION LIMITED,Facilities Management,Facilities Management,Electrical Systems & Lighting,104,20.8,124.8,16-Mar-11,COMMUNITIES
Nottinghamshire County Council,12-00623,RADIODETECTION LIMITED,Facilities Management,Facilities Management,Electrical Systems & Lighting,134,26.8,160.8,16-Mar-11,COMMUNITIES
Nottinghamshire County Council,12-01056,BARKER ROSS LIMITED,People,People,Recruitment,60.4,12.08,72.48,25-Mar-11,COMMUNITIES
Nottinghamshire County Council,12-01056,BARKER ROSS LIMITED,People,People,Recruitment,"1,247.00",249.4,"1,496.40",25-Mar-11,COMMUNITIES
Nottinghamshire County Council,12-04459,BARKER ROSS LIMITED,People,People,Recruitment,52,10.4,62.4,10-Mar-11,COMMUNITIES
Nottinghamshire County Council,12-04459,BARKER ROSS LIMITED,People,People,Recruitment,"1,259.18",251.84,"1,511.02",10-Mar-11,COMMUNITIES
Nottinghamshire County Council,12-08081,BARKER ROSS LIMITED,People,People,Recruitment,59.2,11.84,71.04,25-Mar-11,COMMUNITIES
Nottinghamshire County Council,12-08081,BARKER ROSS LIMITED,People,People,Recruitment,"1,226.70",245.34,"1,472.04",25-Mar-11,COMMUNITIES
Nottinghamshire County Council,12-08082,BARKER ROSS LIMITED,People,People,Recruitment,62.4,12.48,74.88,25-Mar-11,COMMUNITIES
Nottinghamshire County Council,12-08082,BARKER ROSS LIMITED,People,People,Recruitment,"1,189.00",237.8,"1,426.80",25-Mar-11,COMMUNITIES
Nottinghamshire County Council,12-09474,BARKER ROSS LIMITED,People,People,Recruitment,78.8,15.76,94.56,28-Mar-11,COMMUNITIES
Nottinghamshire County Council,12-09474,BARKER ROSS LIMITED,People,People,Recruitment,"1,247.00",249.4,"1,496.40",28-Mar-11,COMMUNITIES
Nottinghamshire County Council,12-06368,HARBY GARAGE LTD,Transport & Travel,Transport & Travel,Fleet Maintenance Services,250,0,250,11-Mar-11,COMMUNITIES
Nottinghamshire County Council,12-00912,KONICA MINOLTA,ICT,ICT,Printing and publishing equipment and supplies,682.83,119.5,802.33,24-Mar-11,COMMUNITIES
Nottinghamshire County Council,12-00101,RAI TECHNICAL LIMITED,Transport & Travel,Transport & Travel,Tools and General Machinery,80.46,16.09,96.55,02-Mar-11,COMMUNITIES
Nottinghamshire County Council,12-00101,RAI TECHNICAL LIMITED,Transport & Travel,Transport & Travel,Tools and General Machinery,337.88,67.58,405.46,02-Mar-11,COMMUNITIES
Nottinghamshire County Council,12-00101,RAI TECHNICAL LIMITED,Transport & Travel,Transport & Travel,Tools and General Machinery,"1,126.25",225.25,"1,351.50",02-Mar-11,COMMUNITIES
Nottinghamshire County Council,12-01058,RAI TECHNICAL LIMITED,Transport & Travel,Transport & Travel,Tools and General Machinery,96.12,19.22,115.34,04-Mar-11,COMMUNITIES
Nottinghamshire County Council,12-01058,RAI TECHNICAL LIMITED,Transport & Travel,Transport & Travel,Tools and General Machinery,607.5,121.5,729,04-Mar-11,COMMUNITIES
Nottinghamshire County Council,12-04465,RAI TECHNICAL LIMITED,Transport & Travel,Transport & Travel,Tools and General Machinery,73.98,14.8,88.78,09-Mar-11,COMMUNITIES
Nottinghamshire County Council,12-04465,RAI TECHNICAL LIMITED,Transport & Travel,Transport & Travel,Tools and General Machinery,"1,126.25",225.25,"1,351.50",09-Mar-11,COMMUNITIES
Nottinghamshire County Council,12-04466,RAI TECHNICAL LIMITED,Transport & Travel,Transport & Travel,Tools and General Machinery,112.32,22.46,134.78,09-Mar-11,COMMUNITIES
Nottinghamshire County Council,12-04466,RAI TECHNICAL LIMITED,Transport & Travel,Transport & Travel,Tools and General Machinery,139.13,27.83,166.96,09-Mar-11,COMMUNITIES
Nottinghamshire County Council,12-04466,RAI TECHNICAL LIMITED,Transport & Travel,Transport & Travel,Tools and General Machinery,"1,126.25",225.25,"1,351.50",09-Mar-11,COMMUNITIES
Nottinghamshire County Council,12-05029,BARKER ROSS LIMITED,People,People,Recruitment,"1,260.80",252.16,"1,512.96",10-Mar-11,COMMUNITIES
Nottinghamshire County Council,12-05030,BARKER ROSS LIMITED,People,People,Recruitment,"1,085.20",217.04,"1,302.24",10-Mar-11,COMMUNITIES
Nottinghamshire County Council,12-05509,RAI TECHNICAL LIMITED,Transport & Travel,Transport & Travel,Tools and General Machinery,3.24,0.65,3.89,16-Mar-11,COMMUNITIES
Nottinghamshire County Council,12-05509,RAI TECHNICAL LIMITED,Transport & Travel,Transport & Travel,Tools and General Machinery,28.62,5.72,34.34,16-Mar-11,COMMUNITIES
Nottinghamshire County Council,12-05509,RAI TECHNICAL LIMITED,Transport & Travel,Transport & Travel,Tools and General Machinery,607.5,121.5,729,16-Mar-11,COMMUNITIES
Nottinghamshire County Council,12-06256,RAI TECHNICAL LIMITED,Transport & Travel,Transport & Travel,Tools and General Machinery,144.72,28.94,173.66,15-Mar-11,COMMUNITIES
Nottinghamshire County Council,12-06256,RAI TECHNICAL LIMITED,Transport & Travel,Transport & Travel,Tools and General Machinery,607.5,121.5,729,15-Mar-11,COMMUNITIES
Nottinghamshire County Council,12-07432,RAI TECHNICAL LIMITED,Transport & Travel,Transport & Travel,Tools and General Machinery,75.06,15.01,90.07,24-Mar-11,COMMUNITIES
Nottinghamshire County Council,12-07432,RAI TECHNICAL LIMITED,Transport & Travel,Transport & Travel,Tools and General Machinery,119.25,23.85,143.1,24-Mar-11,COMMUNITIES
Nottinghamshire County Council,12-07432,RAI TECHNICAL LIMITED,Transport & Travel,Transport & Travel,Tools and General Machinery,"1,126.25",225.25,"1,351.50",24-Mar-11,COMMUNITIES
Nottinghamshire County Council,12-07433,RAI TECHNICAL LIMITED,Transport & Travel,Transport & Travel,Tools and General Machinery,22.95,4.59,27.54,24-Mar-11,COMMUNITIES
Nottinghamshire County Council,12-07433,RAI TECHNICAL LIMITED,Transport & Travel,Transport & Travel,Tools and General Machinery,149.31,29.86,179.17,24-Mar-11,COMMUNITIES
Nottinghamshire County Council,12-07433,RAI TECHNICAL LIMITED,Transport & Travel,Transport & Travel,Tools and General Machinery,"1,126.25",225.25,"1,351.50",24-Mar-11,COMMUNITIES
Nottinghamshire County Council,12-07622,BARKER ROSS LIMITED,People,People,Recruitment,46.8,9.36,56.16,18-Mar-11,COMMUNITIES
Nottinghamshire County Council,12-07622,BARKER ROSS LIMITED,People,People,Recruitment,600,120,720,18-Mar-11,COMMUNITIES
Nottinghamshire County Council,12-07623,BARKER ROSS LIMITED,People,People,Recruitment,98.4,19.68,118.08,18-Mar-11,COMMUNITIES
Nottinghamshire County Council,12-07623,BARKER ROSS LIMITED,People,People,Recruitment,"1,150.00",230,"1,380.00",18-Mar-11,COMMUNITIES
Nottinghamshire County Council,12-08052,RAI TECHNICAL LIMITED,Transport & Travel,Transport & Travel,Tools and General Machinery,112.86,22.57,135.43,24-Mar-11,COMMUNITIES
Nottinghamshire County Council,12-08052,RAI TECHNICAL LIMITED,Transport & Travel,Transport & Travel,Tools and General Machinery,607.5,121.5,729,24-Mar-11,COMMUNITIES
Nottinghamshire County Council,12-08987,BARKER ROSS LIMITED,People,People,Recruitment,"1,258.40",251.68,"1,510.08",24-Mar-11,COMMUNITIES
Nottinghamshire County Council,12-09367,RAI TECHNICAL LIMITED,Transport & Travel,Transport & Travel,Tools and General Machinery,137.7,27.54,165.24,25-Mar-11,COMMUNITIES
Nottinghamshire County Council,12-09367,RAI TECHNICAL LIMITED,Transport & Travel,Transport & Travel,Tools and General Machinery,607.5,121.5,729,25-Mar-11,COMMUNITIES
Nottinghamshire County Council,12-10062,RAI TECHNICAL LIMITED,Transport & Travel,Transport & Travel,Tools and General Machinery,98.28,19.66,117.94,31-Mar-11,COMMUNITIES
Nottinghamshire County Council,12-10062,RAI TECHNICAL LIMITED,Transport & Travel,Transport & Travel,Tools and General Machinery,"1,126.25",225.25,"1,351.50",31-Mar-11,COMMUNITIES
Nottinghamshire County Council,12-10063,RAI TECHNICAL LIMITED,Transport & Travel,Transport & Travel,Tools and General Machinery,69.66,13.93,83.59,31-Mar-11,COMMUNITIES
Nottinghamshire County Council,12-10063,RAI TECHNICAL LIMITED,Transport & Travel,Transport & Travel,Tools and General Machinery,"1,126.25",225.25,"1,351.50",31-Mar-11,COMMUNITIES
Nottinghamshire County Council,12-00062,MARWOOD ELECTRICAL CO LIMITED,Facilities Management,Facilities Management,Electrical Systems & Lighting,"8,145.60","1,629.12","9,774.72",21-Mar-11,COMMUNITIES
Nottinghamshire County Council,12-00062,MARWOOD ELECTRICAL CO LIMITED,Facilities Management,Facilities Management,Electrical Systems & Lighting,48,9.6,57.6,21-Mar-11,COMMUNITIES
Nottinghamshire County Council,12-00067,ENERGAS LIMITED,External Services,External Services,Chemicals & Gases,54.72,10.94,65.66,02-Mar-11,COMMUNITIES
Nottinghamshire County Council,12-00067,ENERGAS LIMITED,External Services,External Services,Chemicals & Gases,91.44,18.29,109.73,02-Mar-11,COMMUNITIES
Nottinghamshire County Council,12-00067,ENERGAS LIMITED,External Services,External Services,Chemicals & Gases,679.65,135.93,815.58,02-Mar-11,COMMUNITIES
Nottinghamshire County Council,12-00067,ENERGAS LIMITED,External Services,External Services,Chemicals & Gases,151.43,30.29,181.72,02-Mar-11,COMMUNITIES
Nottinghamshire County Council,12-00069,SIGNPOST SOLUTIONS LIMITED,Facilities Management,Facilities Management,Printed media and Signage,"1,430.00",286,"1,716.00",02-Mar-11,COMMUNITIES
Nottinghamshire County Council,12-00069,SIGNPOST SOLUTIONS LIMITED,Facilities Management,Facilities Management,Printed media and Signage,"1,571.20",314.24,"1,885.44",02-Mar-11,COMMUNITIES
Nottinghamshire County Council,12-00069,SIGNPOST SOLUTIONS LIMITED,Facilities Management,Facilities Management,Printed media and Signage,33,6.6,39.6,02-Mar-11,COMMUNITIES
Nottinghamshire County Council,12-00070,RENNICKS (UK) LIMITED,Facilities Management,Facilities Management,Highways & Works,143.17,28.63,171.8,28-Mar-11,COMMUNITIES
Nottinghamshire County Council,12-00070,RENNICKS (UK) LIMITED,Facilities Management,Facilities Management,Highways & Works,946.26,189.25,"1,135.51",28-Mar-11,COMMUNITIES
Nottinghamshire County Council,12-00070,RENNICKS (UK) LIMITED,Facilities Management,Facilities Management,Highways & Works,"1,181.80",236.36,"1,418.16",28-Mar-11,COMMUNITIES
Nottinghamshire County Council,12-00078,PARKER MERCHANTING LIMITED,Facilities Management,Facilities Management,Paper and Paper Products,39.4,7.88,47.28,02-Mar-11,COMMUNITIES
Nottinghamshire County Council,12-00078,PARKER MERCHANTING LIMITED,Facilities Management,Facilities Management,Paper and Paper Products,71.1,14.22,85.32,02-Mar-11,COMMUNITIES
Nottinghamshire County Council,12-00078,PARKER MERCHANTING LIMITED,Facilities Management,Facilities Management,Paper and Paper Products,175,35,210,02-Mar-11,COMMUNITIES
Nottinghamshire County Council,12-00078,PARKER MERCHANTING LIMITED,Facilities Management,Facilities Management,Paper and Paper Products,259.4,51.88,311.28,02-Mar-11,COMMUNITIES
Nottinghamshire County Council,12-00078,PARKER MERCHANTING LIMITED,Facilities Management,Facilities Management,Paper and Paper Products,1.8,0.36,2.16,02-Mar-11,COMMUNITIES
Nottinghamshire County Council,12-00079,PARKER MERCHANTING LIMITED,Facilities Management,Facilities Management,Paper and Paper Products,226.7,45.34,272.04,02-Mar-11,COMMUNITIES
Nottinghamshire County Council,12-00079,PARKER MERCHANTING LIMITED,Facilities Management,Facilities Management,Paper and Paper Products,259.4,51.88,311.28,02-Mar-11,COMMUNITIES
Nottinghamshire County Council,12-00079,PARKER MERCHANTING LIMITED,Facilities Management,Facilities Management,Paper and Paper Products,414,82.8,496.8,02-Mar-11,COMMUNITIES
Nottinghamshire County Council,12-00079,PARKER MERCHANTING LIMITED,Facilities Management,Facilities Management,Paper and Paper Products,1.8,0.36,2.16,02-Mar-11,COMMUNITIES
Nottinghamshire County Council,12-00104,AGGREGATE INDUSTRIES UK,Facilities Management,Facilities Management,Masonry and stonework services,691.58,138.32,829.9,30-Mar-11,COMMUNITIES
Nottinghamshire County Council,12-00104,AGGREGATE INDUSTRIES UK,Facilities Management,Facilities Management,Masonry and stonework services,969,193.8,"1,162.80",30-Mar-11,COMMUNITIES
Nottinghamshire County Council,12-00151,H&H ALLOY SALES LIMITED,External Services,External Services,Building and Construction Supplies,"5,340.00","1,068.00","6,408.00",14-Mar-11,COMMUNITIES
Nottinghamshire County Council,12-00179,ENERGAS LIMITED,External Services,External Services,Chemicals & Gases,81.28,16.26,97.54,24-Mar-11,COMMUNITIES
Nottinghamshire County Council,12-00179,ENERGAS LIMITED,External Services,External Services,Chemicals & Gases,197.6,39.52,237.12,24-Mar-11,COMMUNITIES
Nottinghamshire County Council,12-00179,ENERGAS LIMITED,External Services,External Services,Chemicals & Gases,392.7,78.54,471.24,24-Mar-11,COMMUNITIES
Nottinghamshire County Council,12-00179,ENERGAS LIMITED,External Services,External Services,Chemicals & Gases,63.1,12.62,75.72,24-Mar-11,COMMUNITIES
Nottinghamshire County Council,12-00515,EDMUNDSON ELECTRICAL LIMITED,Facilities Management,Facilities Management,Electrical Systems & Lighting,716,143.2,859.2,24-Mar-11,COMMUNITIES
Nottinghamshire County Council,12-00515,EDMUNDSON ELECTRICAL LIMITED,Facilities Management,Facilities Management,Electrical Systems & Lighting,40,8,48,24-Mar-11,COMMUNITIES
Nottinghamshire County Council,12-00516,SIMMONSIGN LIMITED,Facilities Management,Facilities Management,Highways & Works,375,75,450,11-Mar-11,COMMUNITIES
Nottinghamshire County Council,12-00516,SIMMONSIGN LIMITED,Facilities Management,Facilities Management,Highways & Works,"3,005.60",601.12,"3,606.72",11-Mar-11,COMMUNITIES
Nottinghamshire County Council,12-00717,PUDSEY DIAMOND ENGINEERING LIMITED,Professional Services,Professional Services,Professional engineering services,980.8,196.16,"1,176.96",10-Mar-11,COMMUNITIES
Nottinghamshire County Council,12-00717,PUDSEY DIAMOND ENGINEERING LIMITED,Professional Services,Professional Services,Professional engineering services,"1,169.50",233.9,"1,403.40",10-Mar-11,COMMUNITIES
Nottinghamshire County Council,12-00717,PUDSEY DIAMOND ENGINEERING LIMITED,Professional Services,Professional Services,Professional engineering services,181.2,36.24,217.44,10-Mar-11,COMMUNITIES
Nottinghamshire County Council,12-00718,PUDSEY DIAMOND ENGINEERING LIMITED,Professional Services,Professional Services,Professional engineering services,675.35,135.07,810.42,10-Mar-11,COMMUNITIES
Nottinghamshire County Council,12-01057,KEYLINE BUILDERS MERCHANTS,Facilities Management,Facilities Management,Building construction services,"1,137.40",227.48,"1,364.88",04-Mar-11,COMMUNITIES
Nottinghamshire County Council,12-01057,KEYLINE BUILDERS MERCHANTS,Facilities Management,Facilities Management,Building construction services,"1,362.60",272.52,"1,635.12",04-Mar-11,COMMUNITIES
Nottinghamshire County Council,12-04458,AGGREGATE INDUSTRIES UK,Facilities Management,Facilities Management,Masonry and stonework services,269.28,53.86,323.14,04-Mar-11,COMMUNITIES
Nottinghamshire County Council,12-04458,AGGREGATE INDUSTRIES UK,Facilities Management,Facilities Management,Masonry and stonework services,580.5,116.1,696.6,04-Mar-11,COMMUNITIES
Nottinghamshire County Council,12-04458,AGGREGATE INDUSTRIES UK,Facilities Management,Facilities Management,Masonry and stonework services,659.52,131.9,791.42,04-Mar-11,COMMUNITIES
Nottinghamshire County Council,12-04460,W T BURDEN LIMITED,External Services,External Services,Building and Construction Supplies,537.77,107.55,645.32,03-Mar-11,COMMUNITIES
Nottinghamshire County Council,12-04461,W T BURDEN LIMITED,External Services,External Services,Building and Construction Supplies,"1,434.05",286.81,"1,720.86",03-Mar-11,COMMUNITIES
Nottinghamshire County Council,12-04463,ENERGAS LIMITED,External Services,External Services,Chemicals & Gases,355.68,71.14,426.82,07-Mar-11,COMMUNITIES
Nottinghamshire County Council,12-04463,ENERGAS LIMITED,External Services,External Services,Chemicals & Gases,589.06,117.81,706.87,07-Mar-11,COMMUNITIES
Nottinghamshire County Council,12-04463,ENERGAS LIMITED,External Services,External Services,Chemicals & Gases,90.8,18.16,108.96,07-Mar-11,COMMUNITIES
Nottinghamshire County Council,12-04464,INSTARMAC LIMITED,Facilities Management,Facilities Management,Highways & Works,"1,086.40",217.28,"1,303.68",03-Mar-11,COMMUNITIES
Nottinghamshire County Council,12-04612,H&H ALLOY SALES LIMITED,External Services,External Services,Building and Construction Supplies,660,132,792,14-Mar-11,COMMUNITIES
Nottinghamshire County Council,12-04613,SIGNPOST SOLUTIONS LIMITED,Facilities Management,Facilities Management,Printed media and Signage,962,192.4,"1,154.40",10-Mar-11,COMMUNITIES
Nottinghamshire County Council,12-04640,W T BURDEN LIMITED,External Services,External Services,Building and Construction Supplies,717.02,143.4,860.42,04-Mar-11,COMMUNITIES
Nottinghamshire County Council,12-05028,ABACUS LIGHTING LIMITED,Facilities Management,Facilities Management,Electrical Systems & Lighting,"7,095.20","1,419.04","8,514.24",10-Mar-11,COMMUNITIES
Nottinghamshire County Council,12-05207,AYTON ASPHALT,Facilities Management,Facilities Management,Highways & Works,"1,548.80",309.76,"1,858.56",08-Mar-11,COMMUNITIES
Nottinghamshire County Council,12-05208,INDUSTRIAL DIAMOND SERVICES,External Services,External Services,Construction Plant and Equipment,"1,100.00",220,"1,320.00",08-Mar-11,COMMUNITIES
Nottinghamshire County Council,12-05214,PARKER MERCHANTING LIMITED,Facilities Management,Facilities Management,Paper and Paper Products,196,39.2,235.2,08-Mar-11,COMMUNITIES
Nottinghamshire County Council,12-05214,PARKER MERCHANTING LIMITED,Facilities Management,Facilities Management,Paper and Paper Products,233.36,46.67,280.03,08-Mar-11,COMMUNITIES
Nottinghamshire County Council,12-05214,PARKER MERCHANTING LIMITED,Facilities Management,Facilities Management,Paper and Paper Products,236.7,47.34,284.04,08-Mar-11,COMMUNITIES
Nottinghamshire County Council,12-05215,PARKER MERCHANTING LIMITED,Facilities Management,Facilities Management,Paper and Paper Products,261.2,52.24,313.44,08-Mar-11,COMMUNITIES
Nottinghamshire County Council,12-05215,PARKER MERCHANTING LIMITED,Facilities Management,Facilities Management,Paper and Paper Products,414,82.8,496.8,08-Mar-11,COMMUNITIES
Nottinghamshire County Council,12-05216,JOHN A STEPHENS LIMITED,External Services,External Services,Building and Construction Supplies,561.83,112.37,674.2,08-Mar-11,COMMUNITIES
Nottinghamshire County Council,12-05501,AGGREGATE INDUSTRIES UK,Facilities Management,Facilities Management,Masonry and stonework services,27.76,5.55,33.31,15-Mar-11,COMMUNITIES
Nottinghamshire County Council,12-05501,AGGREGATE INDUSTRIES UK,Facilities Management,Facilities Management,Masonry and stonework services,83.28,16.66,99.94,15-Mar-11,COMMUNITIES
Nottinghamshire County Council,12-05501,AGGREGATE INDUSTRIES UK,Facilities Management,Facilities Management,Masonry and stonework services,83.28,16.66,99.94,15-Mar-11,COMMUNITIES
Nottinghamshire County Council,12-05501,AGGREGATE INDUSTRIES UK,Facilities Management,Facilities Management,Masonry and stonework services,123.66,24.73,148.39,15-Mar-11,COMMUNITIES
Nottinghamshire County Council,12-05501,AGGREGATE INDUSTRIES UK,Facilities Management,Facilities Management,Masonry and stonework services,123.66,24.73,148.39,15-Mar-11,COMMUNITIES
Nottinghamshire County Council,12-05501,AGGREGATE INDUSTRIES UK,Facilities Management,Facilities Management,Masonry and stonework services,261.6,52.32,313.92,15-Mar-11,COMMUNITIES
Nottinghamshire County Council,12-05501,AGGREGATE INDUSTRIES UK,Facilities Management,Facilities Management,Masonry and stonework services,628.32,125.66,753.98,15-Mar-11,COMMUNITIES
Nottinghamshire County Council,12-05502,AGGREGATE INDUSTRIES UK,Facilities Management,Facilities Management,Masonry and stonework services,70.02,14,84.02,14-Mar-11,COMMUNITIES
Nottinghamshire County Council,12-05502,AGGREGATE INDUSTRIES UK,Facilities Management,Facilities Management,Masonry and stonework services,140.04,28.01,168.05,14-Mar-11,COMMUNITIES
Nottinghamshire County Council,12-05502,AGGREGATE INDUSTRIES UK,Facilities Management,Facilities Management,Masonry and stonework services,210.06,42.01,252.07,14-Mar-11,COMMUNITIES
Nottinghamshire County Council,12-05502,AGGREGATE INDUSTRIES UK,Facilities Management,Facilities Management,Masonry and stonework services,284.04,56.81,340.85,14-Mar-11,COMMUNITIES
Nottinghamshire County Council,12-05502,AGGREGATE INDUSTRIES UK,Facilities Management,Facilities Management,Masonry and stonework services,284.04,56.81,340.85,14-Mar-11,COMMUNITIES
Nottinghamshire County Council,12-05502,AGGREGATE INDUSTRIES UK,Facilities Management,Facilities Management,Masonry and stonework services,284.04,56.81,340.85,14-Mar-11,COMMUNITIES
Nottinghamshire County Council,12-05502,AGGREGATE INDUSTRIES UK,Facilities Management,Facilities Management,Masonry and stonework services,284.04,56.81,340.85,14-Mar-11,COMMUNITIES
Nottinghamshire County Council,12-05502,AGGREGATE INDUSTRIES UK,Facilities Management,Facilities Management,Masonry and stonework services,412.2,82.44,494.64,14-Mar-11,COMMUNITIES
Nottinghamshire County Council,12-05503,W T BURDEN LIMITED,External Services,External Services,Building and Construction Supplies,717.02,143.4,860.42,11-Mar-11,COMMUNITIES
Nottinghamshire County Council,12-05504,ENERGAS LIMITED,External Services,External Services,Chemicals & Gases,32.51,1.63,34.14,15-Mar-11,COMMUNITIES
Nottinghamshire County Council,12-05504,ENERGAS LIMITED,External Services,External Services,Chemicals & Gases,197.6,9.88,207.48,15-Mar-11,COMMUNITIES
Nottinghamshire County Council,12-05504,ENERGAS LIMITED,External Services,External Services,Chemicals & Gases,294.53,14.73,309.26,15-Mar-11,COMMUNITIES
Nottinghamshire County Council,12-05504,ENERGAS LIMITED,External Services,External Services,Chemicals & Gases,49.8,2.49,52.29,15-Mar-11,COMMUNITIES
Nottinghamshire County Council,12-05507,MARWOOD ELECTRICAL CO LIMITED,Facilities Management,Facilities Management,Electrical Systems & Lighting,124,24.8,148.8,15-Mar-11,COMMUNITIES
Nottinghamshire County Council,12-05507,MARWOOD ELECTRICAL CO LIMITED,Facilities Management,Facilities Management,Electrical Systems & Lighting,439.2,87.84,527.04,15-Mar-11,COMMUNITIES
Nottinghamshire County Council,12-05507,MARWOOD ELECTRICAL CO LIMITED,Facilities Management,Facilities Management,Electrical Systems & Lighting,814.5,162.9,977.4,15-Mar-11,COMMUNITIES
Nottinghamshire County Council,12-05507,MARWOOD ELECTRICAL CO LIMITED,Facilities Management,Facilities Management,Electrical Systems & Lighting,32,6.4,38.4,15-Mar-11,COMMUNITIES
Nottinghamshire County Council,12-05508,MUDFORDS LIMITED,External Services,External Services,Building and Construction Supplies,492.8,98.56,591.36,11-Mar-11,COMMUNITIES
Nottinghamshire County Council,12-05907,EMO OIL LIMITED,Facilities Management,Facilities Management,Utilities,"5,519.00","1,103.80","6,622.80",09-Mar-11,COMMUNITIES
Nottinghamshire County Council,12-06046,AGGREGATE INDUSTRIES UK,Facilities Management,Facilities Management,Masonry and stonework services,948.06,189.61,"1,137.67",15-Mar-11,COMMUNITIES
Nottinghamshire County Council,12-06047,SMITH BROS CAERCONAN WHOLESALE LIMITED,Facilities Management,Facilities Management,Electronic Components and Supplies,"3,897.60",779.52,"4,677.12",24-Mar-11,COMMUNITIES
Nottinghamshire County Council,12-06047,SMITH BROS CAERCONAN WHOLESALE LIMITED,Facilities Management,Facilities Management,Electronic Components and Supplies,24,4.8,28.8,24-Mar-11,COMMUNITIES
Nottinghamshire County Council,12-06253,GLASDON UK LIMITED,Facilities Management,Facilities Management,Cleaning Equipment and Janitorial Supplies,862,172.4,"1,034.40",16-Mar-11,COMMUNITIES
Nottinghamshire County Council,12-06254,KEYLINE BUILDERS MERCHANTS,Facilities Management,Facilities Management,Building construction services,420,84,504,14-Mar-11,COMMUNITIES
Nottinghamshire County Council,12-06255,MARWOOD ELECTRICAL CO LIMITED,Facilities Management,Facilities Management,Electrical Systems & Lighting,13.8,2.76,16.56,14-Mar-11,COMMUNITIES
Nottinghamshire County Council,12-06255,MARWOOD ELECTRICAL CO LIMITED,Facilities Management,Facilities Management,Electrical Systems & Lighting,744.48,148.9,893.38,14-Mar-11,COMMUNITIES
Nottinghamshire County Council,12-06255,MARWOOD ELECTRICAL CO LIMITED,Facilities Management,Facilities Management,Electrical Systems & Lighting,781.92,156.38,938.3,14-Mar-11,COMMUNITIES
Nottinghamshire County Council,12-06255,MARWOOD ELECTRICAL CO LIMITED,Facilities Management,Facilities Management,Electrical Systems & Lighting,820,164,984,14-Mar-11,COMMUNITIES
Nottinghamshire County Council,12-06511,CLEVELAND CABLE COMPANY LIMITED,Facilities Management,Facilities Management,Electrical Systems & Lighting,592,118.4,710.4,14-Mar-11,COMMUNITIES
Nottinghamshire County Council,12-06512,LUCY ELECTRIC UK LIMITED,Facilities Management,Facilities Management,Electrical Systems & Lighting,637.5,127.5,765,14-Mar-11,COMMUNITIES
Nottinghamshire County Council,12-06513,PUDSEY DIAMOND ENGINEERING LIMITED,Professional Services,Professional Services,Professional engineering services,732.35,146.47,878.82,14-Mar-11,COMMUNITIES
Nottinghamshire County Council,12-06514,JOHN A STEPHENS LIMITED,External Services,External Services,Building and Construction Supplies,561.83,112.37,674.2,14-Mar-11,COMMUNITIES
Nottinghamshire County Council,12-07428,AYTON ASPHALT,Facilities Management,Facilities Management,Highways & Works,"1,548.80",309.76,"1,858.56",23-Mar-11,COMMUNITIES
Nottinghamshire County Council,12-07429,AGGREGATE INDUSTRIES UK,Facilities Management,Facilities Management,Masonry and stonework services,140.04,28.01,168.05,24-Mar-11,COMMUNITIES
Nottinghamshire County Council,12-07429,AGGREGATE INDUSTRIES UK,Facilities Management,Facilities Management,Masonry and stonework services,412.2,82.44,494.64,24-Mar-11,COMMUNITIES
Nottinghamshire County Council,12-07429,AGGREGATE INDUSTRIES UK,Facilities Management,Facilities Management,Masonry and stonework services,628.32,125.66,753.98,24-Mar-11,COMMUNITIES
Nottinghamshire County Council,12-07430,W T BURDEN LIMITED,External Services,External Services,Building and Construction Supplies,30.12,6.02,36.14,24-Mar-11,COMMUNITIES
Nottinghamshire County Council,12-07430,W T BURDEN LIMITED,External Services,External Services,Building and Construction Supplies,191.4,38.28,229.68,24-Mar-11,COMMUNITIES
Nottinghamshire County Council,12-07430,W T BURDEN LIMITED,External Services,External Services,Building and Construction Supplies,279.3,55.86,335.16,24-Mar-11,COMMUNITIES
Nottinghamshire County Council,12-07431,JACKSON BUILDING CENTRES LIMITED,External Services,External Services,Building and Construction Supplies,285,57,342,24-Mar-11,COMMUNITIES
Nottinghamshire County Council,12-07431,JACKSON BUILDING CENTRES LIMITED,External Services,External Services,Building and Construction Supplies,"1,531.32",306.26,"1,837.58",24-Mar-11,COMMUNITIES
Nottinghamshire County Council,12-08051,ADBRUF LIMITED,Facilities Management,Facilities Management,Highways & Works,"1,141.14",228.23,"1,369.37",25-Mar-11,COMMUNITIES
Nottinghamshire County Council,12-08051,ADBRUF LIMITED,Facilities Management,Facilities Management,Highways & Works,"4,560.66",912.13,"5,472.79",25-Mar-11,COMMUNITIES
Nottinghamshire County Council,12-08053,THE POST & COLUMN CO LIMITED,External Services,External Services,Building and Construction Supplies,"2,505.60",501.12,"3,006.72",24-Mar-11,COMMUNITIES
Nottinghamshire County Council,12-08083,W T BURDEN LIMITED,External Services,External Services,Building and Construction Supplies,717.02,143.4,860.42,23-Mar-11,COMMUNITIES
Nottinghamshire County Council,12-08084,SIGNPOST SOLUTIONS LIMITED,Facilities Management,Facilities Management,Printed media and Signage,"1,365.00",273,"1,638.00",23-Mar-11,COMMUNITIES
Nottinghamshire County Council,12-08084,SIGNPOST SOLUTIONS LIMITED,Facilities Management,Facilities Management,Printed media and Signage,"1,463.00",292.6,"1,755.60",23-Mar-11,COMMUNITIES
Nottinghamshire County Council,12-08084,SIGNPOST SOLUTIONS LIMITED,Facilities Management,Facilities Management,Printed media and Signage,"1,625.00",325,"1,950.00",23-Mar-11,COMMUNITIES
Nottinghamshire County Council,12-08150,PARKER MERCHANTING LIMITED,Facilities Management,Facilities Management,Paper and Paper Products,122.4,24.48,146.88,23-Mar-11,COMMUNITIES
Nottinghamshire County Council,12-08150,PARKER MERCHANTING LIMITED,Facilities Management,Facilities Management,Paper and Paper Products,226.7,45.34,272.04,23-Mar-11,COMMUNITIES
Nottinghamshire County Council,12-08150,PARKER MERCHANTING LIMITED,Facilities Management,Facilities Management,Paper and Paper Products,496.8,99.36,596.16,23-Mar-11,COMMUNITIES
Nottinghamshire County Council,12-08236,EMO OIL LIMITED,Facilities Management,Facilities Management,Utilities,"1,282.60",64.13,"1,346.73",21-Mar-11,COMMUNITIES
Nottinghamshire County Council,12-08237,EMO OIL LIMITED,Facilities Management,Facilities Management,Utilities,"4,525.79",905.16,"5,430.95",21-Mar-11,COMMUNITIES
Nottinghamshire County Council,12-08238,EMO OIL LIMITED,Facilities Management,Facilities Management,Utilities,"5,767.00","1,153.40","6,920.40",21-Mar-11,COMMUNITIES
Nottinghamshire County Council,12-08431,EMO OIL LIMITED,Facilities Management,Facilities Management,Utilities,"5,801.00","1,160.20","6,961.20",21-Mar-11,COMMUNITIES
Nottinghamshire County Council,12-08432,EMO OIL LIMITED,Facilities Management,Facilities Management,Utilities,"2,701.20",540.24,"3,241.44",21-Mar-11,COMMUNITIES
Nottinghamshire County Council,12-08683,W T BURDEN LIMITED,External Services,External Services,Building and Construction Supplies,93.75,18.75,112.5,28-Mar-11,COMMUNITIES
Nottinghamshire County Council,12-08683,W T BURDEN LIMITED,External Services,External Services,Building and Construction Supplies,331.32,66.26,397.58,28-Mar-11,COMMUNITIES
Nottinghamshire County Council,12-08683,W T BURDEN LIMITED,External Services,External Services,Building and Construction Supplies,"1,471.68",294.34,"1,766.02",28-Mar-11,COMMUNITIES
Nottinghamshire County Council,12-08684,W T BURDEN LIMITED,External Services,External Services,Building and Construction Supplies,717.02,143.4,860.42,23-Mar-11,COMMUNITIES
Nottinghamshire County Council,12-08685,CLEVELAND CABLE COMPANY LIMITED,Facilities Management,Facilities Management,Electrical Systems & Lighting,"1,376.00",275.2,"1,651.20",23-Mar-11,COMMUNITIES
Nottinghamshire County Council,12-08686,CHARLES ENDIRECT LIMITED,Facilities Management,Facilities Management,Electrical Systems & Lighting,608,121.6,729.6,23-Mar-11,COMMUNITIES
Nottinghamshire County Council,12-08688,INSTARMAC LIMITED,Facilities Management,Facilities Management,Highways & Works,543.2,108.64,651.84,23-Mar-11,COMMUNITIES
Nottinghamshire County Council,12-08689,INSTARMAC LIMITED,Facilities Management,Facilities Management,Highways & Works,543.2,108.64,651.84,23-Mar-11,COMMUNITIES
Nottinghamshire County Council,12-08690,MUDFORDS LIMITED,External Services,External Services,Building and Construction Supplies,369.6,73.92,443.52,23-Mar-11,COMMUNITIES
Nottinghamshire County Council,12-08690,MUDFORDS LIMITED,External Services,External Services,Building and Construction Supplies,492.8,98.56,591.36,23-Mar-11,COMMUNITIES
Nottinghamshire County Council,12-08690,MUDFORDS LIMITED,External Services,External Services,Building and Construction Supplies,985.6,197.12,"1,182.72",23-Mar-11,COMMUNITIES
Nottinghamshire County Council,12-08970,EMO OIL LIMITED,Facilities Management,Facilities Management,Utilities,"5,740.00","1,148.00","6,888.00",23-Mar-11,COMMUNITIES
Nottinghamshire County Council,12-08988,THE POST & COLUMN CO LIMITED,External Services,External Services,Building and Construction Supplies,"4,176.00",835.2,"5,011.20",24-Mar-11,COMMUNITIES
Nottinghamshire County Council,12-09122,BUCKLEY ENGINEERING SERVICES LIMITED,Professional Services,Professional Services,Professional engineering services,"1,014.00",202.8,"1,216.80",29-Mar-11,COMMUNITIES
Nottinghamshire County Council,12-09123,I S P INDUSTRIAL SUPPORT PRODUCTS LIMITED,Facilities Management,Facilities Management,Electrical Systems & Lighting,322.5,64.5,387,29-Mar-11,COMMUNITIES
Nottinghamshire County Council,12-09123,I S P INDUSTRIAL SUPPORT PRODUCTS LIMITED,Facilities Management,Facilities Management,Electrical Systems & Lighting,575,115,690,29-Mar-11,COMMUNITIES
Nottinghamshire County Council,12-09363,PUDSEY DIAMOND ENGINEERING LIMITED,Professional Services,Professional Services,Professional engineering services,"1,454.64",290.93,"1,745.57",25-Mar-11,COMMUNITIES
Nottinghamshire County Council,12-09364,KEYLINE BUILDERS MERCHANTS,Facilities Management,Facilities Management,Building construction services,543.8,108.76,652.56,25-Mar-11,COMMUNITIES
Nottinghamshire County Council,12-09364,KEYLINE BUILDERS MERCHANTS,Facilities Management,Facilities Management,Building construction services,855.6,171.12,"1,026.72",25-Mar-11,COMMUNITIES
Nottinghamshire County Council,12-09365,KEYLINE BUILDERS MERCHANTS,Facilities Management,Facilities Management,Building construction services,"2,566.80",513.36,"3,080.16",25-Mar-11,COMMUNITIES
Nottinghamshire County Council,12-09366,KEYLINE BUILDERS MERCHANTS,Facilities Management,Facilities Management,Building construction services,783.2,156.64,939.84,25-Mar-11,COMMUNITIES
Nottinghamshire County Council,12-09709,EMO OIL LIMITED,Facilities Management,Facilities Management,Utilities,"4,649.40",929.88,"5,579.28",28-Mar-11,COMMUNITIES
Nottinghamshire County Council,12-09710,EMO OIL LIMITED,Facilities Management,Facilities Management,Utilities,"5,760.00","1,152.00","6,912.00",28-Mar-11,COMMUNITIES
Nottinghamshire County Council,12-09745,W T BURDEN LIMITED,External Services,External Services,Building and Construction Supplies,537.77,107.55,645.32,29-Mar-11,COMMUNITIES
Nottinghamshire County Council,12-09753,ENERGAS LIMITED,External Services,External Services,Chemicals & Gases,490.88,98.18,589.06,30-Mar-11,COMMUNITIES
Nottinghamshire County Council,12-09753,ENERGAS LIMITED,External Services,External Services,Chemicals & Gases,47.2,9.44,56.64,30-Mar-11,COMMUNITIES
Nottinghamshire County Council,12-13454,EMO OIL LIMITED,Facilities Management,Facilities Management,Utilities,"4,395.87",879.17,"5,275.04",30-Mar-11,COMMUNITIES
Nottinghamshire County Council,12-13477,BEESWIFT,Facilities Management,Facilities Management,Clothing,71.85,14.37,86.22,31-Mar-11,COMMUNITIES
Nottinghamshire County Council,12-13477,BEESWIFT,Facilities Management,Facilities Management,Clothing,109.75,21.95,131.7,31-Mar-11,COMMUNITIES
Nottinghamshire County Council,12-13477,BEESWIFT,Facilities Management,Facilities Management,Clothing,109.75,21.95,131.7,31-Mar-11,COMMUNITIES
Nottinghamshire County Council,12-13477,BEESWIFT,Facilities Management,Facilities Management,Clothing,239.5,47.9,287.4,31-Mar-11,COMMUNITIES
Nottinghamshire County Council,12-13477,BEESWIFT,Facilities Management,Facilities Management,Clothing,239.5,47.9,287.4,31-Mar-11,COMMUNITIES
Nottinghamshire County Council,12-13477,BEESWIFT,Facilities Management,Facilities Management,Clothing,239.5,47.9,287.4,31-Mar-11,COMMUNITIES
Nottinghamshire County Council,12-00245,EXPRESS LOGISTICS (NOTTINGHAM) LIMITED,Facilities Management,Facilities Management,Mail and Couriers,"1,580.80",316.16,"1,896.96",21-Mar-11,COMMUNITIES
Nottinghamshire County Council,12-00511,CREST SOFTWARE LIMITED,ICT,ICT,Software,"2,025.00",405,"2,430.00",10-Mar-11,COMMUNITIES
Nottinghamshire County Council,12-06767,NNAS (TRADING) LIMITED,People,People,Vocational training,"1,115.00",223,"1,338.00",28-Mar-11,COMMUNITIES
Nottinghamshire County Council,12-09291,KONICA MINOLTA,ICT,ICT,Printing and publishing equipment and supplies,546,0,546,30-Mar-11,COMMUNITIES
Nottinghamshire County Council,12-09291,KONICA MINOLTA,ICT,ICT,Printing and publishing equipment and supplies,118.8,0,118.8,30-Mar-11,COMMUNITIES
Nottinghamshire County Council,12-00911,ASLEC,Professional Services,Professional Services,Politics and Civic Affairs,180,36,216,10-Mar-11,COMMUNITIES
Nottinghamshire County Council,12-06283,E M D D LIMITED,Transport & Travel,Transport & Travel,Tools and General Machinery,500,87.5,587.5,11-Mar-11,COMMUNITIES
Nottinghamshire County Council,12-08677,VODAFONE LIMITED,ICT,ICT,Telecommunications & Media,470,94,564,24-Mar-11,COMMUNITIES
Nottinghamshire County Council,12-09327,E M D D LIMITED,Transport & Travel,Transport & Travel,Tools and General Machinery,"1,200.00",0,"1,200.00",25-Mar-11,COMMUNITIES
Nottinghamshire County Council,12-05081,SKILLS TRAINING CENTRE,People,People,Vocational training,852.5,0,852.5,24-Mar-11,COMMUNITIES
Nottinghamshire County Council,12-06559,BRITISH STANDARDS INSTITUTE,External Services,External Services,Organisations and Clubs,761,0,761,14-Mar-11,COMMUNITIES
Nottinghamshire County Council,12-07245,JMP CONSULTANTS LTD,Professional Services,Professional Services,Consultancy,"4,770.00",0,"4,770.00",15-Mar-11,COMMUNITIES
Nottinghamshire County Council,12-08208,DRAKEWELL,ICT,ICT,Computer Equipment and Accessories,"4,630.00",0,"4,630.00",18-Mar-11,COMMUNITIES
Nottinghamshire County Council,12-08209,DRAKEWELL,ICT,ICT,Computer Equipment and Accessories,"1,800.00",0,"1,800.00",18-Mar-11,COMMUNITIES
Nottinghamshire County Council,12-04769,TRUVELO (UK) LIMITED,Facilities Management,Facilities Management,Highways & Works,653,0,653,04-Mar-11,COMMUNITIES
Nottinghamshire County Council,12-04769,TRUVELO (UK) LIMITED,Facilities Management,Facilities Management,Highways & Works,580,0,580,04-Mar-11,COMMUNITIES
Nottinghamshire County Council,12-04769,TRUVELO (UK) LIMITED,Facilities Management,Facilities Management,Highways & Works,46,0,46,04-Mar-11,COMMUNITIES
Nottinghamshire County Council,12-04769,TRUVELO (UK) LIMITED,Facilities Management,Facilities Management,Highways & Works,15,0,15,04-Mar-11,COMMUNITIES
Nottinghamshire County Council,12-04769,TRUVELO (UK) LIMITED,Facilities Management,Facilities Management,Highways & Works,190,0,190,04-Mar-11,COMMUNITIES
Nottinghamshire County Council,12-04769,TRUVELO (UK) LIMITED,Facilities Management,Facilities Management,Highways & Works,240,0,240,04-Mar-11,COMMUNITIES
Nottinghamshire County Council,12-04769,TRUVELO (UK) LIMITED,Facilities Management,Facilities Management,Highways & Works,60,0,60,04-Mar-11,COMMUNITIES
Nottinghamshire County Council,12-04769,TRUVELO (UK) LIMITED,Facilities Management,Facilities Management,Highways & Works,475,0,475,04-Mar-11,COMMUNITIES
Nottinghamshire County Council,12-04769,TRUVELO (UK) LIMITED,Facilities Management,Facilities Management,Highways & Works,370,0,370,04-Mar-11,COMMUNITIES
Nottinghamshire County Council,12-04595,CHIPSIDE LIMITED,ICT,ICT,Software,"2,254.80",0,"2,254.80",03-Mar-11,COMMUNITIES
Nottinghamshire County Council,12-05346,ROYAL MAIL GROUP PLC,Facilities Management,Facilities Management,Mail and Couriers,20.88,0,20.88,08-Mar-11,COMMUNITIES
Nottinghamshire County Council,12-05346,ROYAL MAIL GROUP PLC,Facilities Management,Facilities Management,Mail and Couriers,43.25,0,43.25,08-Mar-11,COMMUNITIES
Nottinghamshire County Council,12-05346,ROYAL MAIL GROUP PLC,Facilities Management,Facilities Management,Mail and Couriers,48.6,0,48.6,08-Mar-11,COMMUNITIES
Nottinghamshire County Council,12-05346,ROYAL MAIL GROUP PLC,Facilities Management,Facilities Management,Mail and Couriers,48.75,0,48.75,08-Mar-11,COMMUNITIES
Nottinghamshire County Council,12-05346,ROYAL MAIL GROUP PLC,Facilities Management,Facilities Management,Mail and Couriers,318.96,0,318.96,08-Mar-11,COMMUNITIES
Nottinghamshire County Council,12-05346,ROYAL MAIL GROUP PLC,Facilities Management,Facilities Management,Mail and Couriers,58.25,0,58.25,08-Mar-11,COMMUNITIES
Nottinghamshire County Council,12-05346,ROYAL MAIL GROUP PLC,Facilities Management,Facilities Management,Mail and Couriers,79.92,0,79.92,08-Mar-11,COMMUNITIES
Nottinghamshire County Council,12-05346,ROYAL MAIL GROUP PLC,Facilities Management,Facilities Management,Mail and Couriers,45.75,0,45.75,08-Mar-11,COMMUNITIES
Nottinghamshire County Council,12-05346,ROYAL MAIL GROUP PLC,Facilities Management,Facilities Management,Mail and Couriers,51.5,0,51.5,08-Mar-11,COMMUNITIES
Nottinghamshire County Council,12-05346,ROYAL MAIL GROUP PLC,Facilities Management,Facilities Management,Mail and Couriers,50.4,0,50.4,08-Mar-11,COMMUNITIES
Nottinghamshire County Council,12-05346,ROYAL MAIL GROUP PLC,Facilities Management,Facilities Management,Mail and Couriers,236.52,0,236.52,08-Mar-11,COMMUNITIES
Nottinghamshire County Council,12-05346,ROYAL MAIL GROUP PLC,Facilities Management,Facilities Management,Mail and Couriers,40.5,0,40.5,08-Mar-11,COMMUNITIES
Nottinghamshire County Council,12-05346,ROYAL MAIL GROUP PLC,Facilities Management,Facilities Management,Mail and Couriers,47.16,0,47.16,08-Mar-11,COMMUNITIES
Nottinghamshire County Council,12-05346,ROYAL MAIL GROUP PLC,Facilities Management,Facilities Management,Mail and Couriers,48.5,0,48.5,08-Mar-11,COMMUNITIES
Nottinghamshire County Council,12-05346,ROYAL MAIL GROUP PLC,Facilities Management,Facilities Management,Mail and Couriers,49.68,0,49.68,08-Mar-11,COMMUNITIES
Nottinghamshire County Council,12-05346,ROYAL MAIL GROUP PLC,Facilities Management,Facilities Management,Mail and Couriers,55.75,0,55.75,08-Mar-11,COMMUNITIES
Nottinghamshire County Council,12-05346,ROYAL MAIL GROUP PLC,Facilities Management,Facilities Management,Mail and Couriers,131.04,0,131.04,08-Mar-11,COMMUNITIES
Nottinghamshire County Council,12-05346,ROYAL MAIL GROUP PLC,Facilities Management,Facilities Management,Mail and Couriers,50.25,0,50.25,08-Mar-11,COMMUNITIES
Nottinghamshire County Council,12-05346,ROYAL MAIL GROUP PLC,Facilities Management,Facilities Management,Mail and Couriers,37.08,0,37.08,08-Mar-11,COMMUNITIES
Nottinghamshire County Council,12-05346,ROYAL MAIL GROUP PLC,Facilities Management,Facilities Management,Mail and Couriers,41.25,0,41.25,08-Mar-11,COMMUNITIES
Nottinghamshire County Council,12-05863,PATROL,Professional Services,Professional Services,Politics and Civic Affairs,"5,525.00",0,"5,525.00",22-Mar-11,COMMUNITIES
Nottinghamshire County Council,12-05863,PATROL,Professional Services,Professional Services,Politics and Civic Affairs,"4,483.05",0,"4,483.05",22-Mar-11,COMMUNITIES
Nottinghamshire County Council,12-05863,PATROL,Professional Services,Professional Services,Politics and Civic Affairs,"-5,525.00",0,"-5,525.00",22-Mar-11,COMMUNITIES
Nottinghamshire County Council,12-05863,PATROL,Professional Services,Professional Services,Politics and Civic Affairs,"-1,727.88",0,"-1,727.88",22-Mar-11,COMMUNITIES
Nottinghamshire County Council,12-05864,PATROL,Professional Services,Professional Services,Politics and Civic Affairs,"8,775.00",0,"8,775.00",22-Mar-11,COMMUNITIES
Nottinghamshire County Council,12-05864,PATROL,Professional Services,Professional Services,Politics and Civic Affairs,"8,713.25",0,"8,713.25",22-Mar-11,COMMUNITIES
Nottinghamshire County Council,12-05864,PATROL,Professional Services,Professional Services,Politics and Civic Affairs,"-8,775.00",0,"-8,775.00",22-Mar-11,COMMUNITIES
Nottinghamshire County Council,12-05864,PATROL,Professional Services,Professional Services,Politics and Civic Affairs,"-3,001.09",0,"-3,001.09",22-Mar-11,COMMUNITIES
Nottinghamshire County Council,12-06298,N S L LIMITED,Transport & Travel,Transport & Travel,Motor vehicles,"6,799.76",0,"6,799.76",11-Mar-11,COMMUNITIES
Nottinghamshire County Council,12-06298,N S L LIMITED,Transport & Travel,Transport & Travel,Motor vehicles,"84,699.17",0,"84,699.17",11-Mar-11,COMMUNITIES
Nottinghamshire County Council,12-06569,ROYAL MAIL GROUP PLC,Facilities Management,Facilities Management,Mail and Couriers,90,0,90,14-Mar-11,COMMUNITIES
Nottinghamshire County Council,12-06569,ROYAL MAIL GROUP PLC,Facilities Management,Facilities Management,Mail and Couriers,29,0,29,14-Mar-11,COMMUNITIES
Nottinghamshire County Council,12-06569,ROYAL MAIL GROUP PLC,Facilities Management,Facilities Management,Mail and Couriers,83.52,0,83.52,14-Mar-11,COMMUNITIES
Nottinghamshire County Council,12-06569,ROYAL MAIL GROUP PLC,Facilities Management,Facilities Management,Mail and Couriers,39.25,0,39.25,14-Mar-11,COMMUNITIES
Nottinghamshire County Council,12-06569,ROYAL MAIL GROUP PLC,Facilities Management,Facilities Management,Mail and Couriers,273.6,0,273.6,14-Mar-11,COMMUNITIES
Nottinghamshire County Council,12-06569,ROYAL MAIL GROUP PLC,Facilities Management,Facilities Management,Mail and Couriers,25,0,25,14-Mar-11,COMMUNITIES
Nottinghamshire County Council,12-06569,ROYAL MAIL GROUP PLC,Facilities Management,Facilities Management,Mail and Couriers,43.25,0,43.25,14-Mar-11,COMMUNITIES
Nottinghamshire County Council,12-06569,ROYAL MAIL GROUP PLC,Facilities Management,Facilities Management,Mail and Couriers,132.84,0,132.84,14-Mar-11,COMMUNITIES
Nottinghamshire County Council,12-06569,ROYAL MAIL GROUP PLC,Facilities Management,Facilities Management,Mail and Couriers,75.6,0,75.6,14-Mar-11,COMMUNITIES
Nottinghamshire County Council,12-06569,ROYAL MAIL GROUP PLC,Facilities Management,Facilities Management,Mail and Couriers,62,0,62,14-Mar-11,COMMUNITIES
Nottinghamshire County Council,12-06569,ROYAL MAIL GROUP PLC,Facilities Management,Facilities Management,Mail and Couriers,42.5,0,42.5,14-Mar-11,COMMUNITIES
Nottinghamshire County Council,12-06569,ROYAL MAIL GROUP PLC,Facilities Management,Facilities Management,Mail and Couriers,127.8,0,127.8,14-Mar-11,COMMUNITIES
Nottinghamshire County Council,12-06569,ROYAL MAIL GROUP PLC,Facilities Management,Facilities Management,Mail and Couriers,64.8,0,64.8,14-Mar-11,COMMUNITIES
Nottinghamshire County Council,12-06569,ROYAL MAIL GROUP PLC,Facilities Management,Facilities Management,Mail and Couriers,48.25,0,48.25,14-Mar-11,COMMUNITIES
Nottinghamshire County Council,12-06569,ROYAL MAIL GROUP PLC,Facilities Management,Facilities Management,Mail and Couriers,84.6,0,84.6,14-Mar-11,COMMUNITIES
Nottinghamshire County Council,12-06569,ROYAL MAIL GROUP PLC,Facilities Management,Facilities Management,Mail and Couriers,75.75,0,75.75,14-Mar-11,COMMUNITIES
Nottinghamshire County Council,12-06569,ROYAL MAIL GROUP PLC,Facilities Management,Facilities Management,Mail and Couriers,31.32,0,31.32,14-Mar-11,COMMUNITIES
Nottinghamshire County Council,12-06569,ROYAL MAIL GROUP PLC,Facilities Management,Facilities Management,Mail and Couriers,43.25,0,43.25,14-Mar-11,COMMUNITIES
Nottinghamshire County Council,12-06569,ROYAL MAIL GROUP PLC,Facilities Management,Facilities Management,Mail and Couriers,87.84,0,87.84,14-Mar-11,COMMUNITIES
Nottinghamshire County Council,12-06569,ROYAL MAIL GROUP PLC,Facilities Management,Facilities Management,Mail and Couriers,41,0,41,14-Mar-11,COMMUNITIES
Nottinghamshire County Council,12-07209,ROYAL MAIL GROUP PLC,Facilities Management,Facilities Management,Mail and Couriers,"3,150.00",0,"3,150.00",16-Mar-11,COMMUNITIES
Nottinghamshire County Council,12-06110,SHEFFIELD HALLAM UNIVERSITY,Education & Training,Education & Training,Pre School/ Nursery/ School,"1,500.00",0,"1,500.00",10-Mar-11,COMMUNITIES
Nottinghamshire County Council,12-00586,EDGE ANALYTICS LIMITED,Professional Services,Professional Services,Consultancy,"4,960.00",0,"4,960.00",01-Mar-11,COMMUNITIES
Nottinghamshire County Council,12-00829,EDGE ANALYTICS LIMITED,Professional Services,Professional Services,Consultancy,"2,480.00",0,"2,480.00",15-Mar-11,COMMUNITIES
Nottinghamshire County Council,12-09606,CDPSOFT,TBC,TBC,TBC,"8,652.80",0,"8,652.80",29-Mar-11,COMMUNITIES
Nottinghamshire County Council,12-10061,P R PRINCIPLES LIMITED,Professional Services,Professional Services,Consultancy,"2,120.00",424,"2,544.00",29-Mar-11,COMMUNITIES
Nottinghamshire County Council,12-09017,ENERGY METERING TECHNOLOGY LIMITED,Facilities Management,Facilities Management,Utilities,"1,851.38",0,"1,851.38",24-Mar-11,COMMUNITIES
Nottinghamshire County Council,12-09017,ENERGY METERING TECHNOLOGY LIMITED,Facilities Management,Facilities Management,Utilities,20.5,0,20.5,24-Mar-11,COMMUNITIES
Nottinghamshire County Council,12-09070,SYSTEMSLINK 2000 LTD,ICT,ICT,Software,"1,500.00",0,"1,500.00",24-Mar-11,COMMUNITIES
Nottinghamshire County Council,12-09792,ENERGY METERING TECHNOLOGY LIMITED,Facilities Management,Facilities Management,Utilities,"1,207.07",0,"1,207.07",29-Mar-11,COMMUNITIES
Nottinghamshire County Council,12-06781,ELECT INSTALL & APPLIANCE TEST UK LIMITED,Facilities Management,Facilities Management,Electrical Systems & Lighting,"2,250.40",0,"2,250.40",29-Mar-11,COMMUNITIES
Nottinghamshire County Council,12-06781,ELECT INSTALL & APPLIANCE TEST UK LIMITED,Facilities Management,Facilities Management,Electrical Systems & Lighting,"1,137.60",0,"1,137.60",29-Mar-11,COMMUNITIES
Nottinghamshire County Council,12-06781,ELECT INSTALL & APPLIANCE TEST UK LIMITED,Facilities Management,Facilities Management,Electrical Systems & Lighting,34.5,0,34.5,29-Mar-11,COMMUNITIES
Nottinghamshire County Council,12-06781,ELECT INSTALL & APPLIANCE TEST UK LIMITED,Facilities Management,Facilities Management,Electrical Systems & Lighting,57,0,57,29-Mar-11,COMMUNITIES
Nottinghamshire County Council,12-00041,PHILIPS LIGHTING,Facilities Management,Facilities Management,Electrical Systems & Lighting,"1,335.60",233.73,"1,569.33",30-Mar-11,COMMUNITIES
Nottinghamshire County Council,12-05217,JOHN A STEPHENS LIMITED,External Services,External Services,Building and Construction Supplies,894.35,178.87,"1,073.22",15-Mar-11,COMMUNITIES
Nottinghamshire County Council,12-06832,JOHN A STEPHENS LIMITED,External Services,External Services,Building and Construction Supplies,-894.35,-178.87,"-1,073.22",15-Mar-11,COMMUNITIES
Nottinghamshire County Council,12-09926,PHILIPS LIGHTING,Facilities Management,Facilities Management,Electrical Systems & Lighting,"-1,335.60",-267.12,"-1,602.72",30-Mar-11,COMMUNITIES
Nottinghamshire County Council,12-05881,LINDLEY CATERING LIMITED,Transport & Travel,Transport & Travel,Restaurants and catering,224,0,224,09-Mar-11,COMMUNITIES
Nottinghamshire County Council,12-05881,LINDLEY CATERING LIMITED,Transport & Travel,Transport & Travel,Restaurants and catering,192,0,192,09-Mar-11,COMMUNITIES
Nottinghamshire County Council,12-05881,LINDLEY CATERING LIMITED,Transport & Travel,Transport & Travel,Restaurants and catering,457.92,0,457.92,09-Mar-11,COMMUNITIES
Nottinghamshire County Council,12-05881,LINDLEY CATERING LIMITED,Transport & Travel,Transport & Travel,Restaurants and catering,6.67,0,6.67,09-Mar-11,COMMUNITIES
Nottinghamshire County Council,12-05881,LINDLEY CATERING LIMITED,Transport & Travel,Transport & Travel,Restaurants and catering,99.17,0,99.17,09-Mar-11,COMMUNITIES
Nottinghamshire County Council,12-05881,LINDLEY CATERING LIMITED,Transport & Travel,Transport & Travel,Restaurants and catering,443.33,0,443.33,09-Mar-11,COMMUNITIES
Nottinghamshire County Council,12-09012,JBA CONSULTING,Professional Services,Professional Services,Consultancy,"3,500.00",0,"3,500.00",24-Mar-11,COMMUNITIES
Nottinghamshire County Council,12-07744,E M D D LIMITED,Transport & Travel,Transport & Travel,Tools and General Machinery,604.54,120.91,725.45,17-Mar-11,COMMUNITIES
Nottinghamshire County Council,12-07779,E M D D LIMITED,Transport & Travel,Transport & Travel,Tools and General Machinery,610.75,122.15,732.9,17-Mar-11,COMMUNITIES
Nottinghamshire County Council,12-09750,E M D D LIMITED,Transport & Travel,Transport & Travel,Tools and General Machinery,438,76.65,514.65,28-Mar-11,COMMUNITIES
Nottinghamshire County Council,12-09868,E M D D LIMITED,Transport & Travel,Transport & Travel,Tools and General Machinery,683.5,119.61,803.11,29-Mar-11,COMMUNITIES
Nottinghamshire County Council,12-07734,E M D D LIMITED,Transport & Travel,Transport & Travel,Tools and General Machinery,660,132,792,17-Mar-11,COMMUNITIES
Nottinghamshire County Council,12-07737,E M D D LIMITED,Transport & Travel,Transport & Travel,Tools and General Machinery,"1,099.65",219.93,"1,319.58",17-Mar-11,COMMUNITIES
Nottinghamshire County Council,12-07743,E M D D LIMITED,Transport & Travel,Transport & Travel,Tools and General Machinery,660,132,792,17-Mar-11,COMMUNITIES
Nottinghamshire County Council,12-07776,E M D D LIMITED,Transport & Travel,Transport & Travel,Tools and General Machinery,687,137.4,824.4,17-Mar-11,COMMUNITIES
Nottinghamshire County Council,12-07782,E M D D LIMITED,Transport & Travel,Transport & Travel,Tools and General Machinery,683,136.6,819.6,17-Mar-11,COMMUNITIES
Nottinghamshire County Council,12-09748,E M D D LIMITED,Transport & Travel,Transport & Travel,Tools and General Machinery,683.5,119.61,803.11,28-Mar-11,COMMUNITIES
Nottinghamshire County Council,12-06402,E M D D LIMITED,Transport & Travel,Transport & Travel,Tools and General Machinery,705,141,846,11-Mar-11,COMMUNITIES
Nottinghamshire County Council,12-06403,E M D D LIMITED,Transport & Travel,Transport & Travel,Tools and General Machinery,705,141,846,11-Mar-11,COMMUNITIES
Nottinghamshire County Council,12-09838,SIEMENS PLC,Facilities Management,Facilities Management,Electrical Systems & Lighting,499.98,0,499.98,29-Mar-11,COMMUNITIES
Nottinghamshire County Council,12-07738,E M D D LIMITED,Transport & Travel,Transport & Travel,Tools and General Machinery,637.75,127.55,765.3,17-Mar-11,COMMUNITIES
Nottinghamshire County Council,12-07742,E M D D LIMITED,Transport & Travel,Transport & Travel,Tools and General Machinery,621,124.2,745.2,17-Mar-11,COMMUNITIES
Nottinghamshire County Council,12-07778,E M D D LIMITED,Transport & Travel,Transport & Travel,Tools and General Machinery,792.05,158.41,950.46,17-Mar-11,COMMUNITIES
Nottinghamshire County Council,12-07784,E M D D LIMITED,Transport & Travel,Transport & Travel,Tools and General Machinery,"1,063.07",212.61,"1,275.68",17-Mar-11,COMMUNITIES
Nottinghamshire County Council,12-07733,E M D D LIMITED,Transport & Travel,Transport & Travel,Tools and General Machinery,680,136,816,17-Mar-11,COMMUNITIES
Nottinghamshire County Council,12-07735,E M D D LIMITED,Transport & Travel,Transport & Travel,Tools and General Machinery,500,100,600,17-Mar-11,COMMUNITIES
Nottinghamshire County Council,12-07736,E M D D LIMITED,Transport & Travel,Transport & Travel,Tools and General Machinery,937.27,187.45,"1,124.72",17-Mar-11,COMMUNITIES
Nottinghamshire County Council,12-07783,E M D D LIMITED,Transport & Travel,Transport & Travel,Tools and General Machinery,750,150,900,17-Mar-11,COMMUNITIES
Nottinghamshire County Council,12-09715,E M D D LIMITED,Transport & Travel,Transport & Travel,Tools and General Machinery,711,124.43,835.43,28-Mar-11,COMMUNITIES
Nottinghamshire County Council,12-07777,E M D D LIMITED,Transport & Travel,Transport & Travel,Tools and General Machinery,760,152,912,17-Mar-11,COMMUNITIES
Nottinghamshire County Council,12-04533,E.ON UK ENERGY SERVICES LIMITED,Facilities Management,Facilities Management,Utilities,"34,235.87","6,847.17","41,083.04",03-Mar-11,COMMUNITIES
Nottinghamshire County Council,12-09920,E.ON UK ENERGY SERVICES LIMITED,Facilities Management,Facilities Management,Utilities,"33,816.80","6,763.36","40,580.16",29-Mar-11,COMMUNITIES
Nottinghamshire County Council,12-00464,N POWER,Facilities Management,Facilities Management,Utilities,"545,828.08","27,291.40","573,119.48",07-Mar-11,COMMUNITIES
Nottinghamshire County Council,12-04534,E.ON UK ENERGY SERVICES LIMITED,Facilities Management,Facilities Management,Utilities,"1,273.48",222.86,"1,496.34",03-Mar-11,COMMUNITIES
Nottinghamshire County Council,12-04534,E.ON UK ENERGY SERVICES LIMITED,Facilities Management,Facilities Management,Utilities,"11,885.83","2,377.17","14,263.00",03-Mar-11,COMMUNITIES
Nottinghamshire County Council,12-09919,E.ON UK ENERGY SERVICES LIMITED,Facilities Management,Facilities Management,Utilities,"13,159.31","2,631.86","15,791.17",29-Mar-11,COMMUNITIES
Nottinghamshire County Council,12-05506,FIRST CALL BUSINESS COMMUNICATIONS,ICT,ICT,Communications Devices and Accessories,698.74,139.75,838.49,14-Mar-11,COMMUNITIES
Nottinghamshire County Council,12-06686,FRANK KEY NOTTINGHAM LIMITED,External Services,External Services,Building and Construction Supplies,"1,041.00",182.18,"1,223.18",11-Mar-11,COMMUNITIES
Nottinghamshire County Council,12-09328,SIEMENS PLC,Facilities Management,Facilities Management,Electrical Systems & Lighting,"8,339.00",0,"8,339.00",25-Mar-11,COMMUNITIES
Nottinghamshire County Council,12-04533,E.ON UK ENERGY SERVICES LIMITED,Facilities Management,Facilities Management,Utilities,"3,535.60",618.73,"4,154.33",03-Mar-11,COMMUNITIES
Nottinghamshire County Council,12-09920,E.ON UK ENERGY SERVICES LIMITED,Facilities Management,Facilities Management,Utilities,"3,954.67",790.93,"4,745.60",29-Mar-11,COMMUNITIES
Nottinghamshire County Council,12-08324,PITNEY BOWES SOFTWARE LIMITED,Facilities Management,Facilities Management,Mail and Couriers,"75,494.30","15,098.86","90,593.16",23-Mar-11,COMMUNITIES
Nottinghamshire County Council,12-09071,BUCHANAN COMPUTING LIMITED,ICT,ICT,Software,"3,570.00",0,"3,570.00",24-Mar-11,COMMUNITIES
Nottinghamshire County Council,12-09071,BUCHANAN COMPUTING LIMITED,ICT,ICT,Software,263,0,263,24-Mar-11,COMMUNITIES
Nottinghamshire County Council,12-09071,BUCHANAN COMPUTING LIMITED,ICT,ICT,Software,263,0,263,24-Mar-11,COMMUNITIES
Nottinghamshire County Council,12-09071,BUCHANAN COMPUTING LIMITED,ICT,ICT,Software,613,0,613,24-Mar-11,COMMUNITIES
Nottinghamshire County Council,12-09074,BUCHANAN COMPUTING LIMITED,ICT,ICT,Software,438,0,438,24-Mar-11,COMMUNITIES
Nottinghamshire County Council,12-07179,WOODBOROUGH PARK,Care,TBC,TBC,"5,400.00",0,"5,400.00",16-Mar-11,COMMUNITIES
Nottinghamshire County Council,12-09053,J M COUNTRYSIDE LANDSCAPES,External Services,External Services,Farming Forestry and Wildlife Services,150,0,150,24-Mar-11,COMMUNITIES
Nottinghamshire County Council,12-09053,J M COUNTRYSIDE LANDSCAPES,External Services,External Services,Farming Forestry and Wildlife Services,110,0,110,24-Mar-11,COMMUNITIES
Nottinghamshire County Council,12-09053,J M COUNTRYSIDE LANDSCAPES,External Services,External Services,Farming Forestry and Wildlife Services,140,0,140,24-Mar-11,COMMUNITIES
Nottinghamshire County Council,12-09053,J M COUNTRYSIDE LANDSCAPES,External Services,External Services,Farming Forestry and Wildlife Services,140,0,140,24-Mar-11,COMMUNITIES
Nottinghamshire County Council,12-09053,J M COUNTRYSIDE LANDSCAPES,External Services,External Services,Farming Forestry and Wildlife Services,120,0,120,24-Mar-11,COMMUNITIES
Nottinghamshire County Council,12-09053,J M COUNTRYSIDE LANDSCAPES,External Services,External Services,Farming Forestry and Wildlife Services,110,0,110,24-Mar-11,COMMUNITIES
Nottinghamshire County Council,12-09053,J M COUNTRYSIDE LANDSCAPES,External Services,External Services,Farming Forestry and Wildlife Services,20,0,20,24-Mar-11,COMMUNITIES
Nottinghamshire County Council,12-09053,J M COUNTRYSIDE LANDSCAPES,External Services,External Services,Farming Forestry and Wildlife Services,405,0,405,24-Mar-11,COMMUNITIES
Nottinghamshire County Council,12-01007,COMMERCIAL SURFACE SOLUTIONS,Facilities Management,Facilities Management,Cleaning Equipment and Janitorial Supplies,"3,176.80",0,"3,176.80",18-Mar-11,COMMUNITIES
Nottinghamshire County Council,12-01017,COMMERCIAL SURFACE SOLUTIONS,Facilities Management,Facilities Management,Cleaning Equipment and Janitorial Supplies,"3,637.00",0,"3,637.00",22-Mar-11,COMMUNITIES
Nottinghamshire County Council,12-07230,S P ROSE LIMITED,Facilities Management,Facilities Management,Building construction services,"2,870.00",0,"2,870.00",16-Mar-11,COMMUNITIES
Nottinghamshire County Council,12-08169,NORTH NOTTINGHAMSHIRE LANDSCAPES,External Services,External Services,Farming Forestry and Wildlife Services,"1,545.00",0,"1,545.00",21-Mar-11,COMMUNITIES
Nottinghamshire County Council,12-08808,J M COUNTRYSIDE LANDSCAPES,External Services,External Services,Farming Forestry and Wildlife Services,390,0,390,23-Mar-11,COMMUNITIES
Nottinghamshire County Council,12-08808,J M COUNTRYSIDE LANDSCAPES,External Services,External Services,Farming Forestry and Wildlife Services,55,0,55,23-Mar-11,COMMUNITIES
Nottinghamshire County Council,12-08808,J M COUNTRYSIDE LANDSCAPES,External Services,External Services,Farming Forestry and Wildlife Services,40,0,40,23-Mar-11,COMMUNITIES
Nottinghamshire County Council,12-05388,GREASLEY PARISH CHURCH,External Services,External Services,Organisations and Clubs,"5,000.00",0,"5,000.00",09-Mar-11,COMMUNITIES
Nottinghamshire County Council,12-08174,ALL SEASONS EAST MIDLANDS LIMITED,Facilities Management,Facilities Management,Security,"1,100.00",0,"1,100.00",21-Mar-11,COMMUNITIES
Nottinghamshire County Council,12-08477,ALL SEASONS EAST MIDLANDS LIMITED,Facilities Management,Facilities Management,Security,"1,250.00",0,"1,250.00",23-Mar-11,COMMUNITIES
Nottinghamshire County Council,12-01286,R P HUNT SERVICES,External Services,External Services,Manufacturing Machinery,100,0,100,01-Mar-11,COMMUNITIES
Nottinghamshire County Council,12-06308,CENTREWIRE LIMITED,Facilities Management,Facilities Management,Window and door installation services,"5,175.60",0,"5,175.60",11-Mar-11,COMMUNITIES
Nottinghamshire County Council,12-09260,S P ROSE LIMITED,Facilities Management,Facilities Management,Building construction services,"2,860.00",0,"2,860.00",25-Mar-11,COMMUNITIES
Nottinghamshire County Council,12-09260,S P ROSE LIMITED,Facilities Management,Facilities Management,Building construction services,300,0,300,25-Mar-11,COMMUNITIES
Nottinghamshire County Council,12-01287,R P HUNT SERVICES,External Services,External Services,Manufacturing Machinery,70,0,70,01-Mar-11,COMMUNITIES
Nottinghamshire County Council,12-01287,R P HUNT SERVICES,External Services,External Services,Manufacturing Machinery,20,0,20,01-Mar-11,COMMUNITIES
Nottinghamshire County Council,12-01287,R P HUNT SERVICES,External Services,External Services,Manufacturing Machinery,50,0,50,01-Mar-11,COMMUNITIES
Nottinghamshire County Council,12-01287,R P HUNT SERVICES,External Services,External Services,Manufacturing Machinery,70,0,70,01-Mar-11,COMMUNITIES
Nottinghamshire County Council,12-01287,R P HUNT SERVICES,External Services,External Services,Manufacturing Machinery,110,0,110,01-Mar-11,COMMUNITIES
Nottinghamshire County Council,12-01287,R P HUNT SERVICES,External Services,External Services,Manufacturing Machinery,130,0,130,01-Mar-11,COMMUNITIES
Nottinghamshire County Council,12-01287,R P HUNT SERVICES,External Services,External Services,Manufacturing Machinery,10,0,10,01-Mar-11,COMMUNITIES
Nottinghamshire County Council,12-01286,R P HUNT SERVICES,External Services,External Services,Manufacturing Machinery,750,0,750,01-Mar-11,COMMUNITIES
Nottinghamshire County Council,12-06792,R P HUNT SERVICES,External Services,External Services,Manufacturing Machinery,750,0,750,15-Mar-11,COMMUNITIES
Nottinghamshire County Council,12-05388,GREASLEY PARISH CHURCH,External Services,External Services,Organisations and Clubs,"5,000.00",0,"5,000.00",09-Mar-11,COMMUNITIES
Nottinghamshire County Council,12-07181,HAWTHORNES OF NOTTINGHAM LIMITED,Professional Services,Professional Services,"Reproduction, Photographic and Design Services","5,260.00",0,"5,260.00",16-Mar-11,COMMUNITIES
Nottinghamshire County Council,12-07185,HAWTHORNES OF NOTTINGHAM LIMITED,Professional Services,Professional Services,"Reproduction, Photographic and Design Services","1,230.00",0,"1,230.00",16-Mar-11,COMMUNITIES
Nottinghamshire County Council,12-01024,EPS GROUP,Professional Services,Professional Services,Consultancy,"3,000.00",600,"3,600.00",01-Mar-11,COMMUNITIES
Nottinghamshire County Council,12-09222,EPS GROUP,Professional Services,Professional Services,Consultancy,"2,400.00",480,"2,880.00",29-Mar-11,COMMUNITIES
Nottinghamshire County Council,12-09571,AQUILA GREEN,Professional Services,Professional Services,Consultancy,"1,082.26",0,"1,082.26",28-Mar-11,COMMUNITIES
Nottinghamshire County Council,12-09571,AQUILA GREEN,Professional Services,Professional Services,Consultancy,"7,578.13","1,515.63","9,093.76",28-Mar-11,COMMUNITIES
Nottinghamshire County Council,12-09087,RURAL COMMUNITY ACTION GROUP,External Services,External Services,Organisations and Clubs,"23,095.32",0,"23,095.32",24-Mar-11,COMMUNITIES
Nottinghamshire County Council,12-09088,RURAL COMMUNITY ACTION GROUP,External Services,External Services,Organisations and Clubs,"9,200.00",0,"9,200.00",24-Mar-11,COMMUNITIES
Nottinghamshire County Council,12-05453,ENVIRONMENT AGENCY,Professional Services,Professional Services,Politics and Civic Affairs,"1,290.00",0,"1,290.00",09-Mar-11,COMMUNITIES
Nottinghamshire County Council,12-07665,EXEGESIS,ICT,ICT,Software,717,0,717,17-Mar-11,COMMUNITIES
Nottinghamshire County Council,12-07951,DEPARTMENT FOR TRANSPORT,Professional Services,Professional Services,Politics and Civic Affairs,"217,683.83","43,536.77","261,220.60",22-Mar-11,COMMUNITIES
Nottinghamshire County Council,12-01021,WASTE RECYCLING GROUP PLC,External Services,External Services,Scrap and waste materials,"72,330.74","14,466.15","86,796.89",01-Mar-11,COMMUNITIES
Nottinghamshire County Council,12-01022,WASTE RECYCLING GROUP PLC,External Services,External Services,Scrap and waste materials,"74,256.74","14,851.35","89,108.09",01-Mar-11,COMMUNITIES
Nottinghamshire County Council,12-01023,WASTE RECYCLING GROUP PLC,External Services,External Services,Scrap and waste materials,"75,165.46","15,033.09","90,198.55",01-Mar-11,COMMUNITIES
Nottinghamshire County Council,12-09654,WASTE RECYCLING GROUP PLC,External Services,External Services,Scrap and waste materials,"36,171.41","7,234.28","43,405.69",30-Mar-11,COMMUNITIES
Nottinghamshire County Council,12-09655,WASTE RECYCLING GROUP PLC,External Services,External Services,Scrap and waste materials,"36,386.61","7,277.32","43,663.93",30-Mar-11,COMMUNITIES
Nottinghamshire County Council,12-09656,WASTE RECYCLING GROUP PLC,External Services,External Services,Scrap and waste materials,"36,042.07","7,208.41","43,250.48",30-Mar-11,COMMUNITIES
Nottinghamshire County Council,12-09671,WASTE RECYCLING GROUP PLC,External Services,External Services,Scrap and waste materials,"-13,172.31","-2,634.46","-15,806.77",30-Mar-11,COMMUNITIES
Nottinghamshire County Council,12-09672,WASTE RECYCLING GROUP PLC,External Services,External Services,Scrap and waste materials,"-13,371.74","-2,674.35","-16,046.09",30-Mar-11,COMMUNITIES
Nottinghamshire County Council,12-04701,WASTE RECYCLING GROUP PLC,External Services,External Services,Scrap and waste materials,"5,882.24","1,176.45","7,058.69",04-Mar-11,COMMUNITIES
Nottinghamshire County Council,12-07490,WASTE RECYCLING GROUP PLC,External Services,External Services,Scrap and waste materials,"2,537.10",443.99,"2,981.09",18-Mar-11,COMMUNITIES
Nottinghamshire County Council,12-08016,GEORGES CONTRACTORS LIMITED,Facilities Management,Facilities Management,Building construction services,475,0,475,18-Mar-11,COMMUNITIES
Nottinghamshire County Council,12-00043,VEOLIA ENVIRONMENTAL SERVICES,External Services,External Services,Scrap and waste materials,"-1,289.02",-225.58,"-1,514.60",01-Mar-11,COMMUNITIES
Nottinghamshire County Council,12-05100,R C TUXFORD PROPERTIES,Professional Services,Professional Services,Property Management,"6,250.00",0,"6,250.00",07-Mar-11,COMMUNITIES
Nottinghamshire County Council,12-09083,NEWLAND FREEHOLDS LIMITED,Professional Services,Professional Services,Property Management,"6,250.00",0,"6,250.00",30-Mar-11,COMMUNITIES
Nottinghamshire County Council,12-09084,S R C L LIMITED,External Services,External Services,Scrap and waste materials,"14,030.02",0,"14,030.02",24-Mar-11,COMMUNITIES
Nottinghamshire County Council,12-09208,BARNARDOS,Care,Care,Adoption Services,745.95,0,745.95,25-Mar-11,COMMUNITIES
Nottinghamshire County Council,12-09209,NOTTS POLICE AID CONVOY,Professional Services,Professional Services,Politics and Civic Affairs,"2,650.72",0,"2,650.72",28-Mar-11,COMMUNITIES
Nottinghamshire County Council,12-07709,SHARPE PRITCHARD SOLICITORS,Professional Services,Professional Services,Legal services,"2,730.00",0,"2,730.00",17-Mar-11,COMMUNITIES
Nottinghamshire County Council,12-09822,SHARPE PRITCHARD SOLICITORS,Professional Services,Professional Services,Legal services,433.33,0,433.33,29-Mar-11,COMMUNITIES
Nottinghamshire County Council,12-13309,SHARPE PRITCHARD SOLICITORS,Professional Services,Professional Services,Legal services,21,3.68,24.68,30-Mar-11,COMMUNITIES
Nottinghamshire County Council,12-13309,SHARPE PRITCHARD SOLICITORS,Professional Services,Professional Services,Legal services,"3,341.00",584.68,"3,925.68",30-Mar-11,COMMUNITIES
Nottinghamshire County Council,12-13310,SHARPE PRITCHARD SOLICITORS,Professional Services,Professional Services,Legal services,5,0.88,5.88,30-Mar-11,COMMUNITIES
Nottinghamshire County Council,12-13310,SHARPE PRITCHARD SOLICITORS,Professional Services,Professional Services,Legal services,"2,249.00",393.58,"2,642.58",30-Mar-11,COMMUNITIES
Nottinghamshire County Council,12-13311,SHARPE PRITCHARD SOLICITORS,Professional Services,Professional Services,Legal services,190,0,190,30-Mar-11,COMMUNITIES
Nottinghamshire County Council,12-13311,SHARPE PRITCHARD SOLICITORS,Professional Services,Professional Services,Legal services,7.95,0,7.95,30-Mar-11,COMMUNITIES
Nottinghamshire County Council,12-13311,SHARPE PRITCHARD SOLICITORS,Professional Services,Professional Services,Legal services,"6,799.00",0,"6,799.00",30-Mar-11,COMMUNITIES
Nottinghamshire County Council,12-09871,ENVALUE SOLUTIONS LIMITED,TBC,TBC,TBC,-780,-156,-936,30-Mar-11,COMMUNITIES
Nottinghamshire County Council,12-09871,ENVALUE SOLUTIONS LIMITED,TBC,TBC,TBC,780,136.5,916.5,30-Mar-11,COMMUNITIES
Nottinghamshire County Council,12-09871,ENVALUE SOLUTIONS LIMITED,TBC,TBC,TBC,"3,600.00",720,"4,320.00",30-Mar-11,COMMUNITIES
Nottinghamshire County Council,12-04506,VEOLIA ENVIRONMENTAL SERVICES,External Services,External Services,Scrap and waste materials,"504,477.21","88,283.51","592,760.72",01-Mar-11,COMMUNITIES
Nottinghamshire County Council,12-08090,VEOLIA ENVIRONMENTAL SERVICES,External Services,External Services,Scrap and waste materials,"669,605.46","133,921.09","803,526.55",22-Mar-11,COMMUNITIES
Nottinghamshire County Council,12-04506,VEOLIA ENVIRONMENTAL SERVICES,External Services,External Services,Scrap and waste materials,"2,983.94",522.19,"3,506.13",01-Mar-11,COMMUNITIES
Nottinghamshire County Council,12-08090,VEOLIA ENVIRONMENTAL SERVICES,External Services,External Services,Scrap and waste materials,"22,179.88","4,435.98","26,615.86",22-Mar-11,COMMUNITIES
Nottinghamshire County Council,12-04506,VEOLIA ENVIRONMENTAL SERVICES,External Services,External Services,Scrap and waste materials,"8,044.70","1,407.82","9,452.52",01-Mar-11,COMMUNITIES
Nottinghamshire County Council,12-08090,VEOLIA ENVIRONMENTAL SERVICES,External Services,External Services,Scrap and waste materials,"29,841.74","5,968.35","35,810.09",22-Mar-11,COMMUNITIES
Nottinghamshire County Council,12-04506,VEOLIA ENVIRONMENTAL SERVICES,External Services,External Services,Scrap and waste materials,"296,262.66","51,845.96","348,108.62",01-Mar-11,COMMUNITIES
Nottinghamshire County Council,12-08090,VEOLIA ENVIRONMENTAL SERVICES,External Services,External Services,Scrap and waste materials,"380,024.18","76,004.84","456,029.02",22-Mar-11,COMMUNITIES
Nottinghamshire County Council,12-04506,VEOLIA ENVIRONMENTAL SERVICES,External Services,External Services,Scrap and waste materials,"26,099.11","4,567.34","30,666.45",01-Mar-11,COMMUNITIES
Nottinghamshire County Council,12-08090,VEOLIA ENVIRONMENTAL SERVICES,External Services,External Services,Scrap and waste materials,"38,456.89","7,691.38","46,148.27",22-Mar-11,COMMUNITIES
Nottinghamshire County Council,12-04506,VEOLIA ENVIRONMENTAL SERVICES,External Services,External Services,Scrap and waste materials,"19,970.05","3,494.76","23,464.81",01-Mar-11,COMMUNITIES
Nottinghamshire County Council,12-08090,VEOLIA ENVIRONMENTAL SERVICES,External Services,External Services,Scrap and waste materials,"29,425.74","5,885.15","35,310.89",22-Mar-11,COMMUNITIES
Nottinghamshire County Council,12-04506,VEOLIA ENVIRONMENTAL SERVICES,External Services,External Services,Scrap and waste materials,"128,472.32","22,482.66","150,954.98",01-Mar-11,COMMUNITIES
Nottinghamshire County Council,12-08090,VEOLIA ENVIRONMENTAL SERVICES,External Services,External Services,Scrap and waste materials,"132,902.40","26,580.48","159,482.88",22-Mar-11,COMMUNITIES
Nottinghamshire County Council,12-04506,VEOLIA ENVIRONMENTAL SERVICES,External Services,External Services,Scrap and waste materials,"2,980.71",521.62,"3,502.33",01-Mar-11,COMMUNITIES
Nottinghamshire County Council,12-08090,VEOLIA ENVIRONMENTAL SERVICES,External Services,External Services,Scrap and waste materials,"11,056.94","2,211.39","13,268.33",22-Mar-11,COMMUNITIES
Nottinghamshire County Council,12-04506,VEOLIA ENVIRONMENTAL SERVICES,External Services,External Services,Scrap and waste materials,"2,875.92",503.29,"3,379.21",01-Mar-11,COMMUNITIES
Nottinghamshire County Council,12-08090,VEOLIA ENVIRONMENTAL SERVICES,External Services,External Services,Scrap and waste materials,"6,538.63","1,307.73","7,846.36",22-Mar-11,COMMUNITIES
Nottinghamshire County Council,12-04506,VEOLIA ENVIRONMENTAL SERVICES,External Services,External Services,Scrap and waste materials,"113,713.40","19,899.84","133,613.24",01-Mar-11,COMMUNITIES
Nottinghamshire County Council,12-08090,VEOLIA ENVIRONMENTAL SERVICES,External Services,External Services,Scrap and waste materials,"136,266.20","27,253.24","163,519.44",22-Mar-11,COMMUNITIES
Nottinghamshire County Council,12-04506,VEOLIA ENVIRONMENTAL SERVICES,External Services,External Services,Scrap and waste materials,"194,166.05","33,979.06","228,145.11",01-Mar-11,COMMUNITIES
Nottinghamshire County Council,12-08090,VEOLIA ENVIRONMENTAL SERVICES,External Services,External Services,Scrap and waste materials,"194,166.05","38,833.21","232,999.26",22-Mar-11,COMMUNITIES
Nottinghamshire County Council,12-04506,VEOLIA ENVIRONMENTAL SERVICES,External Services,External Services,Scrap and waste materials,"8,547.54","1,495.82","10,043.36",01-Mar-11,COMMUNITIES
Nottinghamshire County Council,12-08090,VEOLIA ENVIRONMENTAL SERVICES,External Services,External Services,Scrap and waste materials,"37,949.87","7,589.97","45,539.84",22-Mar-11,COMMUNITIES
Nottinghamshire County Council,12-05930,VEOLIA ENVIRONMENTAL SERVICES,External Services,External Services,Scrap and waste materials,482.3,84.4,566.7,10-Mar-11,COMMUNITIES
Nottinghamshire County Council,12-05931,VEOLIA ENVIRONMENTAL SERVICES,External Services,External Services,Scrap and waste materials,"1,737.98",304.15,"2,042.13",10-Mar-11,COMMUNITIES
Nottinghamshire County Council,12-05933,VEOLIA ENVIRONMENTAL SERVICES,External Services,External Services,Scrap and waste materials,"8,924.40","1,561.77","10,486.17",10-Mar-11,COMMUNITIES
Nottinghamshire County Council,12-05934,VEOLIA ENVIRONMENTAL SERVICES,External Services,External Services,Scrap and waste materials,"3,277.50",573.56,"3,851.06",10-Mar-11,COMMUNITIES
Nottinghamshire County Council,12-05935,VEOLIA ENVIRONMENTAL SERVICES,External Services,External Services,Scrap and waste materials,"2,026.00",354.55,"2,380.55",10-Mar-11,COMMUNITIES
Nottinghamshire County Council,12-05936,VEOLIA ENVIRONMENTAL SERVICES,External Services,External Services,Scrap and waste materials,"2,470.00",494,"2,964.00",10-Mar-11,COMMUNITIES
Nottinghamshire County Council,12-05937,VEOLIA ENVIRONMENTAL SERVICES,External Services,External Services,Scrap and waste materials,"1,654.45",289.53,"1,943.98",10-Mar-11,COMMUNITIES
Nottinghamshire County Council,12-05938,VEOLIA ENVIRONMENTAL SERVICES,External Services,External Services,Scrap and waste materials,"12,661.50","2,215.76","14,877.26",22-Mar-11,COMMUNITIES
Nottinghamshire County Council,12-05939,VEOLIA ENVIRONMENTAL SERVICES,External Services,External Services,Scrap and waste materials,"2,470.00",494,"2,964.00",22-Mar-11,COMMUNITIES
Nottinghamshire County Council,12-05940,VEOLIA ENVIRONMENTAL SERVICES,External Services,External Services,Scrap and waste materials,"-8,924.40","-1,561.77","-10,486.17",10-Mar-11,COMMUNITIES
Nottinghamshire County Council,12-05941,VEOLIA ENVIRONMENTAL SERVICES,External Services,External Services,Scrap and waste materials,"-3,277.50",-573.56,"-3,851.06",10-Mar-11,COMMUNITIES
Nottinghamshire County Council,12-05942,VEOLIA ENVIRONMENTAL SERVICES,External Services,External Services,Scrap and waste materials,"-2,026.00",-354.55,"-2,380.55",10-Mar-11,COMMUNITIES
Nottinghamshire County Council,12-05943,VEOLIA ENVIRONMENTAL SERVICES,External Services,External Services,Scrap and waste materials,"-2,470.00",-494,"-2,964.00",10-Mar-11,COMMUNITIES
Nottinghamshire County Council,12-05944,VEOLIA ENVIRONMENTAL SERVICES,External Services,External Services,Scrap and waste materials,"-1,654.45",-289.53,"-1,943.98",10-Mar-11,COMMUNITIES
Nottinghamshire County Council,12-08090,VEOLIA ENVIRONMENTAL SERVICES,External Services,External Services,Scrap and waste materials,"-1,200.00",-240,"-1,440.00",22-Mar-11,COMMUNITIES
Nottinghamshire County Council,12-04506,VEOLIA ENVIRONMENTAL SERVICES,External Services,External Services,Scrap and waste materials,"16,064.27","2,811.25","18,875.52",01-Mar-11,COMMUNITIES
Nottinghamshire County Council,12-08090,VEOLIA ENVIRONMENTAL SERVICES,External Services,External Services,Scrap and waste materials,"30,407.92","6,081.58","36,489.50",22-Mar-11,COMMUNITIES
Nottinghamshire County Council,12-04506,VEOLIA ENVIRONMENTAL SERVICES,External Services,External Services,Scrap and waste materials,"4,229.40",740.14,"4,969.54",01-Mar-11,COMMUNITIES
Nottinghamshire County Council,12-08090,VEOLIA ENVIRONMENTAL SERVICES,External Services,External Services,Scrap and waste materials,"5,427.73","1,085.55","6,513.28",22-Mar-11,COMMUNITIES
Nottinghamshire County Council,12-08588,SCOTT WILSON LIMITED,Professional Services,Professional Services,Consultancy,"154,322.07","30,864.41","185,186.48",22-Mar-11,COMMUNITIES
Nottinghamshire County Council,12-00171,MCCARTHY TAYLOR SYSTEMS LTD,ICT,ICT,Software,"1,000.00",0,"1,000.00",02-Mar-11,COMMUNITIES
Nottinghamshire County Council,12-07975,KOREC,TBC,TBC,TBC,825,0,825,18-Mar-11,COMMUNITIES
Nottinghamshire County Council,12-09329,RADIODETECTION LIMITED,Facilities Management,Facilities Management,Electrical Systems & Lighting,539.35,0,539.35,25-Mar-11,COMMUNITIES
Nottinghamshire County Council,12-09329,RADIODETECTION LIMITED,Facilities Management,Facilities Management,Electrical Systems & Lighting,7.48,0,7.48,25-Mar-11,COMMUNITIES
Nottinghamshire County Council,12-05458,FORMOST AIRCONDITIONING & REFRIG LIMITED,Facilities Management,Facilities Management,Heating & Ventilation (inc a/c),"3,934.78",786.96,"4,721.74",09-Mar-11,RESOURCES
Nottinghamshire County Council,12-07412,ENERGY SERVICES MANAGEMENT LIMITED,Facilities Management,Facilities Management,Utilities,817,163.4,980.4,16-Mar-11,RESOURCES
Nottinghamshire County Council,12-05460,CONTROLCARE,Care,Care,Domiciliary Care,983.64,196.73,"1,180.37",09-Mar-11,RESOURCES
Nottinghamshire County Council,12-09402,FORMOST AIRCONDITIONING & REFRIG LIMITED,Facilities Management,Facilities Management,Heating & Ventilation (inc a/c),"1,825.81",365.16,"2,190.97",28-Mar-11,RESOURCES
Nottinghamshire County Council,12-13432,QUANTAQUA LIMITED,Facilities Management,Facilities Management,Cleaning Equipment and Janitorial Supplies,87.84,17.57,105.41,31-Mar-11,RESOURCES
Nottinghamshire County Council,12-09401,FORMOST AIRCONDITIONING & REFRIG LIMITED,Facilities Management,Facilities Management,Heating & Ventilation (inc a/c),"1,195.31",239.06,"1,434.37",28-Mar-11,RESOURCES
Nottinghamshire County Council,12-05459,CONTROLCARE,Care,Care,Domiciliary Care,754.55,150.91,905.46,09-Mar-11,RESOURCES
Nottinghamshire County Council,12-09400,FORMOST AIRCONDITIONING & REFRIG LIMITED,Facilities Management,Facilities Management,Heating & Ventilation (inc a/c),933.6,186.72,"1,120.32",28-Mar-11,RESOURCES
Nottinghamshire County Council,12-09399,MANSFIELD REFRIG & AIR COND CO LIMITED,Facilities Management,Facilities Management,Heating & Ventilation (inc a/c),690,138,828,28-Mar-11,RESOURCES
Nottinghamshire County Council,12-07460,FWP UK LIMITED,Facilities Management,Facilities Management,Electrical Systems & Lighting,525,105,630,18-Mar-11,RESOURCES
Nottinghamshire County Council,12-07460,FWP UK LIMITED,Facilities Management,Facilities Management,Electrical Systems & Lighting,525,105,630,18-Mar-11,RESOURCES
Nottinghamshire County Council,12-07460,FWP UK LIMITED,Facilities Management,Facilities Management,Electrical Systems & Lighting,525,105,630,18-Mar-11,RESOURCES
Nottinghamshire County Council,12-07460,FWP UK LIMITED,Facilities Management,Facilities Management,Electrical Systems & Lighting,525,105,630,18-Mar-11,RESOURCES
Nottinghamshire County Council,12-07335,ASHWELL ENGINEERING SERVICES LIMITED,Professional Services,Professional Services,Professional engineering services,"4,404.00",880.8,"5,284.80",16-Mar-11,RESOURCES
Nottinghamshire County Council,12-07342,ASHWELL ENGINEERING SERVICES LIMITED,Professional Services,Professional Services,Professional engineering services,420,84,504,16-Mar-11,RESOURCES
Nottinghamshire County Council,12-07343,ASHWELL ENGINEERING SERVICES LIMITED,Professional Services,Professional Services,Professional engineering services,"4,943.88",988.78,"5,932.66",16-Mar-11,RESOURCES
Nottinghamshire County Council,12-08529,TRENT VALLEY WINDOW & DOOR CO LIMITED,Facilities Management,Facilities Management,Window and door installation services,"41,621.50","8,324.30","49,945.80",22-Mar-11,RESOURCES
Nottinghamshire County Council,12-01311,MIDLAND ROOFING SERVICES (DERBY) LIMITED,Facilities Management,Facilities Management,Roofing Services,"5,896.00","1,179.20","7,075.20",01-Mar-11,RESOURCES
Nottinghamshire County Council,12-09161,M J W ASBESTOS REMOVAL LIMITED,External Services,External Services,Scrap and waste materials,"3,031.34",606.27,"3,637.61",24-Mar-11,RESOURCES
Nottinghamshire County Council,12-07337,ASHWELL ENGINEERING SERVICES LIMITED,Professional Services,Professional Services,Professional engineering services,"4,404.00",880.8,"5,284.80",16-Mar-11,RESOURCES
Nottinghamshire County Council,12-08215,ENVIRONTEC LIMITED,Professional Services,Professional Services,Consultancy,533,93.28,626.28,21-Mar-11,RESOURCES
Nottinghamshire County Council,12-08565,PTL OCCUPATIONAL HYGIENE CONSULTANTS,Professional Services,Professional Services,Consultancy,"2,072.00",414.4,"2,486.40",23-Mar-11,RESOURCES
Nottinghamshire County Council,12-08538,STERILIZING SERVICES,Care,Care,Healthcare Services,793.11,158.62,951.73,23-Mar-11,RESOURCES
Nottinghamshire County Council,12-04900,MIDLAND ROOFING SERVICES (DERBY) LIMITED,Facilities Management,Facilities Management,Roofing Services,"6,668.80","1,333.76","8,002.56",04-Mar-11,RESOURCES
Nottinghamshire County Council,12-07339,ASHWELL ENGINEERING SERVICES LIMITED,Professional Services,Professional Services,Professional engineering services,"4,404.00",880.8,"5,284.80",16-Mar-11,RESOURCES
Nottinghamshire County Council,12-08561,TRENT VALLEY WINDOW & DOOR CO LIMITED,Facilities Management,Facilities Management,Window and door installation services,"98,540.00","19,708.00","118,248.00",29-Mar-11,RESOURCES
Nottinghamshire County Council,12-08536,ENVIRONTEC LIMITED,Professional Services,Professional Services,Consultancy,535,107,642,24-Mar-11,RESOURCES
Nottinghamshire County Council,12-00858,ENVIRONTEC LIMITED,Professional Services,Professional Services,Consultancy,"1,695.00",296.63,"1,991.63",01-Mar-11,RESOURCES
Nottinghamshire County Council,12-05915,PTL OCCUPATIONAL HYGIENE CONSULTANTS,Professional Services,Professional Services,Consultancy,"2,325.00",465,"2,790.00",09-Mar-11,RESOURCES
Nottinghamshire County Council,12-09863,G F TOMLINSON BUILDING LIMITED,External Services,External Services,Building and Construction Supplies,"34,503.94","6,900.79","41,404.73",29-Mar-11,RESOURCES
Nottinghamshire County Council,12-08528,HERBERT BAGGALEY CONSTRUCTION LTD,Facilities Management,Facilities Management,Building construction services,"31,529.78","6,305.96","37,835.74",23-Mar-11,RESOURCES
Nottinghamshire County Council,12-09864,G F TOMLINSON BUILDING LIMITED,External Services,External Services,Building and Construction Supplies,"61,165.23","12,233.05","73,398.28",29-Mar-11,RESOURCES
Nottinghamshire County Council,12-05914,PTL OCCUPATIONAL HYGIENE CONSULTANTS,Professional Services,Professional Services,Consultancy,695.4,139.08,834.48,09-Mar-11,RESOURCES
Nottinghamshire County Council,12-05908,FIRST ORDER RED LIMITED,External Services,External Services,Scrap and waste materials,665.5,133.1,798.6,09-Mar-11,RESOURCES
Nottinghamshire County Council,12-08562,TRENT VALLEY WINDOW & DOOR CO LIMITED,Facilities Management,Facilities Management,Window and door installation services,"90,471.28","18,094.26","108,565.54",29-Mar-11,RESOURCES
Nottinghamshire County Council,12-07341,ASHWELL ENGINEERING SERVICES LIMITED,Professional Services,Professional Services,Professional engineering services,"5,292.00","1,058.40","6,350.40",16-Mar-11,RESOURCES
Nottinghamshire County Council,12-07336,ASHWELL ENGINEERING SERVICES LIMITED,Professional Services,Professional Services,Professional engineering services,"4,404.00",880.8,"5,284.80",16-Mar-11,RESOURCES
Nottinghamshire County Council,12-07338,ASHWELL ENGINEERING SERVICES LIMITED,Professional Services,Professional Services,Professional engineering services,"4,404.00",880.8,"5,284.80",16-Mar-11,RESOURCES
Nottinghamshire County Council,12-05903,FIRST ORDER RED LIMITED,External Services,External Services,Scrap and waste materials,539.5,107.9,647.4,09-Mar-11,RESOURCES
Nottinghamshire County Council,12-08566,PTL OCCUPATIONAL HYGIENE CONSULTANTS,Professional Services,Professional Services,Consultancy,"1,287.60",257.52,"1,545.12",23-Mar-11,RESOURCES
Nottinghamshire County Council,12-00859,ENVIRONTEC LIMITED,Professional Services,Professional Services,Consultancy,705,123.38,828.38,01-Mar-11,RESOURCES
Nottinghamshire County Council,12-01313,MIDLAND ROOFING SERVICES (DERBY) LIMITED,Facilities Management,Facilities Management,Roofing Services,"3,253.00",650.6,"3,903.60",01-Mar-11,RESOURCES
Nottinghamshire County Council,12-07411,ENERGY SERVICES MANAGEMENT LIMITED,Facilities Management,Facilities Management,Utilities,890,178,"1,068.00",16-Mar-11,RESOURCES
Nottinghamshire County Council,12-07409,ENERGY SERVICES MANAGEMENT LIMITED,Facilities Management,Facilities Management,Utilities,567,113.4,680.4,16-Mar-11,RESOURCES
Nottinghamshire County Council,12-07414,ENERGY SERVICES MANAGEMENT LIMITED,Facilities Management,Facilities Management,Utilities,567,113.4,680.4,16-Mar-11,RESOURCES
Nottinghamshire County Council,12-07413,ENERGY SERVICES MANAGEMENT LIMITED,Facilities Management,Facilities Management,Utilities,567,113.4,680.4,16-Mar-11,RESOURCES
Nottinghamshire County Council,12-07340,ASHWELL ENGINEERING SERVICES LIMITED,Professional Services,Professional Services,Professional engineering services,"4,404.00",880.8,"5,284.80",16-Mar-11,RESOURCES
Nottinghamshire County Council,12-08245,FIRST ORDER RED LIMITED,External Services,External Services,Scrap and waste materials,"1,950.10",390.02,"2,340.12",24-Mar-11,RESOURCES
